{"text_format":"3","workbook":"xlsx","n_sheets":5,"sheets":["ZAČIATOK","PLÁNOVANÉ VÝDAVKY","SKUTOČNÉ VÝDAVKY","ODCHÝLKY VO VÝDAVKOCH","ANALÝZA VÝDAVKOV"],"not_rendered":{"charts":3,"images":4,"defined_names":1},"read":"whole","date_system":"1900"}

{"sheet":"ZAČIATOK","index":0,"n_rows":8,"n_cols":2,"rows_kept":8}
[null,"INFORMÁCIE O TEJTO ŠABLÓNE"]
[null,"Pomocou tohto zošita s rozpočtom výdavkov firmy môžete sledovať plánované a skutočné výdavky a odchýlky."]
[null,"Doplňte názov spoločnosti a pridajte logo."]
[null,"Zadajte údaje do tabuliek v hárku Plánované výdavky hárka a hárku Skutočné výdavky."]
[null,"Tabuľky v hárku Odchýlky vo výdavkoch a grafy v hárku Analýza výdavkov sa aktualizujú automaticky."]
[null,"Poznámka: "]
[null,"V každom hárku sú v stĺpci A uvedené ďalšie pokyny. Tento text je zámerne skrytý. Ak chcete text odstrániť, vyberte stĺpec A a potom stlačte kláves DELETE. Ak chcete text zobraziť, vyberte stĺpec A a potom zmeňte farbu písma."]
[null,"Ak chcete získať ďalšie informácie o tabuľkách, v tabuľke stlačte kláves SHIFT a potom kláves F10, vyberte možnosť TABUĽKA a potom vyberte položku ALTERNATÍVNY TEXT."]

{"sheet":"PLÁNOVANÉ VÝDAVKY","index":1,"n_rows":37,"n_cols":18,"rows_kept":37,"merged":[[1,1,2,3],[1,10,1,12],[1,13,2,14],[2,10,2,12],[3,17,12,19],[8,1,8,2],[19,1,19,2],[28,1,28,2],[33,1,33,2]]}
["V tomto hárku zadajte do príslušných tabuliek plánované náklady na zamestnancov, náklady na kanceláriu, náklady na marketing a náklady na školenie a cestovné. Súčty sa vypočítajú automaticky. V bunkách v tomto stĺpci sú užitočné pokyny na používanie tohto hárka. Začnite stlačením šípky nadol.",{"$nulls":14}," "]
["Do bunky napravo zadajte názov spoločnosti a do bunky N2 pridajte logo. V bunke K2 je uvedený názov hárka.","Názov spoločnosti",{"$nulls":8},"Podrobné odhady výdavkov",null,null,"V tejto bunke je zástupné logo."]
["V bunke K3 je uvedený tip.",{"$nulls":9},"Tieňované bunky sú výpočty."]
["V bunke napravo je uvedené označenie Plánované výdavky, v bunkách C4 až N4 sú mesiace, v bunke O4 je označenie Rok a bunka R4 obsahuje pokyny na používanie tejto šablóny.","PLÁNOVANÉ VÝDAVKY","JAN","FEB","MAR","APR","MÁJ","JÚN","JÚL","AUG","SEP","OKT","NOV","DEC","ROK",null,null,"Tip: AKO POUŽÍVAŤ TÚTO ŠABLÓNU\nZadajte údaje do bielych buniek v hárkoch PLÁNOVANÉ VÝDAVKY a SKUTOČNÉ VÝDAVKY a ODCHÝLKY VO VÝDAVKOCH a ANALÝZA VÝDAVKOV sa vypočítajú automaticky. Ak do niektorého hárka pridáte riadok, treba príslušne prispôsobiť aj ostatné hárky."]
["Do tabuľky plánovaných Náklady na zamestnancov začínajúcej v bunke napravo planovane naklady na zamestnancov. Ďalší pokyn je v bunke A10.","Náklady na zamestnancov","Jan","Feb","Mar","Apr","Máj","Jún","Júl","Aug","Sep","Okt","Nov","Dec","ROK"]
[null,"Mzdy",{"v":85000,"d":"85,000.00 EUR"},{"v":85000,"d":"85,000.00 EUR"},{"v":85000,"d":"85,000.00 EUR"},{"v":87500,"d":"87,500.00 EUR"},{"v":87500,"d":"87,500.00 EUR"},{"v":87500,"d":"87,500.00 EUR"},{"v":87500,"d":"87,500.00 EUR"},{"v":92400,"d":"92,400.00 EUR"},{"v":92400,"d":"92,400.00 EUR"},{"v":92400,"d":"92,400.00 EUR"},{"v":92400,"d":"92,400.00 EUR"},{"v":92400,"d":"92,400.00 EUR"},{"$f":"SUM(C6:N6)","v":{"v":1067000,"d":"1,067,000.00 EUR"}}]
[null,"Benefity",{"$f":"C6*0.27","v":{"v":22950,"d":"22,950.00 EUR"}},{"v":22950,"d":"22,950.00 EUR"},{"v":22950,"d":"22,950.00 EUR"},{"v":23625,"d":"23,625.00 EUR"},{"v":23625,"d":"23,625.00 EUR"},{"v":23625,"d":"23,625.00 EUR"},{"v":23625,"d":"23,625.00 EUR"},{"v":24948,"d":"24,948.00 EUR"},{"v":24948,"d":"24,948.00 EUR"},{"v":24948,"d":"24,948.00 EUR"},{"v":24948,"d":"24,948.00 EUR"},{"v":24948,"d":"24,948.00 EUR"},{"$f":"SUM(C7:N7)","v":{"v":288090,"d":"288,090.00 EUR"}}]
[null,"Medzisúčet",{"$f":"SUBTOTAL(109,Planovane_naklady_na_zamestnancov[Jan])","v":{"v":107950,"d":"107,950.00 EUR"}},{"$f":"SUBTOTAL(109,Planovane_naklady_na_zamestnancov[Feb])","v":{"v":107950,"d":"107,950.00 EUR"}},{"$f":"SUBTOTAL(109,Planovane_naklady_na_zamestnancov[Mar])","v":{"v":107950,"d":"107,950.00 EUR"}},{"$f":"SUBTOTAL(109,Planovane_naklady_na_zamestnancov[Apr])","v":{"v":111125,"d":"111,125.00 EUR"}},{"$f":"SUBTOTAL(109,Planovane_naklady_na_zamestnancov[Máj])","v":{"v":111125,"d":"111,125.00 EUR"}},{"$f":"SUBTOTAL(109,Planovane_naklady_na_zamestnancov[Jún])","v":{"v":111125,"d":"111,125.00 EUR"}},{"$f":"SUBTOTAL(109,Planovane_naklady_na_zamestnancov[Júl])","v":{"v":111125,"d":"111,125.00 EUR"}},{"$f":"SUBTOTAL(109,Planovane_naklady_na_zamestnancov[Aug])","v":{"v":117348,"d":"117,348.00 EUR"}},{"$f":"SUBTOTAL(109,Planovane_naklady_na_zamestnancov[Sep])","v":{"v":117348,"d":"117,348.00 EUR"}},{"$f":"SUBTOTAL(109,Planovane_naklady_na_zamestnancov[Okt])","v":{"v":117348,"d":"117,348.00 EUR"}},{"$f":"SUBTOTAL(109,Planovane_naklady_na_zamestnancov[Nov])","v":{"v":117348,"d":"117,348.00 EUR"}},{"$f":"SUBTOTAL(109,Planovane_naklady_na_zamestnancov[Dec])","v":{"v":117348,"d":"117,348.00 EUR"}},{"$f":"SUBTOTAL(109,Planovane_naklady_na_zamestnancov[ROK])","v":{"v":1355090,"d":"1,355,090.00 EUR"}}]
[]
["Do tabuľky plánovaných Náklady na kanceláriu začínajúcej v bunke napravo planovane naklady na kancelariu. Ďalší pokyn je v bunke A21.","Náklady na kanceláriu","Jan","Feb","Mar","Apr","Máj","Jún","Júl","Aug","Sep","Okt","Nov","Dec","ROK"]
[null,"Prenájom kancelárie",{"v":9800,"d":"9,800.00 EUR"},{"v":9800,"d":"9,800.00 EUR"},{"v":9800,"d":"9,800.00 EUR"},{"v":9800,"d":"9,800.00 EUR"},{"v":9800,"d":"9,800.00 EUR"},{"v":9800,"d":"9,800.00 EUR"},{"v":9800,"d":"9,800.00 EUR"},{"v":9800,"d":"9,800.00 EUR"},{"v":9800,"d":"9,800.00 EUR"},{"v":9800,"d":"9,800.00 EUR"},{"v":9800,"d":"9,800.00 EUR"},{"v":9800,"d":"9,800.00 EUR"},{"$f":"SUM(C11:N11)","v":{"v":117600,"d":"117,600.00 EUR"}}]
[null,"Plyn",null,{"v":400,"d":"400.00 EUR"},{"v":400,"d":"400.00 EUR"},{"v":100,"d":"100.00 EUR"},{"v":100,"d":"100.00 EUR"},{"v":100,"d":"100.00 EUR"},{"v":100,"d":"100.00 EUR"},{"v":100,"d":"100.00 EUR"},{"v":100,"d":"100.00 EUR"},{"v":100,"d":"100.00 EUR"},{"v":400,"d":"400.00 EUR"},{"v":400,"d":"400.00 EUR"},{"v":2300,"d":"2,300.00 EUR"}]
[null,"Elektrina",{"v":300,"d":"300.00 EUR"},{"v":300,"d":"300.00 EUR"},{"v":300,"d":"300.00 EUR"},{"v":300,"d":"300.00 EUR"},{"v":300,"d":"300.00 EUR"},{"v":300,"d":"300.00 EUR"},{"v":300,"d":"300.00 EUR"},{"v":300,"d":"300.00 EUR"},{"v":300,"d":"300.00 EUR"},{"v":300,"d":"300.00 EUR"},{"v":300,"d":"300.00 EUR"},{"v":300,"d":"300.00 EUR"},{"v":3600,"d":"3,600.00 EUR"}]
[null,"Voda",{"v":40,"d":"40.00 EUR"},{"v":40,"d":"40.00 EUR"},{"v":40,"d":"40.00 EUR"},{"v":40,"d":"40.00 EUR"},{"v":40,"d":"40.00 EUR"},{"v":40,"d":"40.00 EUR"},{"v":40,"d":"40.00 EUR"},{"v":40,"d":"40.00 EUR"},{"v":40,"d":"40.00 EUR"},{"v":40,"d":"40.00 EUR"},{"v":40,"d":"40.00 EUR"},{"v":40,"d":"40.00 EUR"},{"v":480,"d":"480.00 EUR"}]
[null,"Telefón",{"v":250,"d":"250.00 EUR"},{"v":250,"d":"250.00 EUR"},{"v":250,"d":"250.00 EUR"},{"v":250,"d":"250.00 EUR"},{"v":250,"d":"250.00 EUR"},{"v":250,"d":"250.00 EUR"},{"v":250,"d":"250.00 EUR"},{"v":250,"d":"250.00 EUR"},{"v":250,"d":"250.00 EUR"},{"v":250,"d":"250.00 EUR"},{"v":250,"d":"250.00 EUR"},{"v":250,"d":"250.00 EUR"},{"v":3000,"d":"3,000.00 EUR"}]
[null,"Prístup na Internet",{"v":180,"d":"180.00 EUR"},{"v":180,"d":"180.00 EUR"},{"v":180,"d":"180.00 EUR"},{"v":180,"d":"180.00 EUR"},{"v":180,"d":"180.00 EUR"},{"v":180,"d":"180.00 EUR"},{"v":180,"d":"180.00 EUR"},{"v":180,"d":"180.00 EUR"},{"v":180,"d":"180.00 EUR"},{"v":180,"d":"180.00 EUR"},{"v":180,"d":"180.00 EUR"},{"v":180,"d":"180.00 EUR"},{"v":2160,"d":"2,160.00 EUR"}]
[null,"Kancelárske potreby",{"v":200,"d":"200.00 EUR"},{"v":200,"d":"200.00 EUR"},{"v":200,"d":"200.00 EUR"},{"v":200,"d":"200.00 EUR"},{"v":200,"d":"200.00 EUR"},{"v":200,"d":"200.00 EUR"},{"v":200,"d":"200.00 EUR"},{"v":200,"d":"200.00 EUR"},{"v":200,"d":"200.00 EUR"},{"v":200,"d":"200.00 EUR"},{"v":200,"d":"200.00 EUR"},{"v":200,"d":"200.00 EUR"},{"v":2400,"d":"2,400.00 EUR"}]
[null,"Zabezpečenie",{"v":600,"d":"600.00 EUR"},{"v":600,"d":"600.00 EUR"},{"v":600,"d":"600.00 EUR"},{"v":600,"d":"600.00 EUR"},{"v":600,"d":"600.00 EUR"},{"v":600,"d":"600.00 EUR"},{"v":600,"d":"600.00 EUR"},{"v":600,"d":"600.00 EUR"},{"v":600,"d":"600.00 EUR"},{"v":600,"d":"600.00 EUR"},{"v":600,"d":"600.00 EUR"},{"v":600,"d":"600.00 EUR"},{"v":7200,"d":"7,200.00 EUR"}]
[null,"Medzisúčet",{"$f":"SUBTOTAL(109,Planovane_naklady_na_kancelariu[Jan])","v":{"v":11370,"d":"11,370.00 EUR"}},{"$f":"SUBTOTAL(109,Planovane_naklady_na_kancelariu[Feb])","v":{"v":11770,"d":"11,770.00 EUR"}},{"$f":"SUBTOTAL(109,Planovane_naklady_na_kancelariu[Mar])","v":{"v":11770,"d":"11,770.00 EUR"}},{"$f":"SUBTOTAL(109,Planovane_naklady_na_kancelariu[Apr])","v":{"v":11470,"d":"11,470.00 EUR"}},{"$f":"SUBTOTAL(109,Planovane_naklady_na_kancelariu[Máj])","v":{"v":11470,"d":"11,470.00 EUR"}},{"$f":"SUBTOTAL(109,Planovane_naklady_na_kancelariu[Jún])","v":{"v":11470,"d":"11,470.00 EUR"}},{"$f":"SUBTOTAL(109,Planovane_naklady_na_kancelariu[Júl])","v":{"v":11470,"d":"11,470.00 EUR"}},{"$f":"SUBTOTAL(109,Planovane_naklady_na_kancelariu[Aug])","v":{"v":11470,"d":"11,470.00 EUR"}},{"$f":"SUBTOTAL(109,Planovane_naklady_na_kancelariu[Sep])","v":{"v":11470,"d":"11,470.00 EUR"}},{"$f":"SUBTOTAL(109,Planovane_naklady_na_kancelariu[Okt])","v":{"v":11470,"d":"11,470.00 EUR"}},{"$f":"SUBTOTAL(109,Planovane_naklady_na_kancelariu[Nov])","v":{"v":11770,"d":"11,770.00 EUR"}},{"$f":"SUBTOTAL(109,Planovane_naklady_na_kancelariu[Dec])","v":{"v":11770,"d":"11,770.00 EUR"}},{"$f":"SUBTOTAL(109,Planovane_naklady_na_kancelariu[ROK])","v":{"v":138740,"d":"138,740.00 EUR"}}]
[]
["Do tabuľky plánovaných Náklady na marketing začínajúcej v bunke napravo planovane naklady na marketing. Ďalší pokyn je v bunke A30.","Náklady na marketing","Jan","Feb","Mar","Apr","Máj","Jún","Júl","Aug","Sep","Okt","Nov","Dec","ROK"]
[null,"Hosťovanie webovej lokality",{"v":500,"d":"500.00 EUR"},{"v":500,"d":"500.00 EUR"},{"v":500,"d":"500.00 EUR"},{"v":500,"d":"500.00 EUR"},{"v":500,"d":"500.00 EUR"},{"v":500,"d":"500.00 EUR"},{"v":500,"d":"500.00 EUR"},{"v":500,"d":"500.00 EUR"},{"v":500,"d":"500.00 EUR"},{"v":500,"d":"500.00 EUR"},{"v":500,"d":"500.00 EUR"},{"v":500,"d":"500.00 EUR"},{"$f":"SUM(C22:N22)","v":{"v":6000,"d":"6,000.00 EUR"}}]
[null,"Aktualizácie webovej lokality",{"v":200,"d":"200.00 EUR"},{"v":200,"d":"200.00 EUR"},{"v":200,"d":"200.00 EUR"},{"v":200,"d":"200.00 EUR"},{"v":200,"d":"200.00 EUR"},{"v":1000,"d":"1,000.00 EUR"},{"v":200,"d":"200.00 EUR"},{"v":200,"d":"200.00 EUR"},{"v":200,"d":"200.00 EUR"},{"v":200,"d":"200.00 EUR"},{"v":200,"d":"200.00 EUR"},{"v":1000,"d":"1,000.00 EUR"},{"v":4000,"d":"4,000.00 EUR"}]
[null,"Príprava sprievodnej dokumentácie",{"v":5000,"d":"5,000.00 EUR"},{"v":0,"d":"0.00 EUR"},{"v":0,"d":"0.00 EUR"},{"v":5000,"d":"5,000.00 EUR"},{"v":0,"d":"0.00 EUR"},{"v":0,"d":"0.00 EUR"},{"v":5000,"d":"5,000.00 EUR"},{"v":0,"d":"0.00 EUR"},{"v":0,"d":"0.00 EUR"},{"v":5000,"d":"5,000.00 EUR"},{"v":0,"d":"0.00 EUR"},{"v":0,"d":"0.00 EUR"},{"v":20000,"d":"20,000.00 EUR"}]
[null,"Tlač sprievodnej dokumentácie",{"v":200,"d":"200.00 EUR"},{"v":200,"d":"200.00 EUR"},{"v":200,"d":"200.00 EUR"},{"v":200,"d":"200.00 EUR"},{"v":200,"d":"200.00 EUR"},{"v":200,"d":"200.00 EUR"},{"v":200,"d":"200.00 EUR"},{"v":200,"d":"200.00 EUR"},{"v":200,"d":"200.00 EUR"},{"v":200,"d":"200.00 EUR"},{"v":200,"d":"200.00 EUR"},{"v":200,"d":"200.00 EUR"},{"v":2400,"d":"2,400.00 EUR"}]
[null,"Marketingové podujatia",{"v":2000,"d":"2,000.00 EUR"},{"v":2000,"d":"2,000.00 EUR"},{"v":2000,"d":"2,000.00 EUR"},{"v":5000,"d":"5,000.00 EUR"},{"v":2000,"d":"2,000.00 EUR"},{"v":2000,"d":"2,000.00 EUR"},{"v":2000,"d":"2,000.00 EUR"},{"v":5000,"d":"5,000.00 EUR"},{"v":2000,"d":"2,000.00 EUR"},{"v":2000,"d":"2,000.00 EUR"},{"v":2000,"d":"2,000.00 EUR"},{"v":5000,"d":"5,000.00 EUR"},{"v":33000,"d":"33,000.00 EUR"}]
[null,"Rôzne výdavky",{"v":200,"d":"200.00 EUR"},{"v":200,"d":"200.00 EUR"},{"v":200,"d":"200.00 EUR"},{"v":200,"d":"200.00 EUR"},{"v":200,"d":"200.00 EUR"},{"v":200,"d":"200.00 EUR"},{"v":200,"d":"200.00 EUR"},{"v":200,"d":"200.00 EUR"},{"v":200,"d":"200.00 EUR"},{"v":200,"d":"200.00 EUR"},{"v":200,"d":"200.00 EUR"},{"v":200,"d":"200.00 EUR"},{"v":2400,"d":"2,400.00 EUR"}]
[null,"Medzisúčet",{"$f":"SUBTOTAL(109,Planovane_naklady_na_marketing[Jan])","v":{"v":8100,"d":"8,100.00 EUR"}},{"$f":"SUBTOTAL(109,Planovane_naklady_na_marketing[Feb])","v":{"v":3100,"d":"3,100.00 EUR"}},{"$f":"SUBTOTAL(109,Planovane_naklady_na_marketing[Mar])","v":{"v":3100,"d":"3,100.00 EUR"}},{"$f":"SUBTOTAL(109,Planovane_naklady_na_marketing[Apr])","v":{"v":11100,"d":"11,100.00 EUR"}},{"$f":"SUBTOTAL(109,Planovane_naklady_na_marketing[Máj])","v":{"v":3100,"d":"3,100.00 EUR"}},{"$f":"SUBTOTAL(109,Planovane_naklady_na_marketing[Jún])","v":{"v":3900,"d":"3,900.00 EUR"}},{"$f":"SUBTOTAL(109,Planovane_naklady_na_marketing[Júl])","v":{"v":8100,"d":"8,100.00 EUR"}},{"$f":"SUBTOTAL(109,Planovane_naklady_na_marketing[Aug])","v":{"v":6100,"d":"6,100.00 EUR"}},{"$f":"SUBTOTAL(109,Planovane_naklady_na_marketing[Sep])","v":{"v":3100,"d":"3,100.00 EUR"}},{"$f":"SUBTOTAL(109,Planovane_naklady_na_marketing[Okt])","v":{"v":8100,"d":"8,100.00 EUR"}},{"$f":"SUBTOTAL(109,Planovane_naklady_na_marketing[Nov])","v":{"v":3100,"d":"3,100.00 EUR"}},{"$f":"SUBTOTAL(109,Planovane_naklady_na_marketing[Dec])","v":{"v":6900,"d":"6,900.00 EUR"}},{"$f":"SUBTOTAL(109,Planovane_naklady_na_marketing[ROK])","v":{"v":67800,"d":"67,800.00 EUR"}}]
[]
["Do tabuľky plánovaných nákladov na školenie/cestovné začínajúcej v bunke napravo planovane naklady na skolenie a cestovne. Ďalší pokyn je v bunke A35.","Školenie/cestovné","Jan","Feb","Mar","Apr","Máj","Jún","Júl","Aug","Sep","Okt","Nov","Dec","ROK"]
[null,"Školiace kurzy",{"v":2000,"d":"2,000.00 EUR"},{"v":2000,"d":"2,000.00 EUR"},{"v":2000,"d":"2,000.00 EUR"},{"v":2000,"d":"2,000.00 EUR"},{"v":2000,"d":"2,000.00 EUR"},{"v":2000,"d":"2,000.00 EUR"},{"v":2000,"d":"2,000.00 EUR"},{"v":2000,"d":"2,000.00 EUR"},{"v":2000,"d":"2,000.00 EUR"},{"v":2000,"d":"2,000.00 EUR"},{"v":2000,"d":"2,000.00 EUR"},{"v":2000,"d":"2,000.00 EUR"},{"$f":"SUM(C31:N31)","v":{"v":24000,"d":"24,000.00 EUR"}}]
[null,"Cestovné náklady súvisiace so školením",{"v":2000,"d":"2,000.00 EUR"},{"v":2000,"d":"2,000.00 EUR"},{"v":2000,"d":"2,000.00 EUR"},{"v":2000,"d":"2,000.00 EUR"},{"v":2000,"d":"2,000.00 EUR"},{"v":2000,"d":"2,000.00 EUR"},{"v":2000,"d":"2,000.00 EUR"},{"v":2000,"d":"2,000.00 EUR"},{"v":2000,"d":"2,000.00 EUR"},{"v":2000,"d":"2,000.00 EUR"},{"v":2000,"d":"2,000.00 EUR"},{"v":2000,"d":"2,000.00 EUR"},{"$f":"SUM(C32:N32)","v":{"v":24000,"d":"24,000.00 EUR"}}]
[null,"Medzisúčet",{"$f":"SUBTOTAL(109,Planovane_naklady_na_skolenie_a_cestovne[Jan])","v":{"v":4000,"d":"4,000.00 EUR"}},{"$f":"SUBTOTAL(109,Planovane_naklady_na_skolenie_a_cestovne[Feb])","v":{"v":4000,"d":"4,000.00 EUR"}},{"$f":"SUBTOTAL(109,Planovane_naklady_na_skolenie_a_cestovne[Mar])","v":{"v":4000,"d":"4,000.00 EUR"}},{"$f":"SUBTOTAL(109,Planovane_naklady_na_skolenie_a_cestovne[Apr])","v":{"v":4000,"d":"4,000.00 EUR"}},{"$f":"SUBTOTAL(109,Planovane_naklady_na_skolenie_a_cestovne[Máj])","v":{"v":4000,"d":"4,000.00 EUR"}},{"$f":"SUBTOTAL(109,Planovane_naklady_na_skolenie_a_cestovne[Jún])","v":{"v":4000,"d":"4,000.00 EUR"}},{"$f":"SUBTOTAL(109,Planovane_naklady_na_skolenie_a_cestovne[Júl])","v":{"v":4000,"d":"4,000.00 EUR"}},{"$f":"SUBTOTAL(109,Planovane_naklady_na_skolenie_a_cestovne[Aug])","v":{"v":4000,"d":"4,000.00 EUR"}},{"$f":"SUBTOTAL(109,Planovane_naklady_na_skolenie_a_cestovne[Sep])","v":{"v":4000,"d":"4,000.00 EUR"}},{"$f":"SUBTOTAL(109,Planovane_naklady_na_skolenie_a_cestovne[Okt])","v":{"v":4000,"d":"4,000.00 EUR"}},{"$f":"SUBTOTAL(109,Planovane_naklady_na_skolenie_a_cestovne[Nov])","v":{"v":4000,"d":"4,000.00 EUR"}},{"$f":"SUBTOTAL(109,Planovane_naklady_na_skolenie_a_cestovne[Dec])","v":{"v":4000,"d":"4,000.00 EUR"}},{"$f":"SUBTOTAL(109,Planovane_naklady_na_skolenie_a_cestovne[ROK])","v":{"v":48000,"d":"48,000.00 EUR"}}]
[]
["Súčty v tabuľke celkove planovane vydavky začínajúcej v bunke napravo sa vypočítajú automaticky.","SÚČTY","Jan","Feb","Mar","Apr","Máj","Jún","Júl","Aug","Sep","Okt","Nov","Dec","Rok"]
[null,"Mesačné plánované výdavky",{"$f":"Planovane_naklady_na_skolenie_a_cestovne[[#Totals],[Jan]]+Planovane_naklady_na_marketing[[#Totals],[Jan]]+Planovane_naklady_na_kancelariu[[#Totals],[Jan]]+Planovane_naklady_na_zamestnancov[[#Totals],[Jan]]","v":{"v":131420,"d":"131,420.00 EUR"}},{"$f":"Planovane_naklady_na_skolenie_a_cestovne[[#Totals],[Feb]]+Planovane_naklady_na_marketing[[#Totals],[Feb]]+Planovane_naklady_na_kancelariu[[#Totals],[Feb]]+Planovane_naklady_na_zamestnancov[[#Totals],[Feb]]","v":{"v":126820,"d":"126,820.00 EUR"}},{"$f":"Planovane_naklady_na_skolenie_a_cestovne[[#Totals],[Mar]]+Planovane_naklady_na_marketing[[#Totals],[Mar]]+Planovane_naklady_na_kancelariu[[#Totals],[Mar]]+Planovane_naklady_na_zamestnancov[[#Totals],[Mar]]","v":{"v":126820,"d":"126,820.00 EUR"}},{"$f":"Planovane_naklady_na_skolenie_a_cestovne[[#Totals],[Apr]]+Planovane_naklady_na_marketing[[#Totals],[Apr]]+Planovane_naklady_na_kancelariu[[#Totals],[Apr]]+Planovane_naklady_na_zamestnancov[[#Totals],[Apr]]","v":{"v":137695,"d":"137,695.00 EUR"}},{"$f":"Planovane_naklady_na_skolenie_a_cestovne[[#Totals],[Máj]]+Planovane_naklady_na_marketing[[#Totals],[Máj]]+Planovane_naklady_na_kancelariu[[#Totals],[Máj]]+Planovane_naklady_na_zamestnancov[[#Totals],[Máj]]","v":{"v":129695,"d":"129,695.00 EUR"}},{"$f":"Planovane_naklady_na_skolenie_a_cestovne[[#Totals],[Jún]]+Planovane_naklady_na_marketing[[#Totals],[Jún]]+Planovane_naklady_na_kancelariu[[#Totals],[Jún]]+Planovane_naklady_na_zamestnancov[[#Totals],[Jún]]","v":{"v":130495,"d":"130,495.00 EUR"}},{"$f":"Planovane_naklady_na_skolenie_a_cestovne[[#Totals],[Júl]]+Planovane_naklady_na_marketing[[#Totals],[Júl]]+Planovane_naklady_na_kancelariu[[#Totals],[Júl]]+Planovane_naklady_na_zamestnancov[[#Totals],[Júl]]","v":{"v":134695,"d":"134,695.00 EUR"}},{"$f":"Planovane_naklady_na_skolenie_a_cestovne[[#Totals],[Aug]]+Planovane_naklady_na_marketing[[#Totals],[Aug]]+Planovane_naklady_na_kancelariu[[#Totals],[Aug]]+Planovane_naklady_na_zamestnancov[[#Totals],[Aug]]","v":{"v":138918,"d":"138,918.00 EUR"}},{"$f":"Planovane_naklady_na_skolenie_a_cestovne[[#Totals],[Sep]]+Planovane_naklady_na_marketing[[#Totals],[Sep]]+Planovane_naklady_na_kancelariu[[#Totals],[Sep]]+Planovane_naklady_na_zamestnancov[[#Totals],[Sep]]","v":{"v":135918,"d":"135,918.00 EUR"}},{"$f":"Planovane_naklady_na_skolenie_a_cestovne[[#Totals],[Okt]]+Planovane_naklady_na_marketing[[#Totals],[Okt]]+Planovane_naklady_na_kancelariu[[#Totals],[Okt]]+Planovane_naklady_na_zamestnancov[[#Totals],[Okt]]","v":{"v":140918,"d":"140,918.00 EUR"}},{"$f":"Planovane_naklady_na_skolenie_a_cestovne[[#Totals],[Nov]]+Planovane_naklady_na_marketing[[#Totals],[Nov]]+Planovane_naklady_na_kancelariu[[#Totals],[Nov]]+Planovane_naklady_na_zamestnancov[[#Totals],[Nov]]","v":{"v":136218,"d":"136,218.00 EUR"}},{"$f":"Planovane_naklady_na_skolenie_a_cestovne[[#Totals],[Dec]]+Planovane_naklady_na_marketing[[#Totals],[Dec]]+Planovane_naklady_na_kancelariu[[#Totals],[Dec]]+Planovane_naklady_na_zamestnancov[[#Totals],[Dec]]","v":{"v":140018,"d":"140,018.00 EUR"}},{"$f":"Planovane_naklady_na_skolenie_a_cestovne[[#Totals],[ROK]]+Planovane_naklady_na_marketing[[#Totals],[ROK]]+Planovane_naklady_na_kancelariu[[#Totals],[ROK]]+Planovane_naklady_na_zamestnancov[[#Totals],[ROK]]","v":{"v":1609630,"d":"1,609,630.00 EUR"}}]
[null,"CELKOVÉ plánované výdavky",{"$f":"SUM($C$36:C36)","v":{"v":131420,"d":"131,420.00 EUR"}},{"$f":"SUM($C$36:D36)","v":{"v":258240,"d":"258,240.00 EUR"}},{"$f":"SUM($C$36:E36)","v":{"v":385060,"d":"385,060.00 EUR"}},{"$f":"SUM($C$36:F36)","v":{"v":522755,"d":"522,755.00 EUR"}},{"$f":"SUM($C$36:G36)","v":{"v":652450,"d":"652,450.00 EUR"}},{"$f":"SUM($C$36:H36)","v":{"v":782945,"d":"782,945.00 EUR"}},{"$f":"SUM($C$36:I36)","v":{"v":917640,"d":"917,640.00 EUR"}},{"$f":"SUM($C$36:J36)","v":{"v":1056558,"d":"1,056,558.00 EUR"}},{"$f":"SUM($C$36:K36)","v":{"v":1192476,"d":"1,192,476.00 EUR"}},{"$f":"SUM($C$36:L36)","v":{"v":1333394,"d":"1,333,394.00 EUR"}},{"$f":"SUM($C$36:M36)","v":{"v":1469612,"d":"1,469,612.00 EUR"}},{"$f":"SUM($C$36:N36)","v":{"v":1609630,"d":"1,609,630.00 EUR"}}]

{"sheet":"SKUTOČNÉ VÝDAVKY","index":2,"n_rows":37,"n_cols":16,"rows_kept":37,"merged":[[1,1,2,3],[1,10,1,12],[1,13,2,14],[2,10,2,12],[8,1,8,2],[19,1,19,2],[28,1,28,2],[33,1,33,2]]}
["V tomto hárku zadajte do príslušných tabuliek skutočné náklady na zamestnancov, náklady na kanceláriu, náklady na marketing a náklady na školenie a cestovné. Súčty sa vypočítajú automaticky. V bunkách v tomto stĺpci sú užitočné pokyny na používanie tohto hárka. Začnite stlačením šípky nadol.",{"$nulls":14}," "]
["Názov spoločnosti v bunke napravo sa aktualizuje automaticky. V bunke K2 je uvedený názov hárka. Do bunky N2 pridajte logo.",{"$f":"'PLÁNOVANÉ VÝDAVKY'!B2:D3","v":"Názov spoločnosti"},{"$nulls":8},{"$f":"worksheet_title","v":"Podrobné odhady výdavkov"},null,null,"V tejto bunke je zástupné logo."]
["V bunke K3 je uvedený tip.",{"$nulls":9},"Tieňované bunky sú výpočty."]
["V bunke napravo je uvedené označenie Skutočné výdavky, v bunkách C4 až N4 sú mesiace a v bunke O4 je označenie Rok.","SKUTOČNÉ VÝDAVKY","JAN","FEB","MAR","APR","MÁJ","JÚN","JÚL","AUG","SEP","OKT","NOV","DEC","ROK"]
["Do tabuľky skutočných Náklady na zamestnancov začínajúcej v bunke napravo skutocne naklady na zamestnancov. Ďalší pokyn je v bunke A10.","Náklady na zamestnancov","Jan","Feb","Mar","Apr","Máj","Jún","Júl","Aug","Sep","Okt","Nov","Dec","ROK"]
[null,"Mzdy",{"v":85000,"d":"85,000.00 EUR"},{"v":85000,"d":"85,000.00 EUR"},{"v":85000,"d":"85,000.00 EUR"},{"v":88000,"d":"88,000.00 EUR"},{"v":88000,"d":"88,000.00 EUR"},{"v":88000,"d":"88,000.00 EUR"},{"$nulls":6},{"$f":"SUM(C6:N6)","v":{"v":519000,"d":"519,000.00 EUR"}}]
[null,"Benefity",{"$f":"C6*0.27","v":{"v":22950,"d":"22,950.00 EUR"}},{"v":22950,"d":"22,950.00 EUR"},{"v":22950,"d":"22,950.00 EUR"},{"v":23760,"d":"23,760.00 EUR"},{"v":23760,"d":"23,760.00 EUR"},{"v":23760,"d":"23,760.00 EUR"},{"v":0,"d":"0.00 EUR"},{"v":0,"d":"0.00 EUR"},{"v":0,"d":"0.00 EUR"},{"v":0,"d":"0.00 EUR"},{"v":0,"d":"0.00 EUR"},{"v":0,"d":"0.00 EUR"},{"$f":"SUM(C7:N7)","v":{"v":140130,"d":"140,130.00 EUR"}}]
[null,"Medzisúčet",{"$f":"SUBTOTAL(109,Skutocne_naklady_na_zamestnancov[Jan])","v":{"v":107950,"d":"107,950.00 EUR"}},{"$f":"SUBTOTAL(109,Skutocne_naklady_na_zamestnancov[Feb])","v":{"v":107950,"d":"107,950.00 EUR"}},{"$f":"SUBTOTAL(109,Skutocne_naklady_na_zamestnancov[Mar])","v":{"v":107950,"d":"107,950.00 EUR"}},{"$f":"SUBTOTAL(109,Skutocne_naklady_na_zamestnancov[Apr])","v":{"v":111760,"d":"111,760.00 EUR"}},{"$f":"SUBTOTAL(109,Skutocne_naklady_na_zamestnancov[Máj])","v":{"v":111760,"d":"111,760.00 EUR"}},{"$f":"SUBTOTAL(109,Skutocne_naklady_na_zamestnancov[Jún])","v":{"v":111760,"d":"111,760.00 EUR"}},{"$f":"SUBTOTAL(109,Skutocne_naklady_na_zamestnancov[Júl])","v":{"v":0,"d":"0.00 EUR"}},{"$f":"SUBTOTAL(109,Skutocne_naklady_na_zamestnancov[Aug])","v":{"v":0,"d":"0.00 EUR"}},{"$f":"SUBTOTAL(109,Skutocne_naklady_na_zamestnancov[Sep])","v":{"v":0,"d":"0.00 EUR"}},{"$f":"SUBTOTAL(109,Skutocne_naklady_na_zamestnancov[Okt])","v":{"v":0,"d":"0.00 EUR"}},{"$f":"SUBTOTAL(109,Skutocne_naklady_na_zamestnancov[Nov])","v":{"v":0,"d":"0.00 EUR"}},{"$f":"SUBTOTAL(109,Skutocne_naklady_na_zamestnancov[Dec])","v":{"v":0,"d":"0.00 EUR"}},{"$f":"SUBTOTAL(109,Skutocne_naklady_na_zamestnancov[ROK])","v":{"v":659130,"d":"659,130.00 EUR"}}]
[]
["Do tabuľky skutočných Náklady na kanceláriu začínajúcej v bunke napravo skutocne naklady na kancelariu. Ďalší pokyn je v bunke A21.","Náklady na kanceláriu","Jan","Feb","Mar","Apr","Máj","Jún","Júl","Aug","Sep","Okt","Nov","Dec","ROK"]
[null,"Prenájom kancelárie",{"v":9800,"d":"9,800.00 EUR"},{"v":9800,"d":"9,800.00 EUR"},{"v":9800,"d":"9,800.00 EUR"},{"v":9800,"d":"9,800.00 EUR"},{"v":9800,"d":"9,800.00 EUR"},{"v":9800,"d":"9,800.00 EUR"},{"$nulls":6},{"$f":"SUM(C11:N11)","v":{"v":58800,"d":"58,800.00 EUR"}}]
[null,"Plyn",{"v":4,"d":"4.00 EUR"},{"v":430,"d":"430.00 EUR"},{"v":385,"d":"385.00 EUR"},{"v":230,"d":"230.00 EUR"},{"v":87,"d":"87.00 EUR"},{"v":88,"d":"88.00 EUR"},{"$nulls":6},{"v":1224,"d":"1,224.00 EUR"}]
[null,"Elektrina",{"v":288,"d":"288.00 EUR"},{"v":278,"d":"278.00 EUR"},{"v":268,"d":"268.00 EUR"},{"v":299,"d":"299.00 EUR"},{"v":306,"d":"306.00 EUR"},{"v":290,"d":"290.00 EUR"},{"$nulls":6},{"v":1729,"d":"1,729.00 EUR"}]
[null,"Voda",{"v":35,"d":"35.00 EUR"},{"v":33,"d":"33.00 EUR"},{"v":34,"d":"34.00 EUR"},{"v":36,"d":"36.00 EUR"},{"v":34,"d":"34.00 EUR"},{"v":36,"d":"36.00 EUR"},{"$nulls":6},{"v":208,"d":"208.00 EUR"}]
[null,"Telefón",{"v":224,"d":"224.00 EUR"},{"v":235,"d":"235.00 EUR"},{"v":265,"d":"265.00 EUR"},{"v":245,"d":"245.00 EUR"},{"v":245,"d":"245.00 EUR"},{"v":220,"d":"220.00 EUR"},{"$nulls":6},{"v":1434,"d":"1,434.00 EUR"}]
[null,"Prístup na Internet",{"v":180,"d":"180.00 EUR"},{"v":180,"d":"180.00 EUR"},{"v":180,"d":"180.00 EUR"},{"v":180,"d":"180.00 EUR"},{"v":180,"d":"180.00 EUR"},{"v":180,"d":"180.00 EUR"},{"$nulls":6},{"v":1080,"d":"1,080.00 EUR"}]
[null,"Kancelárske potreby",{"v":256,"d":"256.00 EUR"},{"v":142,"d":"142.00 EUR"},{"v":160,"d":"160.00 EUR"},{"v":221,"d":"221.00 EUR"},{"v":256,"d":"256.00 EUR"},{"v":240,"d":"240.00 EUR"},{"$nulls":6},{"v":1275,"d":"1,275.00 EUR"}]
[null,"Zabezpečenie",{"v":600,"d":"600.00 EUR"},{"v":600,"d":"600.00 EUR"},{"v":600,"d":"600.00 EUR"},{"v":600,"d":"600.00 EUR"},{"v":600,"d":"600.00 EUR"},{"v":600,"d":"600.00 EUR"},{"$nulls":6},{"v":3600,"d":"3,600.00 EUR"}]
[null,"Medzisúčet",{"$f":"SUBTOTAL(109,Skutocne_naklady_na_kancelariu[Jan])","v":{"v":11387,"d":"11,387.00 EUR"}},{"$f":"SUBTOTAL(109,Skutocne_naklady_na_kancelariu[Feb])","v":{"v":11698,"d":"11,698.00 EUR"}},{"$f":"SUBTOTAL(109,Skutocne_naklady_na_kancelariu[Mar])","v":{"v":11692,"d":"11,692.00 EUR"}},{"$f":"SUBTOTAL(109,Skutocne_naklady_na_kancelariu[Apr])","v":{"v":11611,"d":"11,611.00 EUR"}},{"$f":"SUBTOTAL(109,Skutocne_naklady_na_kancelariu[Máj])","v":{"v":11508,"d":"11,508.00 EUR"}},{"$f":"SUBTOTAL(109,Skutocne_naklady_na_kancelariu[Jún])","v":{"v":11454,"d":"11,454.00 EUR"}},{"$f":"SUBTOTAL(109,Skutocne_naklady_na_kancelariu[Júl])","v":{"v":0,"d":"0.00 EUR"}},{"$f":"SUBTOTAL(109,Skutocne_naklady_na_kancelariu[Aug])","v":{"v":0,"d":"0.00 EUR"}},{"$f":"SUBTOTAL(109,Skutocne_naklady_na_kancelariu[Sep])","v":{"v":0,"d":"0.00 EUR"}},{"$f":"SUBTOTAL(109,Skutocne_naklady_na_kancelariu[Okt])","v":{"v":0,"d":"0.00 EUR"}},{"$f":"SUBTOTAL(109,Skutocne_naklady_na_kancelariu[Nov])","v":{"v":0,"d":"0.00 EUR"}},{"$f":"SUBTOTAL(109,Skutocne_naklady_na_kancelariu[Dec])","v":{"v":0,"d":"0.00 EUR"}},{"$f":"SUBTOTAL(109,Skutocne_naklady_na_kancelariu[ROK])","v":{"v":69350,"d":"69,350.00 EUR"}}]
[]
["Do tabuľky skutočných Náklady na marketing začínajúcej v bunke napravo skutocne naklady na marketing. Ďalší pokyn je v bunke A30.","Náklady na marketing","Jan","Feb","Mar","Apr","Máj","Jún","Júl","Aug","Sep","Okt","Nov","Dec","ROK"]
[null,"Hosťovanie webovej lokality",{"v":500,"d":"500.00 EUR"},{"v":500,"d":"500.00 EUR"},{"v":500,"d":"500.00 EUR"},{"v":500,"d":"500.00 EUR"},{"v":500,"d":"500.00 EUR"},{"v":500,"d":"500.00 EUR"},{"$nulls":6},{"$f":"SUM(C22:N22)","v":{"v":3000,"d":"3,000.00 EUR"}}]
[null,"Aktualizácie webovej lokality",{"v":200,"d":"200.00 EUR"},{"v":200,"d":"200.00 EUR"},{"v":200,"d":"200.00 EUR"},{"v":200,"d":"200.00 EUR"},{"v":200,"d":"200.00 EUR"},{"v":1500,"d":"1,500.00 EUR"},{"$nulls":6},{"v":2500,"d":"2,500.00 EUR"}]
[null,"Príprava sprievodnej dokumentácie",{"v":4800,"d":"4,800.00 EUR"},{"v":0,"d":"0.00 EUR"},{"v":0,"d":"0.00 EUR"},{"v":5500,"d":"5,500.00 EUR"},{"v":0,"d":"0.00 EUR"},{"v":0,"d":"0.00 EUR"},{"$nulls":6},{"v":10300,"d":"10,300.00 EUR"}]
[null,"Tlač sprievodnej dokumentácie",{"v":100,"d":"100.00 EUR"},{"v":500,"d":"500.00 EUR"},{"v":100,"d":"100.00 EUR"},{"v":100,"d":"100.00 EUR"},{"v":600,"d":"600.00 EUR"},{"v":180,"d":"180.00 EUR"},{"$nulls":6},{"v":1580,"d":"1,580.00 EUR"}]
[null,"Marketingové podujatia",{"v":1800,"d":"1,800.00 EUR"},{"v":2200,"d":"2,200.00 EUR"},{"v":2200,"d":"2,200.00 EUR"},{"v":4700,"d":"4,700.00 EUR"},{"v":1500,"d":"1,500.00 EUR"},{"v":2300,"d":"2,300.00 EUR"},{"$nulls":6},{"v":14700,"d":"14,700.00 EUR"}]
[null,"Rôzne výdavky",{"v":145,"d":"145.00 EUR"},{"v":156,"d":"156.00 EUR"},{"v":123,"d":"123.00 EUR"},{"v":223,"d":"223.00 EUR"},{"v":187,"d":"187.00 EUR"},{"v":245,"d":"245.00 EUR"},{"$nulls":6},{"v":1079,"d":"1,079.00 EUR"}]
[null,"Medzisúčet",{"$f":"SUBTOTAL(109,Skutocne_naklady_na_marketing[Jan])","v":{"v":7545,"d":"7,545.00 EUR"}},{"$f":"SUBTOTAL(109,Skutocne_naklady_na_marketing[Feb])","v":{"v":3556,"d":"3,556.00 EUR"}},{"$f":"SUBTOTAL(109,Skutocne_naklady_na_marketing[Mar])","v":{"v":3123,"d":"3,123.00 EUR"}},{"$f":"SUBTOTAL(109,Skutocne_naklady_na_marketing[Apr])","v":{"v":11223,"d":"11,223.00 EUR"}},{"$f":"SUBTOTAL(109,Skutocne_naklady_na_marketing[Máj])","v":{"v":2987,"d":"2,987.00 EUR"}},{"$f":"SUBTOTAL(109,Skutocne_naklady_na_marketing[Jún])","v":{"v":4725,"d":"4,725.00 EUR"}},{"$f":"SUBTOTAL(109,Skutocne_naklady_na_marketing[Júl])","v":{"v":0,"d":"0.00 EUR"}},{"$f":"SUBTOTAL(109,Skutocne_naklady_na_marketing[Aug])","v":{"v":0,"d":"0.00 EUR"}},{"$f":"SUBTOTAL(109,Skutocne_naklady_na_marketing[Sep])","v":{"v":0,"d":"0.00 EUR"}},{"$f":"SUBTOTAL(109,Skutocne_naklady_na_marketing[Okt])","v":{"v":0,"d":"0.00 EUR"}},{"$f":"SUBTOTAL(109,Skutocne_naklady_na_marketing[Nov])","v":{"v":0,"d":"0.00 EUR"}},{"$f":"SUBTOTAL(109,Skutocne_naklady_na_marketing[Dec])","v":{"v":0,"d":"0.00 EUR"}},{"$f":"SUBTOTAL(109,Skutocne_naklady_na_marketing[ROK])","v":{"v":33159,"d":"33,159.00 EUR"}}]
[]
["Do tabuľky skutočných Náklady na školenie a cestovné začínajúcej v bunke napravo skutocne naklady na skolenie a cestovne. Ďalší pokyn je v bunke A35.","Školenie/cestovné","Jan","Feb","Mar","Apr","Máj","Jún","Júl","Aug","Sep","Okt","Nov","Dec","ROK"]
[null,"Školiace kurzy",{"v":1600,"d":"1,600.00 EUR"},{"v":2400,"d":"2,400.00 EUR"},{"v":1400,"d":"1,400.00 EUR"},{"v":1600,"d":"1,600.00 EUR"},{"v":1200,"d":"1,200.00 EUR"},{"v":2800,"d":"2,800.00 EUR"},{"$nulls":6},{"$f":"SUM(C31:N31)","v":{"v":11000,"d":"11,000.00 EUR"}}]
[null,"Cestovné náklady súvisiace so školením",{"v":1200,"d":"1,200.00 EUR"},{"v":2200,"d":"2,200.00 EUR"},{"v":1400,"d":"1,400.00 EUR"},{"v":1200,"d":"1,200.00 EUR"},{"v":800,"d":"800.00 EUR"},{"v":3500,"d":"3,500.00 EUR"},{"$nulls":6},{"$f":"SUM(C32:N32)","v":{"v":10300,"d":"10,300.00 EUR"}}]
[null,"Medzisúčet",{"$f":"SUBTOTAL(109,Skutocne_naklady_na_skolenie_a_cestovne[Jan])","v":{"v":2800,"d":"2,800.00 EUR"}},{"$f":"SUBTOTAL(109,Skutocne_naklady_na_skolenie_a_cestovne[Feb])","v":{"v":4600,"d":"4,600.00 EUR"}},{"$f":"SUBTOTAL(109,Skutocne_naklady_na_skolenie_a_cestovne[Mar])","v":{"v":2800,"d":"2,800.00 EUR"}},{"$f":"SUBTOTAL(109,Skutocne_naklady_na_skolenie_a_cestovne[Apr])","v":{"v":2800,"d":"2,800.00 EUR"}},{"$f":"SUBTOTAL(109,Skutocne_naklady_na_skolenie_a_cestovne[Máj])","v":{"v":2000,"d":"2,000.00 EUR"}},{"$f":"SUBTOTAL(109,Skutocne_naklady_na_skolenie_a_cestovne[Jún])","v":{"v":6300,"d":"6,300.00 EUR"}},{"$f":"SUBTOTAL(109,Skutocne_naklady_na_skolenie_a_cestovne[Júl])","v":{"v":0,"d":"0.00 EUR"}},{"$f":"SUBTOTAL(109,Skutocne_naklady_na_skolenie_a_cestovne[Aug])","v":{"v":0,"d":"0.00 EUR"}},{"$f":"SUBTOTAL(109,Skutocne_naklady_na_skolenie_a_cestovne[Sep])","v":{"v":0,"d":"0.00 EUR"}},{"$f":"SUBTOTAL(109,Skutocne_naklady_na_skolenie_a_cestovne[Okt])","v":{"v":0,"d":"0.00 EUR"}},{"$f":"SUBTOTAL(109,Skutocne_naklady_na_skolenie_a_cestovne[Nov])","v":{"v":0,"d":"0.00 EUR"}},{"$f":"SUBTOTAL(109,Skutocne_naklady_na_skolenie_a_cestovne[Dec])","v":{"v":0,"d":"0.00 EUR"}},{"$f":"SUBTOTAL(109,Skutocne_naklady_na_skolenie_a_cestovne[ROK])","v":{"v":21300,"d":"21,300.00 EUR"}}]
[]
["V tabuľke celkových skutočných Náklady začínajúcej v bunke napravo sa automaticky vypočítajú celkove skutocne vydavky.","CELKOVÉ plánované výdavky","Jan","Feb","Mar","Apr","Máj","Jún","Júl","Aug","Sep","Okt","Nov","Dec","Rok"]
[null,"Mesačné skutočné výdavky",{"$f":"Skutocne_naklady_na_skolenie_a_cestovne[[#Totals],[Jan]]+Skutocne_naklady_na_marketing[[#Totals],[Jan]]+Skutocne_naklady_na_kancelariu[[#Totals],[Jan]]+Skutocne_naklady_na_zamestnancov[[#Totals],[Jan]]","v":{"v":129682,"d":"129,682.00 EUR"}},{"$f":"Skutocne_naklady_na_skolenie_a_cestovne[[#Totals],[Feb]]+Skutocne_naklady_na_marketing[[#Totals],[Feb]]+Skutocne_naklady_na_kancelariu[[#Totals],[Feb]]+Skutocne_naklady_na_zamestnancov[[#Totals],[Feb]]","v":{"v":127804,"d":"127,804.00 EUR"}},{"$f":"Skutocne_naklady_na_skolenie_a_cestovne[[#Totals],[Mar]]+Skutocne_naklady_na_marketing[[#Totals],[Mar]]+Skutocne_naklady_na_kancelariu[[#Totals],[Mar]]+Skutocne_naklady_na_zamestnancov[[#Totals],[Mar]]","v":{"v":125565,"d":"125,565.00 EUR"}},{"$f":"Skutocne_naklady_na_skolenie_a_cestovne[[#Totals],[Apr]]+Skutocne_naklady_na_marketing[[#Totals],[Apr]]+Skutocne_naklady_na_kancelariu[[#Totals],[Apr]]+Skutocne_naklady_na_zamestnancov[[#Totals],[Apr]]","v":{"v":137394,"d":"137,394.00 EUR"}},{"$f":"Skutocne_naklady_na_skolenie_a_cestovne[[#Totals],[Máj]]+Skutocne_naklady_na_marketing[[#Totals],[Máj]]+Skutocne_naklady_na_kancelariu[[#Totals],[Máj]]+Skutocne_naklady_na_zamestnancov[[#Totals],[Máj]]","v":{"v":128255,"d":"128,255.00 EUR"}},{"$f":"Skutocne_naklady_na_skolenie_a_cestovne[[#Totals],[Jún]]+Skutocne_naklady_na_marketing[[#Totals],[Jún]]+Skutocne_naklady_na_kancelariu[[#Totals],[Jún]]+Skutocne_naklady_na_zamestnancov[[#Totals],[Jún]]","v":{"v":134239,"d":"134,239.00 EUR"}},{"$f":"Skutocne_naklady_na_skolenie_a_cestovne[[#Totals],[Júl]]+Skutocne_naklady_na_marketing[[#Totals],[Júl]]+Skutocne_naklady_na_kancelariu[[#Totals],[Júl]]+Skutocne_naklady_na_zamestnancov[[#Totals],[Júl]]","v":{"v":0,"d":"0.00 EUR"}},{"$f":"Skutocne_naklady_na_skolenie_a_cestovne[[#Totals],[Aug]]+Skutocne_naklady_na_marketing[[#Totals],[Aug]]+Skutocne_naklady_na_kancelariu[[#Totals],[Aug]]+Skutocne_naklady_na_zamestnancov[[#Totals],[Aug]]","v":{"v":0,"d":"0.00 EUR"}},{"$f":"Skutocne_naklady_na_skolenie_a_cestovne[[#Totals],[Sep]]+Skutocne_naklady_na_marketing[[#Totals],[Sep]]+Skutocne_naklady_na_kancelariu[[#Totals],[Sep]]+Skutocne_naklady_na_zamestnancov[[#Totals],[Sep]]","v":{"v":0,"d":"0.00 EUR"}},{"$f":"Skutocne_naklady_na_skolenie_a_cestovne[[#Totals],[Okt]]+Skutocne_naklady_na_marketing[[#Totals],[Okt]]+Skutocne_naklady_na_kancelariu[[#Totals],[Okt]]+Skutocne_naklady_na_zamestnancov[[#Totals],[Okt]]","v":{"v":0,"d":"0.00 EUR"}},{"$f":"Skutocne_naklady_na_skolenie_a_cestovne[[#Totals],[Nov]]+Skutocne_naklady_na_marketing[[#Totals],[Nov]]+Skutocne_naklady_na_kancelariu[[#Totals],[Nov]]+Skutocne_naklady_na_zamestnancov[[#Totals],[Nov]]","v":{"v":0,"d":"0.00 EUR"}},{"$f":"Skutocne_naklady_na_skolenie_a_cestovne[[#Totals],[Dec]]+Skutocne_naklady_na_marketing[[#Totals],[Dec]]+Skutocne_naklady_na_kancelariu[[#Totals],[Dec]]+Skutocne_naklady_na_zamestnancov[[#Totals],[Dec]]","v":{"v":0,"d":"0.00 EUR"}},{"$f":"Skutocne_naklady_na_skolenie_a_cestovne[[#Totals],[ROK]]+Skutocne_naklady_na_marketing[[#Totals],[ROK]]+Skutocne_naklady_na_kancelariu[[#Totals],[ROK]]+Skutocne_naklady_na_zamestnancov[[#Totals],[ROK]]","v":{"v":782939,"d":"782,939.00 EUR"}}]
[null,"CELKOVÉ skutočné výdavky",{"$f":"SUM($C$36:C36)","v":{"v":129682,"d":"129,682.00 EUR"}},{"$f":"SUM($C$36:D36)","v":{"v":257486,"d":"257,486.00 EUR"}},{"$f":"SUM($C$36:E36)","v":{"v":383051,"d":"383,051.00 EUR"}},{"$f":"SUM($C$36:F36)","v":{"v":520445,"d":"520,445.00 EUR"}},{"$f":"SUM($C$36:G36)","v":{"v":648700,"d":"648,700.00 EUR"}},{"$f":"SUM($C$36:H36)","v":{"v":782939,"d":"782,939.00 EUR"}},{"$f":"SUM($C$36:I36)","v":{"v":782939,"d":"782,939.00 EUR"}},{"$f":"SUM($C$36:J36)","v":{"v":782939,"d":"782,939.00 EUR"}},{"$f":"SUM($C$36:K36)","v":{"v":782939,"d":"782,939.00 EUR"}},{"$f":"SUM($C$36:L36)","v":{"v":782939,"d":"782,939.00 EUR"}},{"$f":"SUM($C$36:M36)","v":{"v":782939,"d":"782,939.00 EUR"}},{"$f":"SUM($C$36:N36)","v":{"v":782939,"d":"782,939.00 EUR"}}]

{"sheet":"ODCHÝLKY VO VÝDAVKOCH","index":3,"n_rows":37,"n_cols":16,"rows_kept":37,"merged":[[1,1,2,3],[1,10,1,12],[1,13,2,14],[2,10,2,12],[8,1,8,2],[19,1,19,2],[28,1,28,2],[33,1,33,2]]}
["V príslušných tabuľkách v tomto hárku sa automaticky vypočítajú odchýlky vo výdavkoch týkajúce sa Náklady na zamestnancov, Náklady na kanceláriu, Náklady na marketing a Náklady na školenie a cestovné. V bunkách v tomto stĺpci sú užitočné pokyny na používanie tohto hárka. Začnite stlačením šípky nadol.",{"$nulls":14}," "]
["Názov spoločnosti v bunke napravo sa aktualizuje automaticky. V bunke K2 je uvedený názov hárka. Do bunky N2 pridajte logo.",{"$f":"'PLÁNOVANÉ VÝDAVKY'!B2:D3","v":"Názov spoločnosti"},{"$nulls":8},{"$f":"worksheet_title","v":"Podrobné odhady výdavkov"},null,null,"V tejto bunke je zástupné logo."]
["V bunke K3 je uvedený tip.",{"$nulls":9},"Tieňované bunky sú výpočty."]
["V bunke napravo je uvedené označenie Odchýlky vo výdavkoch, v bunkách C4 až N4 sú mesiace a v bunke O4 je označenie Rok.","ODCHÝLKY VO VÝDAVKOCH","JAN","FEB","MAR","APR","MÁJ","JÚN","JÚL","AUG","SEP","OKT","NOV","DEC","ROK"]
["V tabuľke odchýlok v Náklady na zamestnancov začínajúcej v bunke napravo sa automaticky vypočítajú odchylky v nakladoch na zamestnancov. Ďalší pokyn je v bunke A10.","Náklady na zamestnancov","Jan","Feb","Mar","Apr","Máj","Jún","Júl","Aug","Sep","Okt","Nov","Dec","ROK"]
[null,"Mzdy",{"$f":"INDEX(Planovane_naklady_na_zamestnancov[],MATCH(INDEX(Odchylky_v_nakladoch[],ROW()-ROW(Odchylky_v_nakladoch[[#Headers],[Jan]]),1),INDEX(Planovane_naklady_na_zamestnancov[],,1),0),MATCH(Odchylky_v_nakladoch[[#Headers],[Jan]],Planovane_naklady_na_zamestnancov[#Headers],0))-INDEX(Skutocne_naklady_na_zamestnancov[],MATCH(INDEX(Odchylky_v_nakladoch[],ROW()-ROW(Odchylky_v_nakladoch[[#Headers],[Jan]]),1),INDEX(Planovane_naklady_na_zamestnancov[],,1),0),MATCH(Odchylky_v_nakladoch[[#Headers],[Jan]],Skutocne_naklady_na_zamestnancov[#Headers],0))","v":{"v":0,"d":"0.00 EUR"}},{"$f":"INDEX(Planovane_naklady_na_zamestnancov[],MATCH(INDEX(Odchylky_v_nakladoch[],ROW()-ROW(Odchylky_v_nakladoch[[#Headers],[Feb]]),1),INDEX(Planovane_naklady_na_zamestnancov[],,1),0),MATCH(Odchylky_v_nakladoch[[#Headers],[Feb]],Planovane_naklady_na_zamestnancov[#Headers],0))-INDEX(Skutocne_naklady_na_zamestnancov[],MATCH(INDEX(Odchylky_v_nakladoch[],ROW()-ROW(Odchylky_v_nakladoch[[#Headers],[Feb]]),1),INDEX(Planovane_naklady_na_zamestnancov[],,1),0),MATCH(Odchylky_v_nakladoch[[#Headers],[Feb]],Skutocne_naklady_na_zamestnancov[#Headers],0))","v":{"v":0,"d":"0.00 EUR"}},{"$f":"INDEX(Planovane_naklady_na_zamestnancov[],MATCH(INDEX(Odchylky_v_nakladoch[],ROW()-ROW(Odchylky_v_nakladoch[[#Headers],[Mar]]),1),INDEX(Planovane_naklady_na_zamestnancov[],,1),0),MATCH(Odchylky_v_nakladoch[[#Headers],[Mar]],Planovane_naklady_na_zamestnancov[#Headers],0))-INDEX(Skutocne_naklady_na_zamestnancov[],MATCH(INDEX(Odchylky_v_nakladoch[],ROW()-ROW(Odchylky_v_nakladoch[[#Headers],[Mar]]),1),INDEX(Planovane_naklady_na_zamestnancov[],,1),0),MATCH(Odchylky_v_nakladoch[[#Headers],[Mar]],Skutocne_naklady_na_zamestnancov[#Headers],0))","v":{"v":0,"d":"0.00 EUR"}},{"$f":"INDEX(Planovane_naklady_na_zamestnancov[],MATCH(INDEX(Odchylky_v_nakladoch[],ROW()-ROW(Odchylky_v_nakladoch[[#Headers],[Apr]]),1),INDEX(Planovane_naklady_na_zamestnancov[],,1),0),MATCH(Odchylky_v_nakladoch[[#Headers],[Apr]],Planovane_naklady_na_zamestnancov[#Headers],0))-INDEX(Skutocne_naklady_na_zamestnancov[],MATCH(INDEX(Odchylky_v_nakladoch[],ROW()-ROW(Odchylky_v_nakladoch[[#Headers],[Apr]]),1),INDEX(Planovane_naklady_na_zamestnancov[],,1),0),MATCH(Odchylky_v_nakladoch[[#Headers],[Apr]],Skutocne_naklady_na_zamestnancov[#Headers],0))","v":{"v":-500,"d":"-500.00 EUR"}},{"$f":"INDEX(Planovane_naklady_na_zamestnancov[],MATCH(INDEX(Odchylky_v_nakladoch[],ROW()-ROW(Odchylky_v_nakladoch[[#Headers],[Máj]]),1),INDEX(Planovane_naklady_na_zamestnancov[],,1),0),MATCH(Odchylky_v_nakladoch[[#Headers],[Máj]],Planovane_naklady_na_zamestnancov[#Headers],0))-INDEX(Skutocne_naklady_na_zamestnancov[],MATCH(INDEX(Odchylky_v_nakladoch[],ROW()-ROW(Odchylky_v_nakladoch[[#Headers],[Máj]]),1),INDEX(Planovane_naklady_na_zamestnancov[],,1),0),MATCH(Odchylky_v_nakladoch[[#Headers],[Máj]],Skutocne_naklady_na_zamestnancov[#Headers],0))","v":{"v":-500,"d":"-500.00 EUR"}},{"$f":"INDEX(Planovane_naklady_na_zamestnancov[],MATCH(INDEX(Odchylky_v_nakladoch[],ROW()-ROW(Odchylky_v_nakladoch[[#Headers],[Jún]]),1),INDEX(Planovane_naklady_na_zamestnancov[],,1),0),MATCH(Odchylky_v_nakladoch[[#Headers],[Jún]],Planovane_naklady_na_zamestnancov[#Headers],0))-INDEX(Skutocne_naklady_na_zamestnancov[],MATCH(INDEX(Odchylky_v_nakladoch[],ROW()-ROW(Odchylky_v_nakladoch[[#Headers],[Jún]]),1),INDEX(Planovane_naklady_na_zamestnancov[],,1),0),MATCH(Odchylky_v_nakladoch[[#Headers],[Jún]],Skutocne_naklady_na_zamestnancov[#Headers],0))","v":{"v":-500,"d":"-500.00 EUR"}},{"$f":"INDEX(Planovane_naklady_na_zamestnancov[],MATCH(INDEX(Odchylky_v_nakladoch[],ROW()-ROW(Odchylky_v_nakladoch[[#Headers],[Júl]]),1),INDEX(Planovane_naklady_na_zamestnancov[],,1),0),MATCH(Odchylky_v_nakladoch[[#Headers],[Júl]],Planovane_naklady_na_zamestnancov[#Headers],0))-INDEX(Skutocne_naklady_na_zamestnancov[],MATCH(INDEX(Odchylky_v_nakladoch[],ROW()-ROW(Odchylky_v_nakladoch[[#Headers],[Júl]]),1),INDEX(Planovane_naklady_na_zamestnancov[],,1),0),MATCH(Odchylky_v_nakladoch[[#Headers],[Júl]],Skutocne_naklady_na_zamestnancov[#Headers],0))","v":{"v":87500,"d":"87,500.00 EUR"}},{"$f":"INDEX(Planovane_naklady_na_zamestnancov[],MATCH(INDEX(Odchylky_v_nakladoch[],ROW()-ROW(Odchylky_v_nakladoch[[#Headers],[Aug]]),1),INDEX(Planovane_naklady_na_zamestnancov[],,1),0),MATCH(Odchylky_v_nakladoch[[#Headers],[Aug]],Planovane_naklady_na_zamestnancov[#Headers],0))-INDEX(Skutocne_naklady_na_zamestnancov[],MATCH(INDEX(Odchylky_v_nakladoch[],ROW()-ROW(Odchylky_v_nakladoch[[#Headers],[Aug]]),1),INDEX(Planovane_naklady_na_zamestnancov[],,1),0),MATCH(Odchylky_v_nakladoch[[#Headers],[Aug]],Skutocne_naklady_na_zamestnancov[#Headers],0))","v":{"v":92400,"d":"92,400.00 EUR"}},{"$f":"INDEX(Planovane_naklady_na_zamestnancov[],MATCH(INDEX(Odchylky_v_nakladoch[],ROW()-ROW(Odchylky_v_nakladoch[[#Headers],[Sep]]),1),INDEX(Planovane_naklady_na_zamestnancov[],,1),0),MATCH(Odchylky_v_nakladoch[[#Headers],[Sep]],Planovane_naklady_na_zamestnancov[#Headers],0))-INDEX(Skutocne_naklady_na_zamestnancov[],MATCH(INDEX(Odchylky_v_nakladoch[],ROW()-ROW(Odchylky_v_nakladoch[[#Headers],[Sep]]),1),INDEX(Planovane_naklady_na_zamestnancov[],,1),0),MATCH(Odchylky_v_nakladoch[[#Headers],[Sep]],Skutocne_naklady_na_zamestnancov[#Headers],0))","v":{"v":92400,"d":"92,400.00 EUR"}},{"$f":"INDEX(Planovane_naklady_na_zamestnancov[],MATCH(INDEX(Odchylky_v_nakladoch[],ROW()-ROW(Odchylky_v_nakladoch[[#Headers],[Okt]]),1),INDEX(Planovane_naklady_na_zamestnancov[],,1),0),MATCH(Odchylky_v_nakladoch[[#Headers],[Okt]],Planovane_naklady_na_zamestnancov[#Headers],0))-INDEX(Skutocne_naklady_na_zamestnancov[],MATCH(INDEX(Odchylky_v_nakladoch[],ROW()-ROW(Odchylky_v_nakladoch[[#Headers],[Okt]]),1),INDEX(Planovane_naklady_na_zamestnancov[],,1),0),MATCH(Odchylky_v_nakladoch[[#Headers],[Okt]],Skutocne_naklady_na_zamestnancov[#Headers],0))","v":{"v":92400,"d":"92,400.00 EUR"}},{"$f":"INDEX(Planovane_naklady_na_zamestnancov[],MATCH(INDEX(Odchylky_v_nakladoch[],ROW()-ROW(Odchylky_v_nakladoch[[#Headers],[Nov]]),1),INDEX(Planovane_naklady_na_zamestnancov[],,1),0),MATCH(Odchylky_v_nakladoch[[#Headers],[Nov]],Planovane_naklady_na_zamestnancov[#Headers],0))-INDEX(Skutocne_naklady_na_zamestnancov[],MATCH(INDEX(Odchylky_v_nakladoch[],ROW()-ROW(Odchylky_v_nakladoch[[#Headers],[Nov]]),1),INDEX(Planovane_naklady_na_zamestnancov[],,1),0),MATCH(Odchylky_v_nakladoch[[#Headers],[Nov]],Skutocne_naklady_na_zamestnancov[#Headers],0))","v":{"v":92400,"d":"92,400.00 EUR"}},{"$f":"INDEX(Planovane_naklady_na_zamestnancov[],MATCH(INDEX(Odchylky_v_nakladoch[],ROW()-ROW(Odchylky_v_nakladoch[[#Headers],[Dec]]),1),INDEX(Planovane_naklady_na_zamestnancov[],,1),0),MATCH(Odchylky_v_nakladoch[[#Headers],[Dec]],Planovane_naklady_na_zamestnancov[#Headers],0))-INDEX(Skutocne_naklady_na_zamestnancov[],MATCH(INDEX(Odchylky_v_nakladoch[],ROW()-ROW(Odchylky_v_nakladoch[[#Headers],[Dec]]),1),INDEX(Planovane_naklady_na_zamestnancov[],,1),0),MATCH(Odchylky_v_nakladoch[[#Headers],[Dec]],Skutocne_naklady_na_zamestnancov[#Headers],0))","v":{"v":92400,"d":"92,400.00 EUR"}},{"$f":"SUM(Odchylky_v_nakladoch[[#This Row],[Jan]:[Dec]])","v":{"v":548000,"d":"548,000.00 EUR"}}]
[null,"Benefity",{"$f":"INDEX(Planovane_naklady_na_zamestnancov[],MATCH(INDEX(Odchylky_v_nakladoch[],ROW()-ROW(Odchylky_v_nakladoch[[#Headers],[Jan]]),1),INDEX(Planovane_naklady_na_zamestnancov[],,1),0),MATCH(Odchylky_v_nakladoch[[#Headers],[Jan]],Planovane_naklady_na_zamestnancov[#Headers],0))-INDEX(Skutocne_naklady_na_zamestnancov[],MATCH(INDEX(Odchylky_v_nakladoch[],ROW()-ROW(Odchylky_v_nakladoch[[#Headers],[Jan]]),1),INDEX(Planovane_naklady_na_zamestnancov[],,1),0),MATCH(Odchylky_v_nakladoch[[#Headers],[Jan]],Skutocne_naklady_na_zamestnancov[#Headers],0))","v":{"v":0,"d":"0.00 EUR"}},{"$f":"INDEX(Planovane_naklady_na_zamestnancov[],MATCH(INDEX(Odchylky_v_nakladoch[],ROW()-ROW(Odchylky_v_nakladoch[[#Headers],[Feb]]),1),INDEX(Planovane_naklady_na_zamestnancov[],,1),0),MATCH(Odchylky_v_nakladoch[[#Headers],[Feb]],Planovane_naklady_na_zamestnancov[#Headers],0))-INDEX(Skutocne_naklady_na_zamestnancov[],MATCH(INDEX(Odchylky_v_nakladoch[],ROW()-ROW(Odchylky_v_nakladoch[[#Headers],[Feb]]),1),INDEX(Planovane_naklady_na_zamestnancov[],,1),0),MATCH(Odchylky_v_nakladoch[[#Headers],[Feb]],Skutocne_naklady_na_zamestnancov[#Headers],0))","v":{"v":0,"d":"0.00 EUR"}},{"$f":"INDEX(Planovane_naklady_na_zamestnancov[],MATCH(INDEX(Odchylky_v_nakladoch[],ROW()-ROW(Odchylky_v_nakladoch[[#Headers],[Mar]]),1),INDEX(Planovane_naklady_na_zamestnancov[],,1),0),MATCH(Odchylky_v_nakladoch[[#Headers],[Mar]],Planovane_naklady_na_zamestnancov[#Headers],0))-INDEX(Skutocne_naklady_na_zamestnancov[],MATCH(INDEX(Odchylky_v_nakladoch[],ROW()-ROW(Odchylky_v_nakladoch[[#Headers],[Mar]]),1),INDEX(Planovane_naklady_na_zamestnancov[],,1),0),MATCH(Odchylky_v_nakladoch[[#Headers],[Mar]],Skutocne_naklady_na_zamestnancov[#Headers],0))","v":{"v":0,"d":"0.00 EUR"}},{"$f":"INDEX(Planovane_naklady_na_zamestnancov[],MATCH(INDEX(Odchylky_v_nakladoch[],ROW()-ROW(Odchylky_v_nakladoch[[#Headers],[Apr]]),1),INDEX(Planovane_naklady_na_zamestnancov[],,1),0),MATCH(Odchylky_v_nakladoch[[#Headers],[Apr]],Planovane_naklady_na_zamestnancov[#Headers],0))-INDEX(Skutocne_naklady_na_zamestnancov[],MATCH(INDEX(Odchylky_v_nakladoch[],ROW()-ROW(Odchylky_v_nakladoch[[#Headers],[Apr]]),1),INDEX(Planovane_naklady_na_zamestnancov[],,1),0),MATCH(Odchylky_v_nakladoch[[#Headers],[Apr]],Skutocne_naklady_na_zamestnancov[#Headers],0))","v":{"v":-135,"d":"-135.00 EUR"}},{"$f":"INDEX(Planovane_naklady_na_zamestnancov[],MATCH(INDEX(Odchylky_v_nakladoch[],ROW()-ROW(Odchylky_v_nakladoch[[#Headers],[Máj]]),1),INDEX(Planovane_naklady_na_zamestnancov[],,1),0),MATCH(Odchylky_v_nakladoch[[#Headers],[Máj]],Planovane_naklady_na_zamestnancov[#Headers],0))-INDEX(Skutocne_naklady_na_zamestnancov[],MATCH(INDEX(Odchylky_v_nakladoch[],ROW()-ROW(Odchylky_v_nakladoch[[#Headers],[Máj]]),1),INDEX(Planovane_naklady_na_zamestnancov[],,1),0),MATCH(Odchylky_v_nakladoch[[#Headers],[Máj]],Skutocne_naklady_na_zamestnancov[#Headers],0))","v":{"v":-135,"d":"-135.00 EUR"}},{"$f":"INDEX(Planovane_naklady_na_zamestnancov[],MATCH(INDEX(Odchylky_v_nakladoch[],ROW()-ROW(Odchylky_v_nakladoch[[#Headers],[Jún]]),1),INDEX(Planovane_naklady_na_zamestnancov[],,1),0),MATCH(Odchylky_v_nakladoch[[#Headers],[Jún]],Planovane_naklady_na_zamestnancov[#Headers],0))-INDEX(Skutocne_naklady_na_zamestnancov[],MATCH(INDEX(Odchylky_v_nakladoch[],ROW()-ROW(Odchylky_v_nakladoch[[#Headers],[Jún]]),1),INDEX(Planovane_naklady_na_zamestnancov[],,1),0),MATCH(Odchylky_v_nakladoch[[#Headers],[Jún]],Skutocne_naklady_na_zamestnancov[#Headers],0))","v":{"v":-135,"d":"-135.00 EUR"}},{"$f":"INDEX(Planovane_naklady_na_zamestnancov[],MATCH(INDEX(Odchylky_v_nakladoch[],ROW()-ROW(Odchylky_v_nakladoch[[#Headers],[Júl]]),1),INDEX(Planovane_naklady_na_zamestnancov[],,1),0),MATCH(Odchylky_v_nakladoch[[#Headers],[Júl]],Planovane_naklady_na_zamestnancov[#Headers],0))-INDEX(Skutocne_naklady_na_zamestnancov[],MATCH(INDEX(Odchylky_v_nakladoch[],ROW()-ROW(Odchylky_v_nakladoch[[#Headers],[Júl]]),1),INDEX(Planovane_naklady_na_zamestnancov[],,1),0),MATCH(Odchylky_v_nakladoch[[#Headers],[Júl]],Skutocne_naklady_na_zamestnancov[#Headers],0))","v":{"v":23625,"d":"23,625.00 EUR"}},{"$f":"INDEX(Planovane_naklady_na_zamestnancov[],MATCH(INDEX(Odchylky_v_nakladoch[],ROW()-ROW(Odchylky_v_nakladoch[[#Headers],[Aug]]),1),INDEX(Planovane_naklady_na_zamestnancov[],,1),0),MATCH(Odchylky_v_nakladoch[[#Headers],[Aug]],Planovane_naklady_na_zamestnancov[#Headers],0))-INDEX(Skutocne_naklady_na_zamestnancov[],MATCH(INDEX(Odchylky_v_nakladoch[],ROW()-ROW(Odchylky_v_nakladoch[[#Headers],[Aug]]),1),INDEX(Planovane_naklady_na_zamestnancov[],,1),0),MATCH(Odchylky_v_nakladoch[[#Headers],[Aug]],Skutocne_naklady_na_zamestnancov[#Headers],0))","v":{"v":24948,"d":"24,948.00 EUR"}},{"$f":"INDEX(Planovane_naklady_na_zamestnancov[],MATCH(INDEX(Odchylky_v_nakladoch[],ROW()-ROW(Odchylky_v_nakladoch[[#Headers],[Sep]]),1),INDEX(Planovane_naklady_na_zamestnancov[],,1),0),MATCH(Odchylky_v_nakladoch[[#Headers],[Sep]],Planovane_naklady_na_zamestnancov[#Headers],0))-INDEX(Skutocne_naklady_na_zamestnancov[],MATCH(INDEX(Odchylky_v_nakladoch[],ROW()-ROW(Odchylky_v_nakladoch[[#Headers],[Sep]]),1),INDEX(Planovane_naklady_na_zamestnancov[],,1),0),MATCH(Odchylky_v_nakladoch[[#Headers],[Sep]],Skutocne_naklady_na_zamestnancov[#Headers],0))","v":{"v":24948,"d":"24,948.00 EUR"}},{"$f":"INDEX(Planovane_naklady_na_zamestnancov[],MATCH(INDEX(Odchylky_v_nakladoch[],ROW()-ROW(Odchylky_v_nakladoch[[#Headers],[Okt]]),1),INDEX(Planovane_naklady_na_zamestnancov[],,1),0),MATCH(Odchylky_v_nakladoch[[#Headers],[Okt]],Planovane_naklady_na_zamestnancov[#Headers],0))-INDEX(Skutocne_naklady_na_zamestnancov[],MATCH(INDEX(Odchylky_v_nakladoch[],ROW()-ROW(Odchylky_v_nakladoch[[#Headers],[Okt]]),1),INDEX(Planovane_naklady_na_zamestnancov[],,1),0),MATCH(Odchylky_v_nakladoch[[#Headers],[Okt]],Skutocne_naklady_na_zamestnancov[#Headers],0))","v":{"v":24948,"d":"24,948.00 EUR"}},{"$f":"INDEX(Planovane_naklady_na_zamestnancov[],MATCH(INDEX(Odchylky_v_nakladoch[],ROW()-ROW(Odchylky_v_nakladoch[[#Headers],[Nov]]),1),INDEX(Planovane_naklady_na_zamestnancov[],,1),0),MATCH(Odchylky_v_nakladoch[[#Headers],[Nov]],Planovane_naklady_na_zamestnancov[#Headers],0))-INDEX(Skutocne_naklady_na_zamestnancov[],MATCH(INDEX(Odchylky_v_nakladoch[],ROW()-ROW(Odchylky_v_nakladoch[[#Headers],[Nov]]),1),INDEX(Planovane_naklady_na_zamestnancov[],,1),0),MATCH(Odchylky_v_nakladoch[[#Headers],[Nov]],Skutocne_naklady_na_zamestnancov[#Headers],0))","v":{"v":24948,"d":"24,948.00 EUR"}},{"$f":"INDEX(Planovane_naklady_na_zamestnancov[],MATCH(INDEX(Odchylky_v_nakladoch[],ROW()-ROW(Odchylky_v_nakladoch[[#Headers],[Dec]]),1),INDEX(Planovane_naklady_na_zamestnancov[],,1),0),MATCH(Odchylky_v_nakladoch[[#Headers],[Dec]],Planovane_naklady_na_zamestnancov[#Headers],0))-INDEX(Skutocne_naklady_na_zamestnancov[],MATCH(INDEX(Odchylky_v_nakladoch[],ROW()-ROW(Odchylky_v_nakladoch[[#Headers],[Dec]]),1),INDEX(Planovane_naklady_na_zamestnancov[],,1),0),MATCH(Odchylky_v_nakladoch[[#Headers],[Dec]],Skutocne_naklady_na_zamestnancov[#Headers],0))","v":{"v":24948,"d":"24,948.00 EUR"}},{"$f":"SUM(Odchylky_v_nakladoch[[#This Row],[Jan]:[Dec]])","v":{"v":147960,"d":"147,960.00 EUR"}}]
[null,"Medzisúčet",{"$f":"SUBTOTAL(109,Odchylky_v_nakladoch[Jan])","v":{"v":0,"d":"0.00 EUR"}},{"$f":"SUBTOTAL(109,Odchylky_v_nakladoch[Feb])","v":{"v":0,"d":"0.00 EUR"}},{"$f":"SUBTOTAL(109,Odchylky_v_nakladoch[Mar])","v":{"v":0,"d":"0.00 EUR"}},{"$f":"SUBTOTAL(109,Odchylky_v_nakladoch[Apr])","v":{"v":-635,"d":"-635.00 EUR"}},{"$f":"SUBTOTAL(109,Odchylky_v_nakladoch[Máj])","v":{"v":-635,"d":"-635.00 EUR"}},{"$f":"SUBTOTAL(109,Odchylky_v_nakladoch[Jún])","v":{"v":-635,"d":"-635.00 EUR"}},{"$f":"SUBTOTAL(109,Odchylky_v_nakladoch[Júl])","v":{"v":111125,"d":"111,125.00 EUR"}},{"$f":"SUBTOTAL(109,Odchylky_v_nakladoch[Aug])","v":{"v":117348,"d":"117,348.00 EUR"}},{"$f":"SUBTOTAL(109,Odchylky_v_nakladoch[Sep])","v":{"v":117348,"d":"117,348.00 EUR"}},{"$f":"SUBTOTAL(109,Odchylky_v_nakladoch[Okt])","v":{"v":117348,"d":"117,348.00 EUR"}},{"$f":"SUBTOTAL(109,Odchylky_v_nakladoch[Nov])","v":{"v":117348,"d":"117,348.00 EUR"}},{"$f":"SUBTOTAL(109,Odchylky_v_nakladoch[Dec])","v":{"v":117348,"d":"117,348.00 EUR"}},{"$f":"SUBTOTAL(109,Odchylky_v_nakladoch[ROK])","v":{"v":695960,"d":"695,960.00 EUR"}}]
[]
["V tabuľke odchýlok v Náklady na kanceláriu začínajúcej v bunke napravo sa automaticky vypočítajú odchylky v nakladoch na kancelariu. Ďalší pokyn je v bunke A21.","Náklady na kanceláriu","Jan","Feb","Mar","Apr","Máj","Jún","Júl","Aug","Sep","Okt","Nov","Dec","ROK"]
[null,"Prenájom kancelárie",{"$f":"INDEX(Planovane_naklady_na_kancelariu[],MATCH(INDEX(Odchylky_v_nakladoch_na_kancelariu[],ROW()-ROW(Odchylky_v_nakladoch_na_kancelariu[[#Headers],[Jan]]),1),INDEX(Planovane_naklady_na_kancelariu[],,1),0),MATCH(Odchylky_v_nakladoch_na_kancelariu[[#Headers],[Jan]],Planovane_naklady_na_kancelariu[#Headers],0))-INDEX(Skutocne_naklady_na_kancelariu[],MATCH(INDEX(Odchylky_v_nakladoch_na_kancelariu[],ROW()-ROW(Odchylky_v_nakladoch_na_kancelariu[[#Headers],[Jan]]),1),INDEX(Planovane_naklady_na_kancelariu[],,1),0),MATCH(Odchylky_v_nakladoch_na_kancelariu[[#Headers],[Jan]],Skutocne_naklady_na_kancelariu[#Headers],0))","v":{"v":0,"d":"0.00 EUR"}},{"$f":"INDEX(Planovane_naklady_na_kancelariu[],MATCH(INDEX(Odchylky_v_nakladoch_na_kancelariu[],ROW()-ROW(Odchylky_v_nakladoch_na_kancelariu[[#Headers],[Feb]]),1),INDEX(Planovane_naklady_na_kancelariu[],,1),0),MATCH(Odchylky_v_nakladoch_na_kancelariu[[#Headers],[Feb]],Planovane_naklady_na_kancelariu[#Headers],0))-INDEX(Skutocne_naklady_na_kancelariu[],MATCH(INDEX(Odchylky_v_nakladoch_na_kancelariu[],ROW()-ROW(Odchylky_v_nakladoch_na_kancelariu[[#Headers],[Feb]]),1),INDEX(Planovane_naklady_na_kancelariu[],,1),0),MATCH(Odchylky_v_nakladoch_na_kancelariu[[#Headers],[Feb]],Skutocne_naklady_na_kancelariu[#Headers],0))","v":{"v":0,"d":"0.00 EUR"}},{"$f":"INDEX(Planovane_naklady_na_kancelariu[],MATCH(INDEX(Odchylky_v_nakladoch_na_kancelariu[],ROW()-ROW(Odchylky_v_nakladoch_na_kancelariu[[#Headers],[Mar]]),1),INDEX(Planovane_naklady_na_kancelariu[],,1),0),MATCH(Odchylky_v_nakladoch_na_kancelariu[[#Headers],[Mar]],Planovane_naklady_na_kancelariu[#Headers],0))-INDEX(Skutocne_naklady_na_kancelariu[],MATCH(INDEX(Odchylky_v_nakladoch_na_kancelariu[],ROW()-ROW(Odchylky_v_nakladoch_na_kancelariu[[#Headers],[Mar]]),1),INDEX(Planovane_naklady_na_kancelariu[],,1),0),MATCH(Odchylky_v_nakladoch_na_kancelariu[[#Headers],[Mar]],Skutocne_naklady_na_kancelariu[#Headers],0))","v":{"v":0,"d":"0.00 EUR"}},{"$f":"INDEX(Planovane_naklady_na_kancelariu[],MATCH(INDEX(Odchylky_v_nakladoch_na_kancelariu[],ROW()-ROW(Odchylky_v_nakladoch_na_kancelariu[[#Headers],[Apr]]),1),INDEX(Planovane_naklady_na_kancelariu[],,1),0),MATCH(Odchylky_v_nakladoch_na_kancelariu[[#Headers],[Apr]],Planovane_naklady_na_kancelariu[#Headers],0))-INDEX(Skutocne_naklady_na_kancelariu[],MATCH(INDEX(Odchylky_v_nakladoch_na_kancelariu[],ROW()-ROW(Odchylky_v_nakladoch_na_kancelariu[[#Headers],[Apr]]),1),INDEX(Planovane_naklady_na_kancelariu[],,1),0),MATCH(Odchylky_v_nakladoch_na_kancelariu[[#Headers],[Apr]],Skutocne_naklady_na_kancelariu[#Headers],0))","v":{"v":0,"d":"0.00 EUR"}},{"$f":"INDEX(Planovane_naklady_na_kancelariu[],MATCH(INDEX(Odchylky_v_nakladoch_na_kancelariu[],ROW()-ROW(Odchylky_v_nakladoch_na_kancelariu[[#Headers],[Máj]]),1),INDEX(Planovane_naklady_na_kancelariu[],,1),0),MATCH(Odchylky_v_nakladoch_na_kancelariu[[#Headers],[Máj]],Planovane_naklady_na_kancelariu[#Headers],0))-INDEX(Skutocne_naklady_na_kancelariu[],MATCH(INDEX(Odchylky_v_nakladoch_na_kancelariu[],ROW()-ROW(Odchylky_v_nakladoch_na_kancelariu[[#Headers],[Máj]]),1),INDEX(Planovane_naklady_na_kancelariu[],,1),0),MATCH(Odchylky_v_nakladoch_na_kancelariu[[#Headers],[Máj]],Skutocne_naklady_na_kancelariu[#Headers],0))","v":{"v":0,"d":"0.00 EUR"}},{"$f":"INDEX(Planovane_naklady_na_kancelariu[],MATCH(INDEX(Odchylky_v_nakladoch_na_kancelariu[],ROW()-ROW(Odchylky_v_nakladoch_na_kancelariu[[#Headers],[Jún]]),1),INDEX(Planovane_naklady_na_kancelariu[],,1),0),MATCH(Odchylky_v_nakladoch_na_kancelariu[[#Headers],[Jún]],Planovane_naklady_na_kancelariu[#Headers],0))-INDEX(Skutocne_naklady_na_kancelariu[],MATCH(INDEX(Odchylky_v_nakladoch_na_kancelariu[],ROW()-ROW(Odchylky_v_nakladoch_na_kancelariu[[#Headers],[Jún]]),1),INDEX(Planovane_naklady_na_kancelariu[],,1),0),MATCH(Odchylky_v_nakladoch_na_kancelariu[[#Headers],[Jún]],Skutocne_naklady_na_kancelariu[#Headers],0))","v":{"v":0,"d":"0.00 EUR"}},{"$f":"INDEX(Planovane_naklady_na_kancelariu[],MATCH(INDEX(Odchylky_v_nakladoch_na_kancelariu[],ROW()-ROW(Odchylky_v_nakladoch_na_kancelariu[[#Headers],[Júl]]),1),INDEX(Planovane_naklady_na_kancelariu[],,1),0),MATCH(Odchylky_v_nakladoch_na_kancelariu[[#Headers],[Júl]],Planovane_naklady_na_kancelariu[#Headers],0))-INDEX(Skutocne_naklady_na_kancelariu[],MATCH(INDEX(Odchylky_v_nakladoch_na_kancelariu[],ROW()-ROW(Odchylky_v_nakladoch_na_kancelariu[[#Headers],[Júl]]),1),INDEX(Planovane_naklady_na_kancelariu[],,1),0),MATCH(Odchylky_v_nakladoch_na_kancelariu[[#Headers],[Júl]],Skutocne_naklady_na_kancelariu[#Headers],0))","v":{"v":9800,"d":"9,800.00 EUR"}},{"$f":"INDEX(Planovane_naklady_na_kancelariu[],MATCH(INDEX(Odchylky_v_nakladoch_na_kancelariu[],ROW()-ROW(Odchylky_v_nakladoch_na_kancelariu[[#Headers],[Aug]]),1),INDEX(Planovane_naklady_na_kancelariu[],,1),0),MATCH(Odchylky_v_nakladoch_na_kancelariu[[#Headers],[Aug]],Planovane_naklady_na_kancelariu[#Headers],0))-INDEX(Skutocne_naklady_na_kancelariu[],MATCH(INDEX(Odchylky_v_nakladoch_na_kancelariu[],ROW()-ROW(Odchylky_v_nakladoch_na_kancelariu[[#Headers],[Aug]]),1),INDEX(Planovane_naklady_na_kancelariu[],,1),0),MATCH(Odchylky_v_nakladoch_na_kancelariu[[#Headers],[Aug]],Skutocne_naklady_na_kancelariu[#Headers],0))","v":{"v":9800,"d":"9,800.00 EUR"}},{"$f":"INDEX(Planovane_naklady_na_kancelariu[],MATCH(INDEX(Odchylky_v_nakladoch_na_kancelariu[],ROW()-ROW(Odchylky_v_nakladoch_na_kancelariu[[#Headers],[Sep]]),1),INDEX(Planovane_naklady_na_kancelariu[],,1),0),MATCH(Odchylky_v_nakladoch_na_kancelariu[[#Headers],[Sep]],Planovane_naklady_na_kancelariu[#Headers],0))-INDEX(Skutocne_naklady_na_kancelariu[],MATCH(INDEX(Odchylky_v_nakladoch_na_kancelariu[],ROW()-ROW(Odchylky_v_nakladoch_na_kancelariu[[#Headers],[Sep]]),1),INDEX(Planovane_naklady_na_kancelariu[],,1),0),MATCH(Odchylky_v_nakladoch_na_kancelariu[[#Headers],[Sep]],Skutocne_naklady_na_kancelariu[#Headers],0))","v":{"v":9800,"d":"9,800.00 EUR"}},{"$f":"INDEX(Planovane_naklady_na_kancelariu[],MATCH(INDEX(Odchylky_v_nakladoch_na_kancelariu[],ROW()-ROW(Odchylky_v_nakladoch_na_kancelariu[[#Headers],[Okt]]),1),INDEX(Planovane_naklady_na_kancelariu[],,1),0),MATCH(Odchylky_v_nakladoch_na_kancelariu[[#Headers],[Okt]],Planovane_naklady_na_kancelariu[#Headers],0))-INDEX(Skutocne_naklady_na_kancelariu[],MATCH(INDEX(Odchylky_v_nakladoch_na_kancelariu[],ROW()-ROW(Odchylky_v_nakladoch_na_kancelariu[[#Headers],[Okt]]),1),INDEX(Planovane_naklady_na_kancelariu[],,1),0),MATCH(Odchylky_v_nakladoch_na_kancelariu[[#Headers],[Okt]],Skutocne_naklady_na_kancelariu[#Headers],0))","v":{"v":9800,"d":"9,800.00 EUR"}},{"$f":"INDEX(Planovane_naklady_na_kancelariu[],MATCH(INDEX(Odchylky_v_nakladoch_na_kancelariu[],ROW()-ROW(Odchylky_v_nakladoch_na_kancelariu[[#Headers],[Nov]]),1),INDEX(Planovane_naklady_na_kancelariu[],,1),0),MATCH(Odchylky_v_nakladoch_na_kancelariu[[#Headers],[Nov]],Planovane_naklady_na_kancelariu[#Headers],0))-INDEX(Skutocne_naklady_na_kancelariu[],MATCH(INDEX(Odchylky_v_nakladoch_na_kancelariu[],ROW()-ROW(Odchylky_v_nakladoch_na_kancelariu[[#Headers],[Nov]]),1),INDEX(Planovane_naklady_na_kancelariu[],,1),0),MATCH(Odchylky_v_nakladoch_na_kancelariu[[#Headers],[Nov]],Skutocne_naklady_na_kancelariu[#Headers],0))","v":{"v":9800,"d":"9,800.00 EUR"}},{"$f":"INDEX(Planovane_naklady_na_kancelariu[],MATCH(INDEX(Odchylky_v_nakladoch_na_kancelariu[],ROW()-ROW(Odchylky_v_nakladoch_na_kancelariu[[#Headers],[Dec]]),1),INDEX(Planovane_naklady_na_kancelariu[],,1),0),MATCH(Odchylky_v_nakladoch_na_kancelariu[[#Headers],[Dec]],Planovane_naklady_na_kancelariu[#Headers],0))-INDEX(Skutocne_naklady_na_kancelariu[],MATCH(INDEX(Odchylky_v_nakladoch_na_kancelariu[],ROW()-ROW(Odchylky_v_nakladoch_na_kancelariu[[#Headers],[Dec]]),1),INDEX(Planovane_naklady_na_kancelariu[],,1),0),MATCH(Odchylky_v_nakladoch_na_kancelariu[[#Headers],[Dec]],Skutocne_naklady_na_kancelariu[#Headers],0))","v":{"v":9800,"d":"9,800.00 EUR"}},{"$f":"SUM(Odchylky_v_nakladoch_na_kancelariu[[#This Row],[Jan]:[Dec]])","v":{"v":58800,"d":"58,800.00 EUR"}}]
[null,"Plyn",{"$f":"INDEX(Planovane_naklady_na_kancelariu[],MATCH(INDEX(Odchylky_v_nakladoch_na_kancelariu[],ROW()-ROW(Odchylky_v_nakladoch_na_kancelariu[[#Headers],[Jan]]),1),INDEX(Planovane_naklady_na_kancelariu[],,1),0),MATCH(Odchylky_v_nakladoch_na_kancelariu[[#Headers],[Jan]],Planovane_naklady_na_kancelariu[#Headers],0))-INDEX(Skutocne_naklady_na_kancelariu[],MATCH(INDEX(Odchylky_v_nakladoch_na_kancelariu[],ROW()-ROW(Odchylky_v_nakladoch_na_kancelariu[[#Headers],[Jan]]),1),INDEX(Planovane_naklady_na_kancelariu[],,1),0),MATCH(Odchylky_v_nakladoch_na_kancelariu[[#Headers],[Jan]],Skutocne_naklady_na_kancelariu[#Headers],0))","v":{"v":-4,"d":"-4.00 EUR"}},{"$f":"INDEX(Planovane_naklady_na_kancelariu[],MATCH(INDEX(Odchylky_v_nakladoch_na_kancelariu[],ROW()-ROW(Odchylky_v_nakladoch_na_kancelariu[[#Headers],[Feb]]),1),INDEX(Planovane_naklady_na_kancelariu[],,1),0),MATCH(Odchylky_v_nakladoch_na_kancelariu[[#Headers],[Feb]],Planovane_naklady_na_kancelariu[#Headers],0))-INDEX(Skutocne_naklady_na_kancelariu[],MATCH(INDEX(Odchylky_v_nakladoch_na_kancelariu[],ROW()-ROW(Odchylky_v_nakladoch_na_kancelariu[[#Headers],[Feb]]),1),INDEX(Planovane_naklady_na_kancelariu[],,1),0),MATCH(Odchylky_v_nakladoch_na_kancelariu[[#Headers],[Feb]],Skutocne_naklady_na_kancelariu[#Headers],0))","v":{"v":-30,"d":"-30.00 EUR"}},{"$f":"INDEX(Planovane_naklady_na_kancelariu[],MATCH(INDEX(Odchylky_v_nakladoch_na_kancelariu[],ROW()-ROW(Odchylky_v_nakladoch_na_kancelariu[[#Headers],[Mar]]),1),INDEX(Planovane_naklady_na_kancelariu[],,1),0),MATCH(Odchylky_v_nakladoch_na_kancelariu[[#Headers],[Mar]],Planovane_naklady_na_kancelariu[#Headers],0))-INDEX(Skutocne_naklady_na_kancelariu[],MATCH(INDEX(Odchylky_v_nakladoch_na_kancelariu[],ROW()-ROW(Odchylky_v_nakladoch_na_kancelariu[[#Headers],[Mar]]),1),INDEX(Planovane_naklady_na_kancelariu[],,1),0),MATCH(Odchylky_v_nakladoch_na_kancelariu[[#Headers],[Mar]],Skutocne_naklady_na_kancelariu[#Headers],0))","v":{"v":15,"d":"15.00 EUR"}},{"$f":"INDEX(Planovane_naklady_na_kancelariu[],MATCH(INDEX(Odchylky_v_nakladoch_na_kancelariu[],ROW()-ROW(Odchylky_v_nakladoch_na_kancelariu[[#Headers],[Apr]]),1),INDEX(Planovane_naklady_na_kancelariu[],,1),0),MATCH(Odchylky_v_nakladoch_na_kancelariu[[#Headers],[Apr]],Planovane_naklady_na_kancelariu[#Headers],0))-INDEX(Skutocne_naklady_na_kancelariu[],MATCH(INDEX(Odchylky_v_nakladoch_na_kancelariu[],ROW()-ROW(Odchylky_v_nakladoch_na_kancelariu[[#Headers],[Apr]]),1),INDEX(Planovane_naklady_na_kancelariu[],,1),0),MATCH(Odchylky_v_nakladoch_na_kancelariu[[#Headers],[Apr]],Skutocne_naklady_na_kancelariu[#Headers],0))","v":{"v":-130,"d":"-130.00 EUR"}},{"$f":"INDEX(Planovane_naklady_na_kancelariu[],MATCH(INDEX(Odchylky_v_nakladoch_na_kancelariu[],ROW()-ROW(Odchylky_v_nakladoch_na_kancelariu[[#Headers],[Máj]]),1),INDEX(Planovane_naklady_na_kancelariu[],,1),0),MATCH(Odchylky_v_nakladoch_na_kancelariu[[#Headers],[Máj]],Planovane_naklady_na_kancelariu[#Headers],0))-INDEX(Skutocne_naklady_na_kancelariu[],MATCH(INDEX(Odchylky_v_nakladoch_na_kancelariu[],ROW()-ROW(Odchylky_v_nakladoch_na_kancelariu[[#Headers],[Máj]]),1),INDEX(Planovane_naklady_na_kancelariu[],,1),0),MATCH(Odchylky_v_nakladoch_na_kancelariu[[#Headers],[Máj]],Skutocne_naklady_na_kancelariu[#Headers],0))","v":{"v":13,"d":"13.00 EUR"}},{"$f":"INDEX(Planovane_naklady_na_kancelariu[],MATCH(INDEX(Odchylky_v_nakladoch_na_kancelariu[],ROW()-ROW(Odchylky_v_nakladoch_na_kancelariu[[#Headers],[Jún]]),1),INDEX(Planovane_naklady_na_kancelariu[],,1),0),MATCH(Odchylky_v_nakladoch_na_kancelariu[[#Headers],[Jún]],Planovane_naklady_na_kancelariu[#Headers],0))-INDEX(Skutocne_naklady_na_kancelariu[],MATCH(INDEX(Odchylky_v_nakladoch_na_kancelariu[],ROW()-ROW(Odchylky_v_nakladoch_na_kancelariu[[#Headers],[Jún]]),1),INDEX(Planovane_naklady_na_kancelariu[],,1),0),MATCH(Odchylky_v_nakladoch_na_kancelariu[[#Headers],[Jún]],Skutocne_naklady_na_kancelariu[#Headers],0))","v":{"v":12,"d":"12.00 EUR"}},{"$f":"INDEX(Planovane_naklady_na_kancelariu[],MATCH(INDEX(Odchylky_v_nakladoch_na_kancelariu[],ROW()-ROW(Odchylky_v_nakladoch_na_kancelariu[[#Headers],[Júl]]),1),INDEX(Planovane_naklady_na_kancelariu[],,1),0),MATCH(Odchylky_v_nakladoch_na_kancelariu[[#Headers],[Júl]],Planovane_naklady_na_kancelariu[#Headers],0))-INDEX(Skutocne_naklady_na_kancelariu[],MATCH(INDEX(Odchylky_v_nakladoch_na_kancelariu[],ROW()-ROW(Odchylky_v_nakladoch_na_kancelariu[[#Headers],[Júl]]),1),INDEX(Planovane_naklady_na_kancelariu[],,1),0),MATCH(Odchylky_v_nakladoch_na_kancelariu[[#Headers],[Júl]],Skutocne_naklady_na_kancelariu[#Headers],0))","v":{"v":100,"d":"100.00 EUR"}},{"$f":"INDEX(Planovane_naklady_na_kancelariu[],MATCH(INDEX(Odchylky_v_nakladoch_na_kancelariu[],ROW()-ROW(Odchylky_v_nakladoch_na_kancelariu[[#Headers],[Aug]]),1),INDEX(Planovane_naklady_na_kancelariu[],,1),0),MATCH(Odchylky_v_nakladoch_na_kancelariu[[#Headers],[Aug]],Planovane_naklady_na_kancelariu[#Headers],0))-INDEX(Skutocne_naklady_na_kancelariu[],MATCH(INDEX(Odchylky_v_nakladoch_na_kancelariu[],ROW()-ROW(Odchylky_v_nakladoch_na_kancelariu[[#Headers],[Aug]]),1),INDEX(Planovane_naklady_na_kancelariu[],,1),0),MATCH(Odchylky_v_nakladoch_na_kancelariu[[#Headers],[Aug]],Skutocne_naklady_na_kancelariu[#Headers],0))","v":{"v":100,"d":"100.00 EUR"}},{"$f":"INDEX(Planovane_naklady_na_kancelariu[],MATCH(INDEX(Odchylky_v_nakladoch_na_kancelariu[],ROW()-ROW(Odchylky_v_nakladoch_na_kancelariu[[#Headers],[Sep]]),1),INDEX(Planovane_naklady_na_kancelariu[],,1),0),MATCH(Odchylky_v_nakladoch_na_kancelariu[[#Headers],[Sep]],Planovane_naklady_na_kancelariu[#Headers],0))-INDEX(Skutocne_naklady_na_kancelariu[],MATCH(INDEX(Odchylky_v_nakladoch_na_kancelariu[],ROW()-ROW(Odchylky_v_nakladoch_na_kancelariu[[#Headers],[Sep]]),1),INDEX(Planovane_naklady_na_kancelariu[],,1),0),MATCH(Odchylky_v_nakladoch_na_kancelariu[[#Headers],[Sep]],Skutocne_naklady_na_kancelariu[#Headers],0))","v":{"v":100,"d":"100.00 EUR"}},{"$f":"INDEX(Planovane_naklady_na_kancelariu[],MATCH(INDEX(Odchylky_v_nakladoch_na_kancelariu[],ROW()-ROW(Odchylky_v_nakladoch_na_kancelariu[[#Headers],[Okt]]),1),INDEX(Planovane_naklady_na_kancelariu[],,1),0),MATCH(Odchylky_v_nakladoch_na_kancelariu[[#Headers],[Okt]],Planovane_naklady_na_kancelariu[#Headers],0))-INDEX(Skutocne_naklady_na_kancelariu[],MATCH(INDEX(Odchylky_v_nakladoch_na_kancelariu[],ROW()-ROW(Odchylky_v_nakladoch_na_kancelariu[[#Headers],[Okt]]),1),INDEX(Planovane_naklady_na_kancelariu[],,1),0),MATCH(Odchylky_v_nakladoch_na_kancelariu[[#Headers],[Okt]],Skutocne_naklady_na_kancelariu[#Headers],0))","v":{"v":100,"d":"100.00 EUR"}},{"$f":"INDEX(Planovane_naklady_na_kancelariu[],MATCH(INDEX(Odchylky_v_nakladoch_na_kancelariu[],ROW()-ROW(Odchylky_v_nakladoch_na_kancelariu[[#Headers],[Nov]]),1),INDEX(Planovane_naklady_na_kancelariu[],,1),0),MATCH(Odchylky_v_nakladoch_na_kancelariu[[#Headers],[Nov]],Planovane_naklady_na_kancelariu[#Headers],0))-INDEX(Skutocne_naklady_na_kancelariu[],MATCH(INDEX(Odchylky_v_nakladoch_na_kancelariu[],ROW()-ROW(Odchylky_v_nakladoch_na_kancelariu[[#Headers],[Nov]]),1),INDEX(Planovane_naklady_na_kancelariu[],,1),0),MATCH(Odchylky_v_nakladoch_na_kancelariu[[#Headers],[Nov]],Skutocne_naklady_na_kancelariu[#Headers],0))","v":{"v":400,"d":"400.00 EUR"}},{"$f":"INDEX(Planovane_naklady_na_kancelariu[],MATCH(INDEX(Odchylky_v_nakladoch_na_kancelariu[],ROW()-ROW(Odchylky_v_nakladoch_na_kancelariu[[#Headers],[Dec]]),1),INDEX(Planovane_naklady_na_kancelariu[],,1),0),MATCH(Odchylky_v_nakladoch_na_kancelariu[[#Headers],[Dec]],Planovane_naklady_na_kancelariu[#Headers],0))-INDEX(Skutocne_naklady_na_kancelariu[],MATCH(INDEX(Odchylky_v_nakladoch_na_kancelariu[],ROW()-ROW(Odchylky_v_nakladoch_na_kancelariu[[#Headers],[Dec]]),1),INDEX(Planovane_naklady_na_kancelariu[],,1),0),MATCH(Odchylky_v_nakladoch_na_kancelariu[[#Headers],[Dec]],Skutocne_naklady_na_kancelariu[#Headers],0))","v":{"v":400,"d":"400.00 EUR"}},{"$f":"SUM(Odchylky_v_nakladoch_na_kancelariu[[#This Row],[Jan]:[Dec]])","v":{"v":1076,"d":"1,076.00 EUR"}}]
[null,"Elektrina",{"$f":"INDEX(Planovane_naklady_na_kancelariu[],MATCH(INDEX(Odchylky_v_nakladoch_na_kancelariu[],ROW()-ROW(Odchylky_v_nakladoch_na_kancelariu[[#Headers],[Jan]]),1),INDEX(Planovane_naklady_na_kancelariu[],,1),0),MATCH(Odchylky_v_nakladoch_na_kancelariu[[#Headers],[Jan]],Planovane_naklady_na_kancelariu[#Headers],0))-INDEX(Skutocne_naklady_na_kancelariu[],MATCH(INDEX(Odchylky_v_nakladoch_na_kancelariu[],ROW()-ROW(Odchylky_v_nakladoch_na_kancelariu[[#Headers],[Jan]]),1),INDEX(Planovane_naklady_na_kancelariu[],,1),0),MATCH(Odchylky_v_nakladoch_na_kancelariu[[#Headers],[Jan]],Skutocne_naklady_na_kancelariu[#Headers],0))","v":{"v":12,"d":"12.00 EUR"}},{"$f":"INDEX(Planovane_naklady_na_kancelariu[],MATCH(INDEX(Odchylky_v_nakladoch_na_kancelariu[],ROW()-ROW(Odchylky_v_nakladoch_na_kancelariu[[#Headers],[Feb]]),1),INDEX(Planovane_naklady_na_kancelariu[],,1),0),MATCH(Odchylky_v_nakladoch_na_kancelariu[[#Headers],[Feb]],Planovane_naklady_na_kancelariu[#Headers],0))-INDEX(Skutocne_naklady_na_kancelariu[],MATCH(INDEX(Odchylky_v_nakladoch_na_kancelariu[],ROW()-ROW(Odchylky_v_nakladoch_na_kancelariu[[#Headers],[Feb]]),1),INDEX(Planovane_naklady_na_kancelariu[],,1),0),MATCH(Odchylky_v_nakladoch_na_kancelariu[[#Headers],[Feb]],Skutocne_naklady_na_kancelariu[#Headers],0))","v":{"v":22,"d":"22.00 EUR"}},{"$f":"INDEX(Planovane_naklady_na_kancelariu[],MATCH(INDEX(Odchylky_v_nakladoch_na_kancelariu[],ROW()-ROW(Odchylky_v_nakladoch_na_kancelariu[[#Headers],[Mar]]),1),INDEX(Planovane_naklady_na_kancelariu[],,1),0),MATCH(Odchylky_v_nakladoch_na_kancelariu[[#Headers],[Mar]],Planovane_naklady_na_kancelariu[#Headers],0))-INDEX(Skutocne_naklady_na_kancelariu[],MATCH(INDEX(Odchylky_v_nakladoch_na_kancelariu[],ROW()-ROW(Odchylky_v_nakladoch_na_kancelariu[[#Headers],[Mar]]),1),INDEX(Planovane_naklady_na_kancelariu[],,1),0),MATCH(Odchylky_v_nakladoch_na_kancelariu[[#Headers],[Mar]],Skutocne_naklady_na_kancelariu[#Headers],0))","v":{"v":32,"d":"32.00 EUR"}},{"$f":"INDEX(Planovane_naklady_na_kancelariu[],MATCH(INDEX(Odchylky_v_nakladoch_na_kancelariu[],ROW()-ROW(Odchylky_v_nakladoch_na_kancelariu[[#Headers],[Apr]]),1),INDEX(Planovane_naklady_na_kancelariu[],,1),0),MATCH(Odchylky_v_nakladoch_na_kancelariu[[#Headers],[Apr]],Planovane_naklady_na_kancelariu[#Headers],0))-INDEX(Skutocne_naklady_na_kancelariu[],MATCH(INDEX(Odchylky_v_nakladoch_na_kancelariu[],ROW()-ROW(Odchylky_v_nakladoch_na_kancelariu[[#Headers],[Apr]]),1),INDEX(Planovane_naklady_na_kancelariu[],,1),0),MATCH(Odchylky_v_nakladoch_na_kancelariu[[#Headers],[Apr]],Skutocne_naklady_na_kancelariu[#Headers],0))","v":{"v":1,"d":"1.00 EUR"}},{"$f":"INDEX(Planovane_naklady_na_kancelariu[],MATCH(INDEX(Odchylky_v_nakladoch_na_kancelariu[],ROW()-ROW(Odchylky_v_nakladoch_na_kancelariu[[#Headers],[Máj]]),1),INDEX(Planovane_naklady_na_kancelariu[],,1),0),MATCH(Odchylky_v_nakladoch_na_kancelariu[[#Headers],[Máj]],Planovane_naklady_na_kancelariu[#Headers],0))-INDEX(Skutocne_naklady_na_kancelariu[],MATCH(INDEX(Odchylky_v_nakladoch_na_kancelariu[],ROW()-ROW(Odchylky_v_nakladoch_na_kancelariu[[#Headers],[Máj]]),1),INDEX(Planovane_naklady_na_kancelariu[],,1),0),MATCH(Odchylky_v_nakladoch_na_kancelariu[[#Headers],[Máj]],Skutocne_naklady_na_kancelariu[#Headers],0))","v":{"v":-6,"d":"-6.00 EUR"}},{"$f":"INDEX(Planovane_naklady_na_kancelariu[],MATCH(INDEX(Odchylky_v_nakladoch_na_kancelariu[],ROW()-ROW(Odchylky_v_nakladoch_na_kancelariu[[#Headers],[Jún]]),1),INDEX(Planovane_naklady_na_kancelariu[],,1),0),MATCH(Odchylky_v_nakladoch_na_kancelariu[[#Headers],[Jún]],Planovane_naklady_na_kancelariu[#Headers],0))-INDEX(Skutocne_naklady_na_kancelariu[],MATCH(INDEX(Odchylky_v_nakladoch_na_kancelariu[],ROW()-ROW(Odchylky_v_nakladoch_na_kancelariu[[#Headers],[Jún]]),1),INDEX(Planovane_naklady_na_kancelariu[],,1),0),MATCH(Odchylky_v_nakladoch_na_kancelariu[[#Headers],[Jún]],Skutocne_naklady_na_kancelariu[#Headers],0))","v":{"v":10,"d":"10.00 EUR"}},{"$f":"INDEX(Planovane_naklady_na_kancelariu[],MATCH(INDEX(Odchylky_v_nakladoch_na_kancelariu[],ROW()-ROW(Odchylky_v_nakladoch_na_kancelariu[[#Headers],[Júl]]),1),INDEX(Planovane_naklady_na_kancelariu[],,1),0),MATCH(Odchylky_v_nakladoch_na_kancelariu[[#Headers],[Júl]],Planovane_naklady_na_kancelariu[#Headers],0))-INDEX(Skutocne_naklady_na_kancelariu[],MATCH(INDEX(Odchylky_v_nakladoch_na_kancelariu[],ROW()-ROW(Odchylky_v_nakladoch_na_kancelariu[[#Headers],[Júl]]),1),INDEX(Planovane_naklady_na_kancelariu[],,1),0),MATCH(Odchylky_v_nakladoch_na_kancelariu[[#Headers],[Júl]],Skutocne_naklady_na_kancelariu[#Headers],0))","v":{"v":300,"d":"300.00 EUR"}},{"$f":"INDEX(Planovane_naklady_na_kancelariu[],MATCH(INDEX(Odchylky_v_nakladoch_na_kancelariu[],ROW()-ROW(Odchylky_v_nakladoch_na_kancelariu[[#Headers],[Aug]]),1),INDEX(Planovane_naklady_na_kancelariu[],,1),0),MATCH(Odchylky_v_nakladoch_na_kancelariu[[#Headers],[Aug]],Planovane_naklady_na_kancelariu[#Headers],0))-INDEX(Skutocne_naklady_na_kancelariu[],MATCH(INDEX(Odchylky_v_nakladoch_na_kancelariu[],ROW()-ROW(Odchylky_v_nakladoch_na_kancelariu[[#Headers],[Aug]]),1),INDEX(Planovane_naklady_na_kancelariu[],,1),0),MATCH(Odchylky_v_nakladoch_na_kancelariu[[#Headers],[Aug]],Skutocne_naklady_na_kancelariu[#Headers],0))","v":{"v":300,"d":"300.00 EUR"}},{"$f":"INDEX(Planovane_naklady_na_kancelariu[],MATCH(INDEX(Odchylky_v_nakladoch_na_kancelariu[],ROW()-ROW(Odchylky_v_nakladoch_na_kancelariu[[#Headers],[Sep]]),1),INDEX(Planovane_naklady_na_kancelariu[],,1),0),MATCH(Odchylky_v_nakladoch_na_kancelariu[[#Headers],[Sep]],Planovane_naklady_na_kancelariu[#Headers],0))-INDEX(Skutocne_naklady_na_kancelariu[],MATCH(INDEX(Odchylky_v_nakladoch_na_kancelariu[],ROW()-ROW(Odchylky_v_nakladoch_na_kancelariu[[#Headers],[Sep]]),1),INDEX(Planovane_naklady_na_kancelariu[],,1),0),MATCH(Odchylky_v_nakladoch_na_kancelariu[[#Headers],[Sep]],Skutocne_naklady_na_kancelariu[#Headers],0))","v":{"v":300,"d":"300.00 EUR"}},{"$f":"INDEX(Planovane_naklady_na_kancelariu[],MATCH(INDEX(Odchylky_v_nakladoch_na_kancelariu[],ROW()-ROW(Odchylky_v_nakladoch_na_kancelariu[[#Headers],[Okt]]),1),INDEX(Planovane_naklady_na_kancelariu[],,1),0),MATCH(Odchylky_v_nakladoch_na_kancelariu[[#Headers],[Okt]],Planovane_naklady_na_kancelariu[#Headers],0))-INDEX(Skutocne_naklady_na_kancelariu[],MATCH(INDEX(Odchylky_v_nakladoch_na_kancelariu[],ROW()-ROW(Odchylky_v_nakladoch_na_kancelariu[[#Headers],[Okt]]),1),INDEX(Planovane_naklady_na_kancelariu[],,1),0),MATCH(Odchylky_v_nakladoch_na_kancelariu[[#Headers],[Okt]],Skutocne_naklady_na_kancelariu[#Headers],0))","v":{"v":300,"d":"300.00 EUR"}},{"$f":"INDEX(Planovane_naklady_na_kancelariu[],MATCH(INDEX(Odchylky_v_nakladoch_na_kancelariu[],ROW()-ROW(Odchylky_v_nakladoch_na_kancelariu[[#Headers],[Nov]]),1),INDEX(Planovane_naklady_na_kancelariu[],,1),0),MATCH(Odchylky_v_nakladoch_na_kancelariu[[#Headers],[Nov]],Planovane_naklady_na_kancelariu[#Headers],0))-INDEX(Skutocne_naklady_na_kancelariu[],MATCH(INDEX(Odchylky_v_nakladoch_na_kancelariu[],ROW()-ROW(Odchylky_v_nakladoch_na_kancelariu[[#Headers],[Nov]]),1),INDEX(Planovane_naklady_na_kancelariu[],,1),0),MATCH(Odchylky_v_nakladoch_na_kancelariu[[#Headers],[Nov]],Skutocne_naklady_na_kancelariu[#Headers],0))","v":{"v":300,"d":"300.00 EUR"}},{"$f":"INDEX(Planovane_naklady_na_kancelariu[],MATCH(INDEX(Odchylky_v_nakladoch_na_kancelariu[],ROW()-ROW(Odchylky_v_nakladoch_na_kancelariu[[#Headers],[Dec]]),1),INDEX(Planovane_naklady_na_kancelariu[],,1),0),MATCH(Odchylky_v_nakladoch_na_kancelariu[[#Headers],[Dec]],Planovane_naklady_na_kancelariu[#Headers],0))-INDEX(Skutocne_naklady_na_kancelariu[],MATCH(INDEX(Odchylky_v_nakladoch_na_kancelariu[],ROW()-ROW(Odchylky_v_nakladoch_na_kancelariu[[#Headers],[Dec]]),1),INDEX(Planovane_naklady_na_kancelariu[],,1),0),MATCH(Odchylky_v_nakladoch_na_kancelariu[[#Headers],[Dec]],Skutocne_naklady_na_kancelariu[#Headers],0))","v":{"v":300,"d":"300.00 EUR"}},{"$f":"SUM(Odchylky_v_nakladoch_na_kancelariu[[#This Row],[Jan]:[Dec]])","v":{"v":1871,"d":"1,871.00 EUR"}}]
[null,"Voda",{"$f":"INDEX(Planovane_naklady_na_kancelariu[],MATCH(INDEX(Odchylky_v_nakladoch_na_kancelariu[],ROW()-ROW(Odchylky_v_nakladoch_na_kancelariu[[#Headers],[Jan]]),1),INDEX(Planovane_naklady_na_kancelariu[],,1),0),MATCH(Odchylky_v_nakladoch_na_kancelariu[[#Headers],[Jan]],Planovane_naklady_na_kancelariu[#Headers],0))-INDEX(Skutocne_naklady_na_kancelariu[],MATCH(INDEX(Odchylky_v_nakladoch_na_kancelariu[],ROW()-ROW(Odchylky_v_nakladoch_na_kancelariu[[#Headers],[Jan]]),1),INDEX(Planovane_naklady_na_kancelariu[],,1),0),MATCH(Odchylky_v_nakladoch_na_kancelariu[[#Headers],[Jan]],Skutocne_naklady_na_kancelariu[#Headers],0))","v":{"v":5,"d":"5.00 EUR"}},{"$f":"INDEX(Planovane_naklady_na_kancelariu[],MATCH(INDEX(Odchylky_v_nakladoch_na_kancelariu[],ROW()-ROW(Odchylky_v_nakladoch_na_kancelariu[[#Headers],[Feb]]),1),INDEX(Planovane_naklady_na_kancelariu[],,1),0),MATCH(Odchylky_v_nakladoch_na_kancelariu[[#Headers],[Feb]],Planovane_naklady_na_kancelariu[#Headers],0))-INDEX(Skutocne_naklady_na_kancelariu[],MATCH(INDEX(Odchylky_v_nakladoch_na_kancelariu[],ROW()-ROW(Odchylky_v_nakladoch_na_kancelariu[[#Headers],[Feb]]),1),INDEX(Planovane_naklady_na_kancelariu[],,1),0),MATCH(Odchylky_v_nakladoch_na_kancelariu[[#Headers],[Feb]],Skutocne_naklady_na_kancelariu[#Headers],0))","v":{"v":7,"d":"7.00 EUR"}},{"$f":"INDEX(Planovane_naklady_na_kancelariu[],MATCH(INDEX(Odchylky_v_nakladoch_na_kancelariu[],ROW()-ROW(Odchylky_v_nakladoch_na_kancelariu[[#Headers],[Mar]]),1),INDEX(Planovane_naklady_na_kancelariu[],,1),0),MATCH(Odchylky_v_nakladoch_na_kancelariu[[#Headers],[Mar]],Planovane_naklady_na_kancelariu[#Headers],0))-INDEX(Skutocne_naklady_na_kancelariu[],MATCH(INDEX(Odchylky_v_nakladoch_na_kancelariu[],ROW()-ROW(Odchylky_v_nakladoch_na_kancelariu[[#Headers],[Mar]]),1),INDEX(Planovane_naklady_na_kancelariu[],,1),0),MATCH(Odchylky_v_nakladoch_na_kancelariu[[#Headers],[Mar]],Skutocne_naklady_na_kancelariu[#Headers],0))","v":{"v":6,"d":"6.00 EUR"}},{"$f":"INDEX(Planovane_naklady_na_kancelariu[],MATCH(INDEX(Odchylky_v_nakladoch_na_kancelariu[],ROW()-ROW(Odchylky_v_nakladoch_na_kancelariu[[#Headers],[Apr]]),1),INDEX(Planovane_naklady_na_kancelariu[],,1),0),MATCH(Odchylky_v_nakladoch_na_kancelariu[[#Headers],[Apr]],Planovane_naklady_na_kancelariu[#Headers],0))-INDEX(Skutocne_naklady_na_kancelariu[],MATCH(INDEX(Odchylky_v_nakladoch_na_kancelariu[],ROW()-ROW(Odchylky_v_nakladoch_na_kancelariu[[#Headers],[Apr]]),1),INDEX(Planovane_naklady_na_kancelariu[],,1),0),MATCH(Odchylky_v_nakladoch_na_kancelariu[[#Headers],[Apr]],Skutocne_naklady_na_kancelariu[#Headers],0))","v":{"v":4,"d":"4.00 EUR"}},{"$f":"INDEX(Planovane_naklady_na_kancelariu[],MATCH(INDEX(Odchylky_v_nakladoch_na_kancelariu[],ROW()-ROW(Odchylky_v_nakladoch_na_kancelariu[[#Headers],[Máj]]),1),INDEX(Planovane_naklady_na_kancelariu[],,1),0),MATCH(Odchylky_v_nakladoch_na_kancelariu[[#Headers],[Máj]],Planovane_naklady_na_kancelariu[#Headers],0))-INDEX(Skutocne_naklady_na_kancelariu[],MATCH(INDEX(Odchylky_v_nakladoch_na_kancelariu[],ROW()-ROW(Odchylky_v_nakladoch_na_kancelariu[[#Headers],[Máj]]),1),INDEX(Planovane_naklady_na_kancelariu[],,1),0),MATCH(Odchylky_v_nakladoch_na_kancelariu[[#Headers],[Máj]],Skutocne_naklady_na_kancelariu[#Headers],0))","v":{"v":6,"d":"6.00 EUR"}},{"$f":"INDEX(Planovane_naklady_na_kancelariu[],MATCH(INDEX(Odchylky_v_nakladoch_na_kancelariu[],ROW()-ROW(Odchylky_v_nakladoch_na_kancelariu[[#Headers],[Jún]]),1),INDEX(Planovane_naklady_na_kancelariu[],,1),0),MATCH(Odchylky_v_nakladoch_na_kancelariu[[#Headers],[Jún]],Planovane_naklady_na_kancelariu[#Headers],0))-INDEX(Skutocne_naklady_na_kancelariu[],MATCH(INDEX(Odchylky_v_nakladoch_na_kancelariu[],ROW()-ROW(Odchylky_v_nakladoch_na_kancelariu[[#Headers],[Jún]]),1),INDEX(Planovane_naklady_na_kancelariu[],,1),0),MATCH(Odchylky_v_nakladoch_na_kancelariu[[#Headers],[Jún]],Skutocne_naklady_na_kancelariu[#Headers],0))","v":{"v":4,"d":"4.00 EUR"}},{"$f":"INDEX(Planovane_naklady_na_kancelariu[],MATCH(INDEX(Odchylky_v_nakladoch_na_kancelariu[],ROW()-ROW(Odchylky_v_nakladoch_na_kancelariu[[#Headers],[Júl]]),1),INDEX(Planovane_naklady_na_kancelariu[],,1),0),MATCH(Odchylky_v_nakladoch_na_kancelariu[[#Headers],[Júl]],Planovane_naklady_na_kancelariu[#Headers],0))-INDEX(Skutocne_naklady_na_kancelariu[],MATCH(INDEX(Odchylky_v_nakladoch_na_kancelariu[],ROW()-ROW(Odchylky_v_nakladoch_na_kancelariu[[#Headers],[Júl]]),1),INDEX(Planovane_naklady_na_kancelariu[],,1),0),MATCH(Odchylky_v_nakladoch_na_kancelariu[[#Headers],[Júl]],Skutocne_naklady_na_kancelariu[#Headers],0))","v":{"v":40,"d":"40.00 EUR"}},{"$f":"INDEX(Planovane_naklady_na_kancelariu[],MATCH(INDEX(Odchylky_v_nakladoch_na_kancelariu[],ROW()-ROW(Odchylky_v_nakladoch_na_kancelariu[[#Headers],[Aug]]),1),INDEX(Planovane_naklady_na_kancelariu[],,1),0),MATCH(Odchylky_v_nakladoch_na_kancelariu[[#Headers],[Aug]],Planovane_naklady_na_kancelariu[#Headers],0))-INDEX(Skutocne_naklady_na_kancelariu[],MATCH(INDEX(Odchylky_v_nakladoch_na_kancelariu[],ROW()-ROW(Odchylky_v_nakladoch_na_kancelariu[[#Headers],[Aug]]),1),INDEX(Planovane_naklady_na_kancelariu[],,1),0),MATCH(Odchylky_v_nakladoch_na_kancelariu[[#Headers],[Aug]],Skutocne_naklady_na_kancelariu[#Headers],0))","v":{"v":40,"d":"40.00 EUR"}},{"$f":"INDEX(Planovane_naklady_na_kancelariu[],MATCH(INDEX(Odchylky_v_nakladoch_na_kancelariu[],ROW()-ROW(Odchylky_v_nakladoch_na_kancelariu[[#Headers],[Sep]]),1),INDEX(Planovane_naklady_na_kancelariu[],,1),0),MATCH(Odchylky_v_nakladoch_na_kancelariu[[#Headers],[Sep]],Planovane_naklady_na_kancelariu[#Headers],0))-INDEX(Skutocne_naklady_na_kancelariu[],MATCH(INDEX(Odchylky_v_nakladoch_na_kancelariu[],ROW()-ROW(Odchylky_v_nakladoch_na_kancelariu[[#Headers],[Sep]]),1),INDEX(Planovane_naklady_na_kancelariu[],,1),0),MATCH(Odchylky_v_nakladoch_na_kancelariu[[#Headers],[Sep]],Skutocne_naklady_na_kancelariu[#Headers],0))","v":{"v":40,"d":"40.00 EUR"}},{"$f":"INDEX(Planovane_naklady_na_kancelariu[],MATCH(INDEX(Odchylky_v_nakladoch_na_kancelariu[],ROW()-ROW(Odchylky_v_nakladoch_na_kancelariu[[#Headers],[Okt]]),1),INDEX(Planovane_naklady_na_kancelariu[],,1),0),MATCH(Odchylky_v_nakladoch_na_kancelariu[[#Headers],[Okt]],Planovane_naklady_na_kancelariu[#Headers],0))-INDEX(Skutocne_naklady_na_kancelariu[],MATCH(INDEX(Odchylky_v_nakladoch_na_kancelariu[],ROW()-ROW(Odchylky_v_nakladoch_na_kancelariu[[#Headers],[Okt]]),1),INDEX(Planovane_naklady_na_kancelariu[],,1),0),MATCH(Odchylky_v_nakladoch_na_kancelariu[[#Headers],[Okt]],Skutocne_naklady_na_kancelariu[#Headers],0))","v":{"v":40,"d":"40.00 EUR"}},{"$f":"INDEX(Planovane_naklady_na_kancelariu[],MATCH(INDEX(Odchylky_v_nakladoch_na_kancelariu[],ROW()-ROW(Odchylky_v_nakladoch_na_kancelariu[[#Headers],[Nov]]),1),INDEX(Planovane_naklady_na_kancelariu[],,1),0),MATCH(Odchylky_v_nakladoch_na_kancelariu[[#Headers],[Nov]],Planovane_naklady_na_kancelariu[#Headers],0))-INDEX(Skutocne_naklady_na_kancelariu[],MATCH(INDEX(Odchylky_v_nakladoch_na_kancelariu[],ROW()-ROW(Odchylky_v_nakladoch_na_kancelariu[[#Headers],[Nov]]),1),INDEX(Planovane_naklady_na_kancelariu[],,1),0),MATCH(Odchylky_v_nakladoch_na_kancelariu[[#Headers],[Nov]],Skutocne_naklady_na_kancelariu[#Headers],0))","v":{"v":40,"d":"40.00 EUR"}},{"$f":"INDEX(Planovane_naklady_na_kancelariu[],MATCH(INDEX(Odchylky_v_nakladoch_na_kancelariu[],ROW()-ROW(Odchylky_v_nakladoch_na_kancelariu[[#Headers],[Dec]]),1),INDEX(Planovane_naklady_na_kancelariu[],,1),0),MATCH(Odchylky_v_nakladoch_na_kancelariu[[#Headers],[Dec]],Planovane_naklady_na_kancelariu[#Headers],0))-INDEX(Skutocne_naklady_na_kancelariu[],MATCH(INDEX(Odchylky_v_nakladoch_na_kancelariu[],ROW()-ROW(Odchylky_v_nakladoch_na_kancelariu[[#Headers],[Dec]]),1),INDEX(Planovane_naklady_na_kancelariu[],,1),0),MATCH(Odchylky_v_nakladoch_na_kancelariu[[#Headers],[Dec]],Skutocne_naklady_na_kancelariu[#Headers],0))","v":{"v":40,"d":"40.00 EUR"}},{"$f":"SUM(Odchylky_v_nakladoch_na_kancelariu[[#This Row],[Jan]:[Dec]])","v":{"v":272,"d":"272.00 EUR"}}]
[null,"Telefón",{"$f":"INDEX(Planovane_naklady_na_kancelariu[],MATCH(INDEX(Odchylky_v_nakladoch_na_kancelariu[],ROW()-ROW(Odchylky_v_nakladoch_na_kancelariu[[#Headers],[Jan]]),1),INDEX(Planovane_naklady_na_kancelariu[],,1),0),MATCH(Odchylky_v_nakladoch_na_kancelariu[[#Headers],[Jan]],Planovane_naklady_na_kancelariu[#Headers],0))-INDEX(Skutocne_naklady_na_kancelariu[],MATCH(INDEX(Odchylky_v_nakladoch_na_kancelariu[],ROW()-ROW(Odchylky_v_nakladoch_na_kancelariu[[#Headers],[Jan]]),1),INDEX(Planovane_naklady_na_kancelariu[],,1),0),MATCH(Odchylky_v_nakladoch_na_kancelariu[[#Headers],[Jan]],Skutocne_naklady_na_kancelariu[#Headers],0))","v":{"v":26,"d":"26.00 EUR"}},{"$f":"INDEX(Planovane_naklady_na_kancelariu[],MATCH(INDEX(Odchylky_v_nakladoch_na_kancelariu[],ROW()-ROW(Odchylky_v_nakladoch_na_kancelariu[[#Headers],[Feb]]),1),INDEX(Planovane_naklady_na_kancelariu[],,1),0),MATCH(Odchylky_v_nakladoch_na_kancelariu[[#Headers],[Feb]],Planovane_naklady_na_kancelariu[#Headers],0))-INDEX(Skutocne_naklady_na_kancelariu[],MATCH(INDEX(Odchylky_v_nakladoch_na_kancelariu[],ROW()-ROW(Odchylky_v_nakladoch_na_kancelariu[[#Headers],[Feb]]),1),INDEX(Planovane_naklady_na_kancelariu[],,1),0),MATCH(Odchylky_v_nakladoch_na_kancelariu[[#Headers],[Feb]],Skutocne_naklady_na_kancelariu[#Headers],0))","v":{"v":15,"d":"15.00 EUR"}},{"$f":"INDEX(Planovane_naklady_na_kancelariu[],MATCH(INDEX(Odchylky_v_nakladoch_na_kancelariu[],ROW()-ROW(Odchylky_v_nakladoch_na_kancelariu[[#Headers],[Mar]]),1),INDEX(Planovane_naklady_na_kancelariu[],,1),0),MATCH(Odchylky_v_nakladoch_na_kancelariu[[#Headers],[Mar]],Planovane_naklady_na_kancelariu[#Headers],0))-INDEX(Skutocne_naklady_na_kancelariu[],MATCH(INDEX(Odchylky_v_nakladoch_na_kancelariu[],ROW()-ROW(Odchylky_v_nakladoch_na_kancelariu[[#Headers],[Mar]]),1),INDEX(Planovane_naklady_na_kancelariu[],,1),0),MATCH(Odchylky_v_nakladoch_na_kancelariu[[#Headers],[Mar]],Skutocne_naklady_na_kancelariu[#Headers],0))","v":{"v":-15,"d":"-15.00 EUR"}},{"$f":"INDEX(Planovane_naklady_na_kancelariu[],MATCH(INDEX(Odchylky_v_nakladoch_na_kancelariu[],ROW()-ROW(Odchylky_v_nakladoch_na_kancelariu[[#Headers],[Apr]]),1),INDEX(Planovane_naklady_na_kancelariu[],,1),0),MATCH(Odchylky_v_nakladoch_na_kancelariu[[#Headers],[Apr]],Planovane_naklady_na_kancelariu[#Headers],0))-INDEX(Skutocne_naklady_na_kancelariu[],MATCH(INDEX(Odchylky_v_nakladoch_na_kancelariu[],ROW()-ROW(Odchylky_v_nakladoch_na_kancelariu[[#Headers],[Apr]]),1),INDEX(Planovane_naklady_na_kancelariu[],,1),0),MATCH(Odchylky_v_nakladoch_na_kancelariu[[#Headers],[Apr]],Skutocne_naklady_na_kancelariu[#Headers],0))","v":{"v":5,"d":"5.00 EUR"}},{"$f":"INDEX(Planovane_naklady_na_kancelariu[],MATCH(INDEX(Odchylky_v_nakladoch_na_kancelariu[],ROW()-ROW(Odchylky_v_nakladoch_na_kancelariu[[#Headers],[Máj]]),1),INDEX(Planovane_naklady_na_kancelariu[],,1),0),MATCH(Odchylky_v_nakladoch_na_kancelariu[[#Headers],[Máj]],Planovane_naklady_na_kancelariu[#Headers],0))-INDEX(Skutocne_naklady_na_kancelariu[],MATCH(INDEX(Odchylky_v_nakladoch_na_kancelariu[],ROW()-ROW(Odchylky_v_nakladoch_na_kancelariu[[#Headers],[Máj]]),1),INDEX(Planovane_naklady_na_kancelariu[],,1),0),MATCH(Odchylky_v_nakladoch_na_kancelariu[[#Headers],[Máj]],Skutocne_naklady_na_kancelariu[#Headers],0))","v":{"v":5,"d":"5.00 EUR"}},{"$f":"INDEX(Planovane_naklady_na_kancelariu[],MATCH(INDEX(Odchylky_v_nakladoch_na_kancelariu[],ROW()-ROW(Odchylky_v_nakladoch_na_kancelariu[[#Headers],[Jún]]),1),INDEX(Planovane_naklady_na_kancelariu[],,1),0),MATCH(Odchylky_v_nakladoch_na_kancelariu[[#Headers],[Jún]],Planovane_naklady_na_kancelariu[#Headers],0))-INDEX(Skutocne_naklady_na_kancelariu[],MATCH(INDEX(Odchylky_v_nakladoch_na_kancelariu[],ROW()-ROW(Odchylky_v_nakladoch_na_kancelariu[[#Headers],[Jún]]),1),INDEX(Planovane_naklady_na_kancelariu[],,1),0),MATCH(Odchylky_v_nakladoch_na_kancelariu[[#Headers],[Jún]],Skutocne_naklady_na_kancelariu[#Headers],0))","v":{"v":30,"d":"30.00 EUR"}},{"$f":"INDEX(Planovane_naklady_na_kancelariu[],MATCH(INDEX(Odchylky_v_nakladoch_na_kancelariu[],ROW()-ROW(Odchylky_v_nakladoch_na_kancelariu[[#Headers],[Júl]]),1),INDEX(Planovane_naklady_na_kancelariu[],,1),0),MATCH(Odchylky_v_nakladoch_na_kancelariu[[#Headers],[Júl]],Planovane_naklady_na_kancelariu[#Headers],0))-INDEX(Skutocne_naklady_na_kancelariu[],MATCH(INDEX(Odchylky_v_nakladoch_na_kancelariu[],ROW()-ROW(Odchylky_v_nakladoch_na_kancelariu[[#Headers],[Júl]]),1),INDEX(Planovane_naklady_na_kancelariu[],,1),0),MATCH(Odchylky_v_nakladoch_na_kancelariu[[#Headers],[Júl]],Skutocne_naklady_na_kancelariu[#Headers],0))","v":{"v":250,"d":"250.00 EUR"}},{"$f":"INDEX(Planovane_naklady_na_kancelariu[],MATCH(INDEX(Odchylky_v_nakladoch_na_kancelariu[],ROW()-ROW(Odchylky_v_nakladoch_na_kancelariu[[#Headers],[Aug]]),1),INDEX(Planovane_naklady_na_kancelariu[],,1),0),MATCH(Odchylky_v_nakladoch_na_kancelariu[[#Headers],[Aug]],Planovane_naklady_na_kancelariu[#Headers],0))-INDEX(Skutocne_naklady_na_kancelariu[],MATCH(INDEX(Odchylky_v_nakladoch_na_kancelariu[],ROW()-ROW(Odchylky_v_nakladoch_na_kancelariu[[#Headers],[Aug]]),1),INDEX(Planovane_naklady_na_kancelariu[],,1),0),MATCH(Odchylky_v_nakladoch_na_kancelariu[[#Headers],[Aug]],Skutocne_naklady_na_kancelariu[#Headers],0))","v":{"v":250,"d":"250.00 EUR"}},{"$f":"INDEX(Planovane_naklady_na_kancelariu[],MATCH(INDEX(Odchylky_v_nakladoch_na_kancelariu[],ROW()-ROW(Odchylky_v_nakladoch_na_kancelariu[[#Headers],[Sep]]),1),INDEX(Planovane_naklady_na_kancelariu[],,1),0),MATCH(Odchylky_v_nakladoch_na_kancelariu[[#Headers],[Sep]],Planovane_naklady_na_kancelariu[#Headers],0))-INDEX(Skutocne_naklady_na_kancelariu[],MATCH(INDEX(Odchylky_v_nakladoch_na_kancelariu[],ROW()-ROW(Odchylky_v_nakladoch_na_kancelariu[[#Headers],[Sep]]),1),INDEX(Planovane_naklady_na_kancelariu[],,1),0),MATCH(Odchylky_v_nakladoch_na_kancelariu[[#Headers],[Sep]],Skutocne_naklady_na_kancelariu[#Headers],0))","v":{"v":250,"d":"250.00 EUR"}},{"$f":"INDEX(Planovane_naklady_na_kancelariu[],MATCH(INDEX(Odchylky_v_nakladoch_na_kancelariu[],ROW()-ROW(Odchylky_v_nakladoch_na_kancelariu[[#Headers],[Okt]]),1),INDEX(Planovane_naklady_na_kancelariu[],,1),0),MATCH(Odchylky_v_nakladoch_na_kancelariu[[#Headers],[Okt]],Planovane_naklady_na_kancelariu[#Headers],0))-INDEX(Skutocne_naklady_na_kancelariu[],MATCH(INDEX(Odchylky_v_nakladoch_na_kancelariu[],ROW()-ROW(Odchylky_v_nakladoch_na_kancelariu[[#Headers],[Okt]]),1),INDEX(Planovane_naklady_na_kancelariu[],,1),0),MATCH(Odchylky_v_nakladoch_na_kancelariu[[#Headers],[Okt]],Skutocne_naklady_na_kancelariu[#Headers],0))","v":{"v":250,"d":"250.00 EUR"}},{"$f":"INDEX(Planovane_naklady_na_kancelariu[],MATCH(INDEX(Odchylky_v_nakladoch_na_kancelariu[],ROW()-ROW(Odchylky_v_nakladoch_na_kancelariu[[#Headers],[Nov]]),1),INDEX(Planovane_naklady_na_kancelariu[],,1),0),MATCH(Odchylky_v_nakladoch_na_kancelariu[[#Headers],[Nov]],Planovane_naklady_na_kancelariu[#Headers],0))-INDEX(Skutocne_naklady_na_kancelariu[],MATCH(INDEX(Odchylky_v_nakladoch_na_kancelariu[],ROW()-ROW(Odchylky_v_nakladoch_na_kancelariu[[#Headers],[Nov]]),1),INDEX(Planovane_naklady_na_kancelariu[],,1),0),MATCH(Odchylky_v_nakladoch_na_kancelariu[[#Headers],[Nov]],Skutocne_naklady_na_kancelariu[#Headers],0))","v":{"v":250,"d":"250.00 EUR"}},{"$f":"INDEX(Planovane_naklady_na_kancelariu[],MATCH(INDEX(Odchylky_v_nakladoch_na_kancelariu[],ROW()-ROW(Odchylky_v_nakladoch_na_kancelariu[[#Headers],[Dec]]),1),INDEX(Planovane_naklady_na_kancelariu[],,1),0),MATCH(Odchylky_v_nakladoch_na_kancelariu[[#Headers],[Dec]],Planovane_naklady_na_kancelariu[#Headers],0))-INDEX(Skutocne_naklady_na_kancelariu[],MATCH(INDEX(Odchylky_v_nakladoch_na_kancelariu[],ROW()-ROW(Odchylky_v_nakladoch_na_kancelariu[[#Headers],[Dec]]),1),INDEX(Planovane_naklady_na_kancelariu[],,1),0),MATCH(Odchylky_v_nakladoch_na_kancelariu[[#Headers],[Dec]],Skutocne_naklady_na_kancelariu[#Headers],0))","v":{"v":250,"d":"250.00 EUR"}},{"$f":"SUM(Odchylky_v_nakladoch_na_kancelariu[[#This Row],[Jan]:[Dec]])","v":{"v":1566,"d":"1,566.00 EUR"}}]
[null,"Prístup na Internet",{"$f":"INDEX(Planovane_naklady_na_kancelariu[],MATCH(INDEX(Odchylky_v_nakladoch_na_kancelariu[],ROW()-ROW(Odchylky_v_nakladoch_na_kancelariu[[#Headers],[Jan]]),1),INDEX(Planovane_naklady_na_kancelariu[],,1),0),MATCH(Odchylky_v_nakladoch_na_kancelariu[[#Headers],[Jan]],Planovane_naklady_na_kancelariu[#Headers],0))-INDEX(Skutocne_naklady_na_kancelariu[],MATCH(INDEX(Odchylky_v_nakladoch_na_kancelariu[],ROW()-ROW(Odchylky_v_nakladoch_na_kancelariu[[#Headers],[Jan]]),1),INDEX(Planovane_naklady_na_kancelariu[],,1),0),MATCH(Odchylky_v_nakladoch_na_kancelariu[[#Headers],[Jan]],Skutocne_naklady_na_kancelariu[#Headers],0))","v":{"v":0,"d":"0.00 EUR"}},{"$f":"INDEX(Planovane_naklady_na_kancelariu[],MATCH(INDEX(Odchylky_v_nakladoch_na_kancelariu[],ROW()-ROW(Odchylky_v_nakladoch_na_kancelariu[[#Headers],[Feb]]),1),INDEX(Planovane_naklady_na_kancelariu[],,1),0),MATCH(Odchylky_v_nakladoch_na_kancelariu[[#Headers],[Feb]],Planovane_naklady_na_kancelariu[#Headers],0))-INDEX(Skutocne_naklady_na_kancelariu[],MATCH(INDEX(Odchylky_v_nakladoch_na_kancelariu[],ROW()-ROW(Odchylky_v_nakladoch_na_kancelariu[[#Headers],[Feb]]),1),INDEX(Planovane_naklady_na_kancelariu[],,1),0),MATCH(Odchylky_v_nakladoch_na_kancelariu[[#Headers],[Feb]],Skutocne_naklady_na_kancelariu[#Headers],0))","v":{"v":0,"d":"0.00 EUR"}},{"$f":"INDEX(Planovane_naklady_na_kancelariu[],MATCH(INDEX(Odchylky_v_nakladoch_na_kancelariu[],ROW()-ROW(Odchylky_v_nakladoch_na_kancelariu[[#Headers],[Mar]]),1),INDEX(Planovane_naklady_na_kancelariu[],,1),0),MATCH(Odchylky_v_nakladoch_na_kancelariu[[#Headers],[Mar]],Planovane_naklady_na_kancelariu[#Headers],0))-INDEX(Skutocne_naklady_na_kancelariu[],MATCH(INDEX(Odchylky_v_nakladoch_na_kancelariu[],ROW()-ROW(Odchylky_v_nakladoch_na_kancelariu[[#Headers],[Mar]]),1),INDEX(Planovane_naklady_na_kancelariu[],,1),0),MATCH(Odchylky_v_nakladoch_na_kancelariu[[#Headers],[Mar]],Skutocne_naklady_na_kancelariu[#Headers],0))","v":{"v":0,"d":"0.00 EUR"}},{"$f":"INDEX(Planovane_naklady_na_kancelariu[],MATCH(INDEX(Odchylky_v_nakladoch_na_kancelariu[],ROW()-ROW(Odchylky_v_nakladoch_na_kancelariu[[#Headers],[Apr]]),1),INDEX(Planovane_naklady_na_kancelariu[],,1),0),MATCH(Odchylky_v_nakladoch_na_kancelariu[[#Headers],[Apr]],Planovane_naklady_na_kancelariu[#Headers],0))-INDEX(Skutocne_naklady_na_kancelariu[],MATCH(INDEX(Odchylky_v_nakladoch_na_kancelariu[],ROW()-ROW(Odchylky_v_nakladoch_na_kancelariu[[#Headers],[Apr]]),1),INDEX(Planovane_naklady_na_kancelariu[],,1),0),MATCH(Odchylky_v_nakladoch_na_kancelariu[[#Headers],[Apr]],Skutocne_naklady_na_kancelariu[#Headers],0))","v":{"v":0,"d":"0.00 EUR"}},{"$f":"INDEX(Planovane_naklady_na_kancelariu[],MATCH(INDEX(Odchylky_v_nakladoch_na_kancelariu[],ROW()-ROW(Odchylky_v_nakladoch_na_kancelariu[[#Headers],[Máj]]),1),INDEX(Planovane_naklady_na_kancelariu[],,1),0),MATCH(Odchylky_v_nakladoch_na_kancelariu[[#Headers],[Máj]],Planovane_naklady_na_kancelariu[#Headers],0))-INDEX(Skutocne_naklady_na_kancelariu[],MATCH(INDEX(Odchylky_v_nakladoch_na_kancelariu[],ROW()-ROW(Odchylky_v_nakladoch_na_kancelariu[[#Headers],[Máj]]),1),INDEX(Planovane_naklady_na_kancelariu[],,1),0),MATCH(Odchylky_v_nakladoch_na_kancelariu[[#Headers],[Máj]],Skutocne_naklady_na_kancelariu[#Headers],0))","v":{"v":0,"d":"0.00 EUR"}},{"$f":"INDEX(Planovane_naklady_na_kancelariu[],MATCH(INDEX(Odchylky_v_nakladoch_na_kancelariu[],ROW()-ROW(Odchylky_v_nakladoch_na_kancelariu[[#Headers],[Jún]]),1),INDEX(Planovane_naklady_na_kancelariu[],,1),0),MATCH(Odchylky_v_nakladoch_na_kancelariu[[#Headers],[Jún]],Planovane_naklady_na_kancelariu[#Headers],0))-INDEX(Skutocne_naklady_na_kancelariu[],MATCH(INDEX(Odchylky_v_nakladoch_na_kancelariu[],ROW()-ROW(Odchylky_v_nakladoch_na_kancelariu[[#Headers],[Jún]]),1),INDEX(Planovane_naklady_na_kancelariu[],,1),0),MATCH(Odchylky_v_nakladoch_na_kancelariu[[#Headers],[Jún]],Skutocne_naklady_na_kancelariu[#Headers],0))","v":{"v":0,"d":"0.00 EUR"}},{"$f":"INDEX(Planovane_naklady_na_kancelariu[],MATCH(INDEX(Odchylky_v_nakladoch_na_kancelariu[],ROW()-ROW(Odchylky_v_nakladoch_na_kancelariu[[#Headers],[Júl]]),1),INDEX(Planovane_naklady_na_kancelariu[],,1),0),MATCH(Odchylky_v_nakladoch_na_kancelariu[[#Headers],[Júl]],Planovane_naklady_na_kancelariu[#Headers],0))-INDEX(Skutocne_naklady_na_kancelariu[],MATCH(INDEX(Odchylky_v_nakladoch_na_kancelariu[],ROW()-ROW(Odchylky_v_nakladoch_na_kancelariu[[#Headers],[Júl]]),1),INDEX(Planovane_naklady_na_kancelariu[],,1),0),MATCH(Odchylky_v_nakladoch_na_kancelariu[[#Headers],[Júl]],Skutocne_naklady_na_kancelariu[#Headers],0))","v":{"v":180,"d":"180.00 EUR"}},{"$f":"INDEX(Planovane_naklady_na_kancelariu[],MATCH(INDEX(Odchylky_v_nakladoch_na_kancelariu[],ROW()-ROW(Odchylky_v_nakladoch_na_kancelariu[[#Headers],[Aug]]),1),INDEX(Planovane_naklady_na_kancelariu[],,1),0),MATCH(Odchylky_v_nakladoch_na_kancelariu[[#Headers],[Aug]],Planovane_naklady_na_kancelariu[#Headers],0))-INDEX(Skutocne_naklady_na_kancelariu[],MATCH(INDEX(Odchylky_v_nakladoch_na_kancelariu[],ROW()-ROW(Odchylky_v_nakladoch_na_kancelariu[[#Headers],[Aug]]),1),INDEX(Planovane_naklady_na_kancelariu[],,1),0),MATCH(Odchylky_v_nakladoch_na_kancelariu[[#Headers],[Aug]],Skutocne_naklady_na_kancelariu[#Headers],0))","v":{"v":180,"d":"180.00 EUR"}},{"$f":"INDEX(Planovane_naklady_na_kancelariu[],MATCH(INDEX(Odchylky_v_nakladoch_na_kancelariu[],ROW()-ROW(Odchylky_v_nakladoch_na_kancelariu[[#Headers],[Sep]]),1),INDEX(Planovane_naklady_na_kancelariu[],,1),0),MATCH(Odchylky_v_nakladoch_na_kancelariu[[#Headers],[Sep]],Planovane_naklady_na_kancelariu[#Headers],0))-INDEX(Skutocne_naklady_na_kancelariu[],MATCH(INDEX(Odchylky_v_nakladoch_na_kancelariu[],ROW()-ROW(Odchylky_v_nakladoch_na_kancelariu[[#Headers],[Sep]]),1),INDEX(Planovane_naklady_na_kancelariu[],,1),0),MATCH(Odchylky_v_nakladoch_na_kancelariu[[#Headers],[Sep]],Skutocne_naklady_na_kancelariu[#Headers],0))","v":{"v":180,"d":"180.00 EUR"}},{"$f":"INDEX(Planovane_naklady_na_kancelariu[],MATCH(INDEX(Odchylky_v_nakladoch_na_kancelariu[],ROW()-ROW(Odchylky_v_nakladoch_na_kancelariu[[#Headers],[Okt]]),1),INDEX(Planovane_naklady_na_kancelariu[],,1),0),MATCH(Odchylky_v_nakladoch_na_kancelariu[[#Headers],[Okt]],Planovane_naklady_na_kancelariu[#Headers],0))-INDEX(Skutocne_naklady_na_kancelariu[],MATCH(INDEX(Odchylky_v_nakladoch_na_kancelariu[],ROW()-ROW(Odchylky_v_nakladoch_na_kancelariu[[#Headers],[Okt]]),1),INDEX(Planovane_naklady_na_kancelariu[],,1),0),MATCH(Odchylky_v_nakladoch_na_kancelariu[[#Headers],[Okt]],Skutocne_naklady_na_kancelariu[#Headers],0))","v":{"v":180,"d":"180.00 EUR"}},{"$f":"INDEX(Planovane_naklady_na_kancelariu[],MATCH(INDEX(Odchylky_v_nakladoch_na_kancelariu[],ROW()-ROW(Odchylky_v_nakladoch_na_kancelariu[[#Headers],[Nov]]),1),INDEX(Planovane_naklady_na_kancelariu[],,1),0),MATCH(Odchylky_v_nakladoch_na_kancelariu[[#Headers],[Nov]],Planovane_naklady_na_kancelariu[#Headers],0))-INDEX(Skutocne_naklady_na_kancelariu[],MATCH(INDEX(Odchylky_v_nakladoch_na_kancelariu[],ROW()-ROW(Odchylky_v_nakladoch_na_kancelariu[[#Headers],[Nov]]),1),INDEX(Planovane_naklady_na_kancelariu[],,1),0),MATCH(Odchylky_v_nakladoch_na_kancelariu[[#Headers],[Nov]],Skutocne_naklady_na_kancelariu[#Headers],0))","v":{"v":180,"d":"180.00 EUR"}},{"$f":"INDEX(Planovane_naklady_na_kancelariu[],MATCH(INDEX(Odchylky_v_nakladoch_na_kancelariu[],ROW()-ROW(Odchylky_v_nakladoch_na_kancelariu[[#Headers],[Dec]]),1),INDEX(Planovane_naklady_na_kancelariu[],,1),0),MATCH(Odchylky_v_nakladoch_na_kancelariu[[#Headers],[Dec]],Planovane_naklady_na_kancelariu[#Headers],0))-INDEX(Skutocne_naklady_na_kancelariu[],MATCH(INDEX(Odchylky_v_nakladoch_na_kancelariu[],ROW()-ROW(Odchylky_v_nakladoch_na_kancelariu[[#Headers],[Dec]]),1),INDEX(Planovane_naklady_na_kancelariu[],,1),0),MATCH(Odchylky_v_nakladoch_na_kancelariu[[#Headers],[Dec]],Skutocne_naklady_na_kancelariu[#Headers],0))","v":{"v":180,"d":"180.00 EUR"}},{"$f":"SUM(Odchylky_v_nakladoch_na_kancelariu[[#This Row],[Jan]:[Dec]])","v":{"v":1080,"d":"1,080.00 EUR"}}]
[null,"Kancelárske potreby",{"$f":"INDEX(Planovane_naklady_na_kancelariu[],MATCH(INDEX(Odchylky_v_nakladoch_na_kancelariu[],ROW()-ROW(Odchylky_v_nakladoch_na_kancelariu[[#Headers],[Jan]]),1),INDEX(Planovane_naklady_na_kancelariu[],,1),0),MATCH(Odchylky_v_nakladoch_na_kancelariu[[#Headers],[Jan]],Planovane_naklady_na_kancelariu[#Headers],0))-INDEX(Skutocne_naklady_na_kancelariu[],MATCH(INDEX(Odchylky_v_nakladoch_na_kancelariu[],ROW()-ROW(Odchylky_v_nakladoch_na_kancelariu[[#Headers],[Jan]]),1),INDEX(Planovane_naklady_na_kancelariu[],,1),0),MATCH(Odchylky_v_nakladoch_na_kancelariu[[#Headers],[Jan]],Skutocne_naklady_na_kancelariu[#Headers],0))","v":{"v":-56,"d":"-56.00 EUR"}},{"$f":"INDEX(Planovane_naklady_na_kancelariu[],MATCH(INDEX(Odchylky_v_nakladoch_na_kancelariu[],ROW()-ROW(Odchylky_v_nakladoch_na_kancelariu[[#Headers],[Feb]]),1),INDEX(Planovane_naklady_na_kancelariu[],,1),0),MATCH(Odchylky_v_nakladoch_na_kancelariu[[#Headers],[Feb]],Planovane_naklady_na_kancelariu[#Headers],0))-INDEX(Skutocne_naklady_na_kancelariu[],MATCH(INDEX(Odchylky_v_nakladoch_na_kancelariu[],ROW()-ROW(Odchylky_v_nakladoch_na_kancelariu[[#Headers],[Feb]]),1),INDEX(Planovane_naklady_na_kancelariu[],,1),0),MATCH(Odchylky_v_nakladoch_na_kancelariu[[#Headers],[Feb]],Skutocne_naklady_na_kancelariu[#Headers],0))","v":{"v":58,"d":"58.00 EUR"}},{"$f":"INDEX(Planovane_naklady_na_kancelariu[],MATCH(INDEX(Odchylky_v_nakladoch_na_kancelariu[],ROW()-ROW(Odchylky_v_nakladoch_na_kancelariu[[#Headers],[Mar]]),1),INDEX(Planovane_naklady_na_kancelariu[],,1),0),MATCH(Odchylky_v_nakladoch_na_kancelariu[[#Headers],[Mar]],Planovane_naklady_na_kancelariu[#Headers],0))-INDEX(Skutocne_naklady_na_kancelariu[],MATCH(INDEX(Odchylky_v_nakladoch_na_kancelariu[],ROW()-ROW(Odchylky_v_nakladoch_na_kancelariu[[#Headers],[Mar]]),1),INDEX(Planovane_naklady_na_kancelariu[],,1),0),MATCH(Odchylky_v_nakladoch_na_kancelariu[[#Headers],[Mar]],Skutocne_naklady_na_kancelariu[#Headers],0))","v":{"v":40,"d":"40.00 EUR"}},{"$f":"INDEX(Planovane_naklady_na_kancelariu[],MATCH(INDEX(Odchylky_v_nakladoch_na_kancelariu[],ROW()-ROW(Odchylky_v_nakladoch_na_kancelariu[[#Headers],[Apr]]),1),INDEX(Planovane_naklady_na_kancelariu[],,1),0),MATCH(Odchylky_v_nakladoch_na_kancelariu[[#Headers],[Apr]],Planovane_naklady_na_kancelariu[#Headers],0))-INDEX(Skutocne_naklady_na_kancelariu[],MATCH(INDEX(Odchylky_v_nakladoch_na_kancelariu[],ROW()-ROW(Odchylky_v_nakladoch_na_kancelariu[[#Headers],[Apr]]),1),INDEX(Planovane_naklady_na_kancelariu[],,1),0),MATCH(Odchylky_v_nakladoch_na_kancelariu[[#Headers],[Apr]],Skutocne_naklady_na_kancelariu[#Headers],0))","v":{"v":-21,"d":"-21.00 EUR"}},{"$f":"INDEX(Planovane_naklady_na_kancelariu[],MATCH(INDEX(Odchylky_v_nakladoch_na_kancelariu[],ROW()-ROW(Odchylky_v_nakladoch_na_kancelariu[[#Headers],[Máj]]),1),INDEX(Planovane_naklady_na_kancelariu[],,1),0),MATCH(Odchylky_v_nakladoch_na_kancelariu[[#Headers],[Máj]],Planovane_naklady_na_kancelariu[#Headers],0))-INDEX(Skutocne_naklady_na_kancelariu[],MATCH(INDEX(Odchylky_v_nakladoch_na_kancelariu[],ROW()-ROW(Odchylky_v_nakladoch_na_kancelariu[[#Headers],[Máj]]),1),INDEX(Planovane_naklady_na_kancelariu[],,1),0),MATCH(Odchylky_v_nakladoch_na_kancelariu[[#Headers],[Máj]],Skutocne_naklady_na_kancelariu[#Headers],0))","v":{"v":-56,"d":"-56.00 EUR"}},{"$f":"INDEX(Planovane_naklady_na_kancelariu[],MATCH(INDEX(Odchylky_v_nakladoch_na_kancelariu[],ROW()-ROW(Odchylky_v_nakladoch_na_kancelariu[[#Headers],[Jún]]),1),INDEX(Planovane_naklady_na_kancelariu[],,1),0),MATCH(Odchylky_v_nakladoch_na_kancelariu[[#Headers],[Jún]],Planovane_naklady_na_kancelariu[#Headers],0))-INDEX(Skutocne_naklady_na_kancelariu[],MATCH(INDEX(Odchylky_v_nakladoch_na_kancelariu[],ROW()-ROW(Odchylky_v_nakladoch_na_kancelariu[[#Headers],[Jún]]),1),INDEX(Planovane_naklady_na_kancelariu[],,1),0),MATCH(Odchylky_v_nakladoch_na_kancelariu[[#Headers],[Jún]],Skutocne_naklady_na_kancelariu[#Headers],0))","v":{"v":-40,"d":"-40.00 EUR"}},{"$f":"INDEX(Planovane_naklady_na_kancelariu[],MATCH(INDEX(Odchylky_v_nakladoch_na_kancelariu[],ROW()-ROW(Odchylky_v_nakladoch_na_kancelariu[[#Headers],[Júl]]),1),INDEX(Planovane_naklady_na_kancelariu[],,1),0),MATCH(Odchylky_v_nakladoch_na_kancelariu[[#Headers],[Júl]],Planovane_naklady_na_kancelariu[#Headers],0))-INDEX(Skutocne_naklady_na_kancelariu[],MATCH(INDEX(Odchylky_v_nakladoch_na_kancelariu[],ROW()-ROW(Odchylky_v_nakladoch_na_kancelariu[[#Headers],[Júl]]),1),INDEX(Planovane_naklady_na_kancelariu[],,1),0),MATCH(Odchylky_v_nakladoch_na_kancelariu[[#Headers],[Júl]],Skutocne_naklady_na_kancelariu[#Headers],0))","v":{"v":200,"d":"200.00 EUR"}},{"$f":"INDEX(Planovane_naklady_na_kancelariu[],MATCH(INDEX(Odchylky_v_nakladoch_na_kancelariu[],ROW()-ROW(Odchylky_v_nakladoch_na_kancelariu[[#Headers],[Aug]]),1),INDEX(Planovane_naklady_na_kancelariu[],,1),0),MATCH(Odchylky_v_nakladoch_na_kancelariu[[#Headers],[Aug]],Planovane_naklady_na_kancelariu[#Headers],0))-INDEX(Skutocne_naklady_na_kancelariu[],MATCH(INDEX(Odchylky_v_nakladoch_na_kancelariu[],ROW()-ROW(Odchylky_v_nakladoch_na_kancelariu[[#Headers],[Aug]]),1),INDEX(Planovane_naklady_na_kancelariu[],,1),0),MATCH(Odchylky_v_nakladoch_na_kancelariu[[#Headers],[Aug]],Skutocne_naklady_na_kancelariu[#Headers],0))","v":{"v":200,"d":"200.00 EUR"}},{"$f":"INDEX(Planovane_naklady_na_kancelariu[],MATCH(INDEX(Odchylky_v_nakladoch_na_kancelariu[],ROW()-ROW(Odchylky_v_nakladoch_na_kancelariu[[#Headers],[Sep]]),1),INDEX(Planovane_naklady_na_kancelariu[],,1),0),MATCH(Odchylky_v_nakladoch_na_kancelariu[[#Headers],[Sep]],Planovane_naklady_na_kancelariu[#Headers],0))-INDEX(Skutocne_naklady_na_kancelariu[],MATCH(INDEX(Odchylky_v_nakladoch_na_kancelariu[],ROW()-ROW(Odchylky_v_nakladoch_na_kancelariu[[#Headers],[Sep]]),1),INDEX(Planovane_naklady_na_kancelariu[],,1),0),MATCH(Odchylky_v_nakladoch_na_kancelariu[[#Headers],[Sep]],Skutocne_naklady_na_kancelariu[#Headers],0))","v":{"v":200,"d":"200.00 EUR"}},{"$f":"INDEX(Planovane_naklady_na_kancelariu[],MATCH(INDEX(Odchylky_v_nakladoch_na_kancelariu[],ROW()-ROW(Odchylky_v_nakladoch_na_kancelariu[[#Headers],[Okt]]),1),INDEX(Planovane_naklady_na_kancelariu[],,1),0),MATCH(Odchylky_v_nakladoch_na_kancelariu[[#Headers],[Okt]],Planovane_naklady_na_kancelariu[#Headers],0))-INDEX(Skutocne_naklady_na_kancelariu[],MATCH(INDEX(Odchylky_v_nakladoch_na_kancelariu[],ROW()-ROW(Odchylky_v_nakladoch_na_kancelariu[[#Headers],[Okt]]),1),INDEX(Planovane_naklady_na_kancelariu[],,1),0),MATCH(Odchylky_v_nakladoch_na_kancelariu[[#Headers],[Okt]],Skutocne_naklady_na_kancelariu[#Headers],0))","v":{"v":200,"d":"200.00 EUR"}},{"$f":"INDEX(Planovane_naklady_na_kancelariu[],MATCH(INDEX(Odchylky_v_nakladoch_na_kancelariu[],ROW()-ROW(Odchylky_v_nakladoch_na_kancelariu[[#Headers],[Nov]]),1),INDEX(Planovane_naklady_na_kancelariu[],,1),0),MATCH(Odchylky_v_nakladoch_na_kancelariu[[#Headers],[Nov]],Planovane_naklady_na_kancelariu[#Headers],0))-INDEX(Skutocne_naklady_na_kancelariu[],MATCH(INDEX(Odchylky_v_nakladoch_na_kancelariu[],ROW()-ROW(Odchylky_v_nakladoch_na_kancelariu[[#Headers],[Nov]]),1),INDEX(Planovane_naklady_na_kancelariu[],,1),0),MATCH(Odchylky_v_nakladoch_na_kancelariu[[#Headers],[Nov]],Skutocne_naklady_na_kancelariu[#Headers],0))","v":{"v":200,"d":"200.00 EUR"}},{"$f":"INDEX(Planovane_naklady_na_kancelariu[],MATCH(INDEX(Odchylky_v_nakladoch_na_kancelariu[],ROW()-ROW(Odchylky_v_nakladoch_na_kancelariu[[#Headers],[Dec]]),1),INDEX(Planovane_naklady_na_kancelariu[],,1),0),MATCH(Odchylky_v_nakladoch_na_kancelariu[[#Headers],[Dec]],Planovane_naklady_na_kancelariu[#Headers],0))-INDEX(Skutocne_naklady_na_kancelariu[],MATCH(INDEX(Odchylky_v_nakladoch_na_kancelariu[],ROW()-ROW(Odchylky_v_nakladoch_na_kancelariu[[#Headers],[Dec]]),1),INDEX(Planovane_naklady_na_kancelariu[],,1),0),MATCH(Odchylky_v_nakladoch_na_kancelariu[[#Headers],[Dec]],Skutocne_naklady_na_kancelariu[#Headers],0))","v":{"v":200,"d":"200.00 EUR"}},{"$f":"SUM(Odchylky_v_nakladoch_na_kancelariu[[#This Row],[Jan]:[Dec]])","v":{"v":1125,"d":"1,125.00 EUR"}}]
[null,"Zabezpečenie",{"$f":"INDEX(Planovane_naklady_na_kancelariu[],MATCH(INDEX(Odchylky_v_nakladoch_na_kancelariu[],ROW()-ROW(Odchylky_v_nakladoch_na_kancelariu[[#Headers],[Jan]]),1),INDEX(Planovane_naklady_na_kancelariu[],,1),0),MATCH(Odchylky_v_nakladoch_na_kancelariu[[#Headers],[Jan]],Planovane_naklady_na_kancelariu[#Headers],0))-INDEX(Skutocne_naklady_na_kancelariu[],MATCH(INDEX(Odchylky_v_nakladoch_na_kancelariu[],ROW()-ROW(Odchylky_v_nakladoch_na_kancelariu[[#Headers],[Jan]]),1),INDEX(Planovane_naklady_na_kancelariu[],,1),0),MATCH(Odchylky_v_nakladoch_na_kancelariu[[#Headers],[Jan]],Skutocne_naklady_na_kancelariu[#Headers],0))","v":{"v":0,"d":"0.00 EUR"}},{"$f":"INDEX(Planovane_naklady_na_kancelariu[],MATCH(INDEX(Odchylky_v_nakladoch_na_kancelariu[],ROW()-ROW(Odchylky_v_nakladoch_na_kancelariu[[#Headers],[Feb]]),1),INDEX(Planovane_naklady_na_kancelariu[],,1),0),MATCH(Odchylky_v_nakladoch_na_kancelariu[[#Headers],[Feb]],Planovane_naklady_na_kancelariu[#Headers],0))-INDEX(Skutocne_naklady_na_kancelariu[],MATCH(INDEX(Odchylky_v_nakladoch_na_kancelariu[],ROW()-ROW(Odchylky_v_nakladoch_na_kancelariu[[#Headers],[Feb]]),1),INDEX(Planovane_naklady_na_kancelariu[],,1),0),MATCH(Odchylky_v_nakladoch_na_kancelariu[[#Headers],[Feb]],Skutocne_naklady_na_kancelariu[#Headers],0))","v":{"v":0,"d":"0.00 EUR"}},{"$f":"INDEX(Planovane_naklady_na_kancelariu[],MATCH(INDEX(Odchylky_v_nakladoch_na_kancelariu[],ROW()-ROW(Odchylky_v_nakladoch_na_kancelariu[[#Headers],[Mar]]),1),INDEX(Planovane_naklady_na_kancelariu[],,1),0),MATCH(Odchylky_v_nakladoch_na_kancelariu[[#Headers],[Mar]],Planovane_naklady_na_kancelariu[#Headers],0))-INDEX(Skutocne_naklady_na_kancelariu[],MATCH(INDEX(Odchylky_v_nakladoch_na_kancelariu[],ROW()-ROW(Odchylky_v_nakladoch_na_kancelariu[[#Headers],[Mar]]),1),INDEX(Planovane_naklady_na_kancelariu[],,1),0),MATCH(Odchylky_v_nakladoch_na_kancelariu[[#Headers],[Mar]],Skutocne_naklady_na_kancelariu[#Headers],0))","v":{"v":0,"d":"0.00 EUR"}},{"$f":"INDEX(Planovane_naklady_na_kancelariu[],MATCH(INDEX(Odchylky_v_nakladoch_na_kancelariu[],ROW()-ROW(Odchylky_v_nakladoch_na_kancelariu[[#Headers],[Apr]]),1),INDEX(Planovane_naklady_na_kancelariu[],,1),0),MATCH(Odchylky_v_nakladoch_na_kancelariu[[#Headers],[Apr]],Planovane_naklady_na_kancelariu[#Headers],0))-INDEX(Skutocne_naklady_na_kancelariu[],MATCH(INDEX(Odchylky_v_nakladoch_na_kancelariu[],ROW()-ROW(Odchylky_v_nakladoch_na_kancelariu[[#Headers],[Apr]]),1),INDEX(Planovane_naklady_na_kancelariu[],,1),0),MATCH(Odchylky_v_nakladoch_na_kancelariu[[#Headers],[Apr]],Skutocne_naklady_na_kancelariu[#Headers],0))","v":{"v":0,"d":"0.00 EUR"}},{"$f":"INDEX(Planovane_naklady_na_kancelariu[],MATCH(INDEX(Odchylky_v_nakladoch_na_kancelariu[],ROW()-ROW(Odchylky_v_nakladoch_na_kancelariu[[#Headers],[Máj]]),1),INDEX(Planovane_naklady_na_kancelariu[],,1),0),MATCH(Odchylky_v_nakladoch_na_kancelariu[[#Headers],[Máj]],Planovane_naklady_na_kancelariu[#Headers],0))-INDEX(Skutocne_naklady_na_kancelariu[],MATCH(INDEX(Odchylky_v_nakladoch_na_kancelariu[],ROW()-ROW(Odchylky_v_nakladoch_na_kancelariu[[#Headers],[Máj]]),1),INDEX(Planovane_naklady_na_kancelariu[],,1),0),MATCH(Odchylky_v_nakladoch_na_kancelariu[[#Headers],[Máj]],Skutocne_naklady_na_kancelariu[#Headers],0))","v":{"v":0,"d":"0.00 EUR"}},{"$f":"INDEX(Planovane_naklady_na_kancelariu[],MATCH(INDEX(Odchylky_v_nakladoch_na_kancelariu[],ROW()-ROW(Odchylky_v_nakladoch_na_kancelariu[[#Headers],[Jún]]),1),INDEX(Planovane_naklady_na_kancelariu[],,1),0),MATCH(Odchylky_v_nakladoch_na_kancelariu[[#Headers],[Jún]],Planovane_naklady_na_kancelariu[#Headers],0))-INDEX(Skutocne_naklady_na_kancelariu[],MATCH(INDEX(Odchylky_v_nakladoch_na_kancelariu[],ROW()-ROW(Odchylky_v_nakladoch_na_kancelariu[[#Headers],[Jún]]),1),INDEX(Planovane_naklady_na_kancelariu[],,1),0),MATCH(Odchylky_v_nakladoch_na_kancelariu[[#Headers],[Jún]],Skutocne_naklady_na_kancelariu[#Headers],0))","v":{"v":0,"d":"0.00 EUR"}},{"$f":"INDEX(Planovane_naklady_na_kancelariu[],MATCH(INDEX(Odchylky_v_nakladoch_na_kancelariu[],ROW()-ROW(Odchylky_v_nakladoch_na_kancelariu[[#Headers],[Júl]]),1),INDEX(Planovane_naklady_na_kancelariu[],,1),0),MATCH(Odchylky_v_nakladoch_na_kancelariu[[#Headers],[Júl]],Planovane_naklady_na_kancelariu[#Headers],0))-INDEX(Skutocne_naklady_na_kancelariu[],MATCH(INDEX(Odchylky_v_nakladoch_na_kancelariu[],ROW()-ROW(Odchylky_v_nakladoch_na_kancelariu[[#Headers],[Júl]]),1),INDEX(Planovane_naklady_na_kancelariu[],,1),0),MATCH(Odchylky_v_nakladoch_na_kancelariu[[#Headers],[Júl]],Skutocne_naklady_na_kancelariu[#Headers],0))","v":{"v":600,"d":"600.00 EUR"}},{"$f":"INDEX(Planovane_naklady_na_kancelariu[],MATCH(INDEX(Odchylky_v_nakladoch_na_kancelariu[],ROW()-ROW(Odchylky_v_nakladoch_na_kancelariu[[#Headers],[Aug]]),1),INDEX(Planovane_naklady_na_kancelariu[],,1),0),MATCH(Odchylky_v_nakladoch_na_kancelariu[[#Headers],[Aug]],Planovane_naklady_na_kancelariu[#Headers],0))-INDEX(Skutocne_naklady_na_kancelariu[],MATCH(INDEX(Odchylky_v_nakladoch_na_kancelariu[],ROW()-ROW(Odchylky_v_nakladoch_na_kancelariu[[#Headers],[Aug]]),1),INDEX(Planovane_naklady_na_kancelariu[],,1),0),MATCH(Odchylky_v_nakladoch_na_kancelariu[[#Headers],[Aug]],Skutocne_naklady_na_kancelariu[#Headers],0))","v":{"v":600,"d":"600.00 EUR"}},{"$f":"INDEX(Planovane_naklady_na_kancelariu[],MATCH(INDEX(Odchylky_v_nakladoch_na_kancelariu[],ROW()-ROW(Odchylky_v_nakladoch_na_kancelariu[[#Headers],[Sep]]),1),INDEX(Planovane_naklady_na_kancelariu[],,1),0),MATCH(Odchylky_v_nakladoch_na_kancelariu[[#Headers],[Sep]],Planovane_naklady_na_kancelariu[#Headers],0))-INDEX(Skutocne_naklady_na_kancelariu[],MATCH(INDEX(Odchylky_v_nakladoch_na_kancelariu[],ROW()-ROW(Odchylky_v_nakladoch_na_kancelariu[[#Headers],[Sep]]),1),INDEX(Planovane_naklady_na_kancelariu[],,1),0),MATCH(Odchylky_v_nakladoch_na_kancelariu[[#Headers],[Sep]],Skutocne_naklady_na_kancelariu[#Headers],0))","v":{"v":600,"d":"600.00 EUR"}},{"$f":"INDEX(Planovane_naklady_na_kancelariu[],MATCH(INDEX(Odchylky_v_nakladoch_na_kancelariu[],ROW()-ROW(Odchylky_v_nakladoch_na_kancelariu[[#Headers],[Okt]]),1),INDEX(Planovane_naklady_na_kancelariu[],,1),0),MATCH(Odchylky_v_nakladoch_na_kancelariu[[#Headers],[Okt]],Planovane_naklady_na_kancelariu[#Headers],0))-INDEX(Skutocne_naklady_na_kancelariu[],MATCH(INDEX(Odchylky_v_nakladoch_na_kancelariu[],ROW()-ROW(Odchylky_v_nakladoch_na_kancelariu[[#Headers],[Okt]]),1),INDEX(Planovane_naklady_na_kancelariu[],,1),0),MATCH(Odchylky_v_nakladoch_na_kancelariu[[#Headers],[Okt]],Skutocne_naklady_na_kancelariu[#Headers],0))","v":{"v":600,"d":"600.00 EUR"}},{"$f":"INDEX(Planovane_naklady_na_kancelariu[],MATCH(INDEX(Odchylky_v_nakladoch_na_kancelariu[],ROW()-ROW(Odchylky_v_nakladoch_na_kancelariu[[#Headers],[Nov]]),1),INDEX(Planovane_naklady_na_kancelariu[],,1),0),MATCH(Odchylky_v_nakladoch_na_kancelariu[[#Headers],[Nov]],Planovane_naklady_na_kancelariu[#Headers],0))-INDEX(Skutocne_naklady_na_kancelariu[],MATCH(INDEX(Odchylky_v_nakladoch_na_kancelariu[],ROW()-ROW(Odchylky_v_nakladoch_na_kancelariu[[#Headers],[Nov]]),1),INDEX(Planovane_naklady_na_kancelariu[],,1),0),MATCH(Odchylky_v_nakladoch_na_kancelariu[[#Headers],[Nov]],Skutocne_naklady_na_kancelariu[#Headers],0))","v":{"v":600,"d":"600.00 EUR"}},{"$f":"INDEX(Planovane_naklady_na_kancelariu[],MATCH(INDEX(Odchylky_v_nakladoch_na_kancelariu[],ROW()-ROW(Odchylky_v_nakladoch_na_kancelariu[[#Headers],[Dec]]),1),INDEX(Planovane_naklady_na_kancelariu[],,1),0),MATCH(Odchylky_v_nakladoch_na_kancelariu[[#Headers],[Dec]],Planovane_naklady_na_kancelariu[#Headers],0))-INDEX(Skutocne_naklady_na_kancelariu[],MATCH(INDEX(Odchylky_v_nakladoch_na_kancelariu[],ROW()-ROW(Odchylky_v_nakladoch_na_kancelariu[[#Headers],[Dec]]),1),INDEX(Planovane_naklady_na_kancelariu[],,1),0),MATCH(Odchylky_v_nakladoch_na_kancelariu[[#Headers],[Dec]],Skutocne_naklady_na_kancelariu[#Headers],0))","v":{"v":600,"d":"600.00 EUR"}},{"$f":"SUM(Odchylky_v_nakladoch_na_kancelariu[[#This Row],[Jan]:[Dec]])","v":{"v":3600,"d":"3,600.00 EUR"}}]
[null,"Medzisúčet",{"$f":"SUBTOTAL(109,Odchylky_v_nakladoch_na_kancelariu[Jan])","v":{"v":-17,"d":"-17.00 EUR"}},{"$f":"SUBTOTAL(109,Odchylky_v_nakladoch_na_kancelariu[Feb])","v":{"v":72,"d":"72.00 EUR"}},{"$f":"SUBTOTAL(109,Odchylky_v_nakladoch_na_kancelariu[Mar])","v":{"v":78,"d":"78.00 EUR"}},{"$f":"SUBTOTAL(109,Odchylky_v_nakladoch_na_kancelariu[Apr])","v":{"v":-141,"d":"-141.00 EUR"}},{"$f":"SUBTOTAL(109,Odchylky_v_nakladoch_na_kancelariu[Máj])","v":{"v":-38,"d":"-38.00 EUR"}},{"$f":"SUBTOTAL(109,Odchylky_v_nakladoch_na_kancelariu[Jún])","v":{"v":16,"d":"16.00 EUR"}},{"$f":"SUBTOTAL(109,Odchylky_v_nakladoch_na_kancelariu[Júl])","v":{"v":11470,"d":"11,470.00 EUR"}},{"$f":"SUBTOTAL(109,Odchylky_v_nakladoch_na_kancelariu[Aug])","v":{"v":11470,"d":"11,470.00 EUR"}},{"$f":"SUBTOTAL(109,Odchylky_v_nakladoch_na_kancelariu[Sep])","v":{"v":11470,"d":"11,470.00 EUR"}},{"$f":"SUBTOTAL(109,Odchylky_v_nakladoch_na_kancelariu[Okt])","v":{"v":11470,"d":"11,470.00 EUR"}},{"$f":"SUBTOTAL(109,Odchylky_v_nakladoch_na_kancelariu[Nov])","v":{"v":11770,"d":"11,770.00 EUR"}},{"$f":"SUBTOTAL(109,Odchylky_v_nakladoch_na_kancelariu[Dec])","v":{"v":11770,"d":"11,770.00 EUR"}},{"$f":"SUBTOTAL(109,Odchylky_v_nakladoch_na_kancelariu[ROK])","v":{"v":69390,"d":"69,390.00 EUR"}}]
[]
["V tabuľke odchýlok v Náklady na marketing začínajúcej v bunke napravo sa automaticky vypočítajú odchylky v nakladoch na marketing. Ďalší pokyn je v bunke A30.","Náklady na marketing","Jan","Feb","Mar","Apr","Máj","Jún","Júl","Aug","Sep","Okt","Nov","Dec","ROK"]
[null,"Hosťovanie webovej lokality",{"$f":"INDEX(Planovane_naklady_na_marketing[],MATCH(INDEX(Odchylky_v_nakladoch_na_marketing[],ROW()-ROW(Odchylky_v_nakladoch_na_marketing[[#Headers],[Jan]]),1),INDEX(Planovane_naklady_na_marketing[],,1),0),MATCH(Odchylky_v_nakladoch_na_marketing[[#Headers],[Jan]],Planovane_naklady_na_marketing[#Headers],0))-INDEX(Skutocne_naklady_na_marketing[],MATCH(INDEX(Odchylky_v_nakladoch_na_marketing[],ROW()-ROW(Odchylky_v_nakladoch_na_marketing[[#Headers],[Jan]]),1),INDEX(Planovane_naklady_na_marketing[],,1),0),MATCH(Odchylky_v_nakladoch_na_marketing[[#Headers],[Jan]],Skutocne_naklady_na_marketing[#Headers],0))","v":{"v":0,"d":"0.00 EUR"}},{"$f":"INDEX(Planovane_naklady_na_marketing[],MATCH(INDEX(Odchylky_v_nakladoch_na_marketing[],ROW()-ROW(Odchylky_v_nakladoch_na_marketing[[#Headers],[Feb]]),1),INDEX(Planovane_naklady_na_marketing[],,1),0),MATCH(Odchylky_v_nakladoch_na_marketing[[#Headers],[Feb]],Planovane_naklady_na_marketing[#Headers],0))-INDEX(Skutocne_naklady_na_marketing[],MATCH(INDEX(Odchylky_v_nakladoch_na_marketing[],ROW()-ROW(Odchylky_v_nakladoch_na_marketing[[#Headers],[Feb]]),1),INDEX(Planovane_naklady_na_marketing[],,1),0),MATCH(Odchylky_v_nakladoch_na_marketing[[#Headers],[Feb]],Skutocne_naklady_na_marketing[#Headers],0))","v":{"v":0,"d":"0.00 EUR"}},{"$f":"INDEX(Planovane_naklady_na_marketing[],MATCH(INDEX(Odchylky_v_nakladoch_na_marketing[],ROW()-ROW(Odchylky_v_nakladoch_na_marketing[[#Headers],[Mar]]),1),INDEX(Planovane_naklady_na_marketing[],,1),0),MATCH(Odchylky_v_nakladoch_na_marketing[[#Headers],[Mar]],Planovane_naklady_na_marketing[#Headers],0))-INDEX(Skutocne_naklady_na_marketing[],MATCH(INDEX(Odchylky_v_nakladoch_na_marketing[],ROW()-ROW(Odchylky_v_nakladoch_na_marketing[[#Headers],[Mar]]),1),INDEX(Planovane_naklady_na_marketing[],,1),0),MATCH(Odchylky_v_nakladoch_na_marketing[[#Headers],[Mar]],Skutocne_naklady_na_marketing[#Headers],0))","v":{"v":0,"d":"0.00 EUR"}},{"$f":"INDEX(Planovane_naklady_na_marketing[],MATCH(INDEX(Odchylky_v_nakladoch_na_marketing[],ROW()-ROW(Odchylky_v_nakladoch_na_marketing[[#Headers],[Apr]]),1),INDEX(Planovane_naklady_na_marketing[],,1),0),MATCH(Odchylky_v_nakladoch_na_marketing[[#Headers],[Apr]],Planovane_naklady_na_marketing[#Headers],0))-INDEX(Skutocne_naklady_na_marketing[],MATCH(INDEX(Odchylky_v_nakladoch_na_marketing[],ROW()-ROW(Odchylky_v_nakladoch_na_marketing[[#Headers],[Apr]]),1),INDEX(Planovane_naklady_na_marketing[],,1),0),MATCH(Odchylky_v_nakladoch_na_marketing[[#Headers],[Apr]],Skutocne_naklady_na_marketing[#Headers],0))","v":{"v":0,"d":"0.00 EUR"}},{"$f":"INDEX(Planovane_naklady_na_marketing[],MATCH(INDEX(Odchylky_v_nakladoch_na_marketing[],ROW()-ROW(Odchylky_v_nakladoch_na_marketing[[#Headers],[Máj]]),1),INDEX(Planovane_naklady_na_marketing[],,1),0),MATCH(Odchylky_v_nakladoch_na_marketing[[#Headers],[Máj]],Planovane_naklady_na_marketing[#Headers],0))-INDEX(Skutocne_naklady_na_marketing[],MATCH(INDEX(Odchylky_v_nakladoch_na_marketing[],ROW()-ROW(Odchylky_v_nakladoch_na_marketing[[#Headers],[Máj]]),1),INDEX(Planovane_naklady_na_marketing[],,1),0),MATCH(Odchylky_v_nakladoch_na_marketing[[#Headers],[Máj]],Skutocne_naklady_na_marketing[#Headers],0))","v":{"v":0,"d":"0.00 EUR"}},{"$f":"INDEX(Planovane_naklady_na_marketing[],MATCH(INDEX(Odchylky_v_nakladoch_na_marketing[],ROW()-ROW(Odchylky_v_nakladoch_na_marketing[[#Headers],[Jún]]),1),INDEX(Planovane_naklady_na_marketing[],,1),0),MATCH(Odchylky_v_nakladoch_na_marketing[[#Headers],[Jún]],Planovane_naklady_na_marketing[#Headers],0))-INDEX(Skutocne_naklady_na_marketing[],MATCH(INDEX(Odchylky_v_nakladoch_na_marketing[],ROW()-ROW(Odchylky_v_nakladoch_na_marketing[[#Headers],[Jún]]),1),INDEX(Planovane_naklady_na_marketing[],,1),0),MATCH(Odchylky_v_nakladoch_na_marketing[[#Headers],[Jún]],Skutocne_naklady_na_marketing[#Headers],0))","v":{"v":0,"d":"0.00 EUR"}},{"$f":"INDEX(Planovane_naklady_na_marketing[],MATCH(INDEX(Odchylky_v_nakladoch_na_marketing[],ROW()-ROW(Odchylky_v_nakladoch_na_marketing[[#Headers],[Júl]]),1),INDEX(Planovane_naklady_na_marketing[],,1),0),MATCH(Odchylky_v_nakladoch_na_marketing[[#Headers],[Júl]],Planovane_naklady_na_marketing[#Headers],0))-INDEX(Skutocne_naklady_na_marketing[],MATCH(INDEX(Odchylky_v_nakladoch_na_marketing[],ROW()-ROW(Odchylky_v_nakladoch_na_marketing[[#Headers],[Júl]]),1),INDEX(Planovane_naklady_na_marketing[],,1),0),MATCH(Odchylky_v_nakladoch_na_marketing[[#Headers],[Júl]],Skutocne_naklady_na_marketing[#Headers],0))","v":{"v":500,"d":"500.00 EUR"}},{"$f":"INDEX(Planovane_naklady_na_marketing[],MATCH(INDEX(Odchylky_v_nakladoch_na_marketing[],ROW()-ROW(Odchylky_v_nakladoch_na_marketing[[#Headers],[Aug]]),1),INDEX(Planovane_naklady_na_marketing[],,1),0),MATCH(Odchylky_v_nakladoch_na_marketing[[#Headers],[Aug]],Planovane_naklady_na_marketing[#Headers],0))-INDEX(Skutocne_naklady_na_marketing[],MATCH(INDEX(Odchylky_v_nakladoch_na_marketing[],ROW()-ROW(Odchylky_v_nakladoch_na_marketing[[#Headers],[Aug]]),1),INDEX(Planovane_naklady_na_marketing[],,1),0),MATCH(Odchylky_v_nakladoch_na_marketing[[#Headers],[Aug]],Skutocne_naklady_na_marketing[#Headers],0))","v":{"v":500,"d":"500.00 EUR"}},{"$f":"INDEX(Planovane_naklady_na_marketing[],MATCH(INDEX(Odchylky_v_nakladoch_na_marketing[],ROW()-ROW(Odchylky_v_nakladoch_na_marketing[[#Headers],[Sep]]),1),INDEX(Planovane_naklady_na_marketing[],,1),0),MATCH(Odchylky_v_nakladoch_na_marketing[[#Headers],[Sep]],Planovane_naklady_na_marketing[#Headers],0))-INDEX(Skutocne_naklady_na_marketing[],MATCH(INDEX(Odchylky_v_nakladoch_na_marketing[],ROW()-ROW(Odchylky_v_nakladoch_na_marketing[[#Headers],[Sep]]),1),INDEX(Planovane_naklady_na_marketing[],,1),0),MATCH(Odchylky_v_nakladoch_na_marketing[[#Headers],[Sep]],Skutocne_naklady_na_marketing[#Headers],0))","v":{"v":500,"d":"500.00 EUR"}},{"$f":"INDEX(Planovane_naklady_na_marketing[],MATCH(INDEX(Odchylky_v_nakladoch_na_marketing[],ROW()-ROW(Odchylky_v_nakladoch_na_marketing[[#Headers],[Okt]]),1),INDEX(Planovane_naklady_na_marketing[],,1),0),MATCH(Odchylky_v_nakladoch_na_marketing[[#Headers],[Okt]],Planovane_naklady_na_marketing[#Headers],0))-INDEX(Skutocne_naklady_na_marketing[],MATCH(INDEX(Odchylky_v_nakladoch_na_marketing[],ROW()-ROW(Odchylky_v_nakladoch_na_marketing[[#Headers],[Okt]]),1),INDEX(Planovane_naklady_na_marketing[],,1),0),MATCH(Odchylky_v_nakladoch_na_marketing[[#Headers],[Okt]],Skutocne_naklady_na_marketing[#Headers],0))","v":{"v":500,"d":"500.00 EUR"}},{"$f":"INDEX(Planovane_naklady_na_marketing[],MATCH(INDEX(Odchylky_v_nakladoch_na_marketing[],ROW()-ROW(Odchylky_v_nakladoch_na_marketing[[#Headers],[Nov]]),1),INDEX(Planovane_naklady_na_marketing[],,1),0),MATCH(Odchylky_v_nakladoch_na_marketing[[#Headers],[Nov]],Planovane_naklady_na_marketing[#Headers],0))-INDEX(Skutocne_naklady_na_marketing[],MATCH(INDEX(Odchylky_v_nakladoch_na_marketing[],ROW()-ROW(Odchylky_v_nakladoch_na_marketing[[#Headers],[Nov]]),1),INDEX(Planovane_naklady_na_marketing[],,1),0),MATCH(Odchylky_v_nakladoch_na_marketing[[#Headers],[Nov]],Skutocne_naklady_na_marketing[#Headers],0))","v":{"v":500,"d":"500.00 EUR"}},{"$f":"INDEX(Planovane_naklady_na_marketing[],MATCH(INDEX(Odchylky_v_nakladoch_na_marketing[],ROW()-ROW(Odchylky_v_nakladoch_na_marketing[[#Headers],[Dec]]),1),INDEX(Planovane_naklady_na_marketing[],,1),0),MATCH(Odchylky_v_nakladoch_na_marketing[[#Headers],[Dec]],Planovane_naklady_na_marketing[#Headers],0))-INDEX(Skutocne_naklady_na_marketing[],MATCH(INDEX(Odchylky_v_nakladoch_na_marketing[],ROW()-ROW(Odchylky_v_nakladoch_na_marketing[[#Headers],[Dec]]),1),INDEX(Planovane_naklady_na_marketing[],,1),0),MATCH(Odchylky_v_nakladoch_na_marketing[[#Headers],[Dec]],Skutocne_naklady_na_marketing[#Headers],0))","v":{"v":500,"d":"500.00 EUR"}},{"$f":"SUM(Odchylky_v_nakladoch_na_marketing[[#This Row],[Jan]:[Dec]])","v":{"v":3000,"d":"3,000.00 EUR"}}]
[null,"Aktualizácie webovej lokality",{"$f":"INDEX(Planovane_naklady_na_marketing[],MATCH(INDEX(Odchylky_v_nakladoch_na_marketing[],ROW()-ROW(Odchylky_v_nakladoch_na_marketing[[#Headers],[Jan]]),1),INDEX(Planovane_naklady_na_marketing[],,1),0),MATCH(Odchylky_v_nakladoch_na_marketing[[#Headers],[Jan]],Planovane_naklady_na_marketing[#Headers],0))-INDEX(Skutocne_naklady_na_marketing[],MATCH(INDEX(Odchylky_v_nakladoch_na_marketing[],ROW()-ROW(Odchylky_v_nakladoch_na_marketing[[#Headers],[Jan]]),1),INDEX(Planovane_naklady_na_marketing[],,1),0),MATCH(Odchylky_v_nakladoch_na_marketing[[#Headers],[Jan]],Skutocne_naklady_na_marketing[#Headers],0))","v":{"v":0,"d":"0.00 EUR"}},{"$f":"INDEX(Planovane_naklady_na_marketing[],MATCH(INDEX(Odchylky_v_nakladoch_na_marketing[],ROW()-ROW(Odchylky_v_nakladoch_na_marketing[[#Headers],[Feb]]),1),INDEX(Planovane_naklady_na_marketing[],,1),0),MATCH(Odchylky_v_nakladoch_na_marketing[[#Headers],[Feb]],Planovane_naklady_na_marketing[#Headers],0))-INDEX(Skutocne_naklady_na_marketing[],MATCH(INDEX(Odchylky_v_nakladoch_na_marketing[],ROW()-ROW(Odchylky_v_nakladoch_na_marketing[[#Headers],[Feb]]),1),INDEX(Planovane_naklady_na_marketing[],,1),0),MATCH(Odchylky_v_nakladoch_na_marketing[[#Headers],[Feb]],Skutocne_naklady_na_marketing[#Headers],0))","v":{"v":0,"d":"0.00 EUR"}},{"$f":"INDEX(Planovane_naklady_na_marketing[],MATCH(INDEX(Odchylky_v_nakladoch_na_marketing[],ROW()-ROW(Odchylky_v_nakladoch_na_marketing[[#Headers],[Mar]]),1),INDEX(Planovane_naklady_na_marketing[],,1),0),MATCH(Odchylky_v_nakladoch_na_marketing[[#Headers],[Mar]],Planovane_naklady_na_marketing[#Headers],0))-INDEX(Skutocne_naklady_na_marketing[],MATCH(INDEX(Odchylky_v_nakladoch_na_marketing[],ROW()-ROW(Odchylky_v_nakladoch_na_marketing[[#Headers],[Mar]]),1),INDEX(Planovane_naklady_na_marketing[],,1),0),MATCH(Odchylky_v_nakladoch_na_marketing[[#Headers],[Mar]],Skutocne_naklady_na_marketing[#Headers],0))","v":{"v":0,"d":"0.00 EUR"}},{"$f":"INDEX(Planovane_naklady_na_marketing[],MATCH(INDEX(Odchylky_v_nakladoch_na_marketing[],ROW()-ROW(Odchylky_v_nakladoch_na_marketing[[#Headers],[Apr]]),1),INDEX(Planovane_naklady_na_marketing[],,1),0),MATCH(Odchylky_v_nakladoch_na_marketing[[#Headers],[Apr]],Planovane_naklady_na_marketing[#Headers],0))-INDEX(Skutocne_naklady_na_marketing[],MATCH(INDEX(Odchylky_v_nakladoch_na_marketing[],ROW()-ROW(Odchylky_v_nakladoch_na_marketing[[#Headers],[Apr]]),1),INDEX(Planovane_naklady_na_marketing[],,1),0),MATCH(Odchylky_v_nakladoch_na_marketing[[#Headers],[Apr]],Skutocne_naklady_na_marketing[#Headers],0))","v":{"v":0,"d":"0.00 EUR"}},{"$f":"INDEX(Planovane_naklady_na_marketing[],MATCH(INDEX(Odchylky_v_nakladoch_na_marketing[],ROW()-ROW(Odchylky_v_nakladoch_na_marketing[[#Headers],[Máj]]),1),INDEX(Planovane_naklady_na_marketing[],,1),0),MATCH(Odchylky_v_nakladoch_na_marketing[[#Headers],[Máj]],Planovane_naklady_na_marketing[#Headers],0))-INDEX(Skutocne_naklady_na_marketing[],MATCH(INDEX(Odchylky_v_nakladoch_na_marketing[],ROW()-ROW(Odchylky_v_nakladoch_na_marketing[[#Headers],[Máj]]),1),INDEX(Planovane_naklady_na_marketing[],,1),0),MATCH(Odchylky_v_nakladoch_na_marketing[[#Headers],[Máj]],Skutocne_naklady_na_marketing[#Headers],0))","v":{"v":0,"d":"0.00 EUR"}},{"$f":"INDEX(Planovane_naklady_na_marketing[],MATCH(INDEX(Odchylky_v_nakladoch_na_marketing[],ROW()-ROW(Odchylky_v_nakladoch_na_marketing[[#Headers],[Jún]]),1),INDEX(Planovane_naklady_na_marketing[],,1),0),MATCH(Odchylky_v_nakladoch_na_marketing[[#Headers],[Jún]],Planovane_naklady_na_marketing[#Headers],0))-INDEX(Skutocne_naklady_na_marketing[],MATCH(INDEX(Odchylky_v_nakladoch_na_marketing[],ROW()-ROW(Odchylky_v_nakladoch_na_marketing[[#Headers],[Jún]]),1),INDEX(Planovane_naklady_na_marketing[],,1),0),MATCH(Odchylky_v_nakladoch_na_marketing[[#Headers],[Jún]],Skutocne_naklady_na_marketing[#Headers],0))","v":{"v":-500,"d":"-500.00 EUR"}},{"$f":"INDEX(Planovane_naklady_na_marketing[],MATCH(INDEX(Odchylky_v_nakladoch_na_marketing[],ROW()-ROW(Odchylky_v_nakladoch_na_marketing[[#Headers],[Júl]]),1),INDEX(Planovane_naklady_na_marketing[],,1),0),MATCH(Odchylky_v_nakladoch_na_marketing[[#Headers],[Júl]],Planovane_naklady_na_marketing[#Headers],0))-INDEX(Skutocne_naklady_na_marketing[],MATCH(INDEX(Odchylky_v_nakladoch_na_marketing[],ROW()-ROW(Odchylky_v_nakladoch_na_marketing[[#Headers],[Júl]]),1),INDEX(Planovane_naklady_na_marketing[],,1),0),MATCH(Odchylky_v_nakladoch_na_marketing[[#Headers],[Júl]],Skutocne_naklady_na_marketing[#Headers],0))","v":{"v":200,"d":"200.00 EUR"}},{"$f":"INDEX(Planovane_naklady_na_marketing[],MATCH(INDEX(Odchylky_v_nakladoch_na_marketing[],ROW()-ROW(Odchylky_v_nakladoch_na_marketing[[#Headers],[Aug]]),1),INDEX(Planovane_naklady_na_marketing[],,1),0),MATCH(Odchylky_v_nakladoch_na_marketing[[#Headers],[Aug]],Planovane_naklady_na_marketing[#Headers],0))-INDEX(Skutocne_naklady_na_marketing[],MATCH(INDEX(Odchylky_v_nakladoch_na_marketing[],ROW()-ROW(Odchylky_v_nakladoch_na_marketing[[#Headers],[Aug]]),1),INDEX(Planovane_naklady_na_marketing[],,1),0),MATCH(Odchylky_v_nakladoch_na_marketing[[#Headers],[Aug]],Skutocne_naklady_na_marketing[#Headers],0))","v":{"v":200,"d":"200.00 EUR"}},{"$f":"INDEX(Planovane_naklady_na_marketing[],MATCH(INDEX(Odchylky_v_nakladoch_na_marketing[],ROW()-ROW(Odchylky_v_nakladoch_na_marketing[[#Headers],[Sep]]),1),INDEX(Planovane_naklady_na_marketing[],,1),0),MATCH(Odchylky_v_nakladoch_na_marketing[[#Headers],[Sep]],Planovane_naklady_na_marketing[#Headers],0))-INDEX(Skutocne_naklady_na_marketing[],MATCH(INDEX(Odchylky_v_nakladoch_na_marketing[],ROW()-ROW(Odchylky_v_nakladoch_na_marketing[[#Headers],[Sep]]),1),INDEX(Planovane_naklady_na_marketing[],,1),0),MATCH(Odchylky_v_nakladoch_na_marketing[[#Headers],[Sep]],Skutocne_naklady_na_marketing[#Headers],0))","v":{"v":200,"d":"200.00 EUR"}},{"$f":"INDEX(Planovane_naklady_na_marketing[],MATCH(INDEX(Odchylky_v_nakladoch_na_marketing[],ROW()-ROW(Odchylky_v_nakladoch_na_marketing[[#Headers],[Okt]]),1),INDEX(Planovane_naklady_na_marketing[],,1),0),MATCH(Odchylky_v_nakladoch_na_marketing[[#Headers],[Okt]],Planovane_naklady_na_marketing[#Headers],0))-INDEX(Skutocne_naklady_na_marketing[],MATCH(INDEX(Odchylky_v_nakladoch_na_marketing[],ROW()-ROW(Odchylky_v_nakladoch_na_marketing[[#Headers],[Okt]]),1),INDEX(Planovane_naklady_na_marketing[],,1),0),MATCH(Odchylky_v_nakladoch_na_marketing[[#Headers],[Okt]],Skutocne_naklady_na_marketing[#Headers],0))","v":{"v":200,"d":"200.00 EUR"}},{"$f":"INDEX(Planovane_naklady_na_marketing[],MATCH(INDEX(Odchylky_v_nakladoch_na_marketing[],ROW()-ROW(Odchylky_v_nakladoch_na_marketing[[#Headers],[Nov]]),1),INDEX(Planovane_naklady_na_marketing[],,1),0),MATCH(Odchylky_v_nakladoch_na_marketing[[#Headers],[Nov]],Planovane_naklady_na_marketing[#Headers],0))-INDEX(Skutocne_naklady_na_marketing[],MATCH(INDEX(Odchylky_v_nakladoch_na_marketing[],ROW()-ROW(Odchylky_v_nakladoch_na_marketing[[#Headers],[Nov]]),1),INDEX(Planovane_naklady_na_marketing[],,1),0),MATCH(Odchylky_v_nakladoch_na_marketing[[#Headers],[Nov]],Skutocne_naklady_na_marketing[#Headers],0))","v":{"v":200,"d":"200.00 EUR"}},{"$f":"INDEX(Planovane_naklady_na_marketing[],MATCH(INDEX(Odchylky_v_nakladoch_na_marketing[],ROW()-ROW(Odchylky_v_nakladoch_na_marketing[[#Headers],[Dec]]),1),INDEX(Planovane_naklady_na_marketing[],,1),0),MATCH(Odchylky_v_nakladoch_na_marketing[[#Headers],[Dec]],Planovane_naklady_na_marketing[#Headers],0))-INDEX(Skutocne_naklady_na_marketing[],MATCH(INDEX(Odchylky_v_nakladoch_na_marketing[],ROW()-ROW(Odchylky_v_nakladoch_na_marketing[[#Headers],[Dec]]),1),INDEX(Planovane_naklady_na_marketing[],,1),0),MATCH(Odchylky_v_nakladoch_na_marketing[[#Headers],[Dec]],Skutocne_naklady_na_marketing[#Headers],0))","v":{"v":1000,"d":"1,000.00 EUR"}},{"$f":"SUM(Odchylky_v_nakladoch_na_marketing[[#This Row],[Jan]:[Dec]])","v":{"v":1500,"d":"1,500.00 EUR"}}]
[null,"Príprava sprievodnej dokumentácie",{"$f":"INDEX(Planovane_naklady_na_marketing[],MATCH(INDEX(Odchylky_v_nakladoch_na_marketing[],ROW()-ROW(Odchylky_v_nakladoch_na_marketing[[#Headers],[Jan]]),1),INDEX(Planovane_naklady_na_marketing[],,1),0),MATCH(Odchylky_v_nakladoch_na_marketing[[#Headers],[Jan]],Planovane_naklady_na_marketing[#Headers],0))-INDEX(Skutocne_naklady_na_marketing[],MATCH(INDEX(Odchylky_v_nakladoch_na_marketing[],ROW()-ROW(Odchylky_v_nakladoch_na_marketing[[#Headers],[Jan]]),1),INDEX(Planovane_naklady_na_marketing[],,1),0),MATCH(Odchylky_v_nakladoch_na_marketing[[#Headers],[Jan]],Skutocne_naklady_na_marketing[#Headers],0))","v":{"v":200,"d":"200.00 EUR"}},{"$f":"INDEX(Planovane_naklady_na_marketing[],MATCH(INDEX(Odchylky_v_nakladoch_na_marketing[],ROW()-ROW(Odchylky_v_nakladoch_na_marketing[[#Headers],[Feb]]),1),INDEX(Planovane_naklady_na_marketing[],,1),0),MATCH(Odchylky_v_nakladoch_na_marketing[[#Headers],[Feb]],Planovane_naklady_na_marketing[#Headers],0))-INDEX(Skutocne_naklady_na_marketing[],MATCH(INDEX(Odchylky_v_nakladoch_na_marketing[],ROW()-ROW(Odchylky_v_nakladoch_na_marketing[[#Headers],[Feb]]),1),INDEX(Planovane_naklady_na_marketing[],,1),0),MATCH(Odchylky_v_nakladoch_na_marketing[[#Headers],[Feb]],Skutocne_naklady_na_marketing[#Headers],0))","v":{"v":0,"d":"0.00 EUR"}},{"$f":"INDEX(Planovane_naklady_na_marketing[],MATCH(INDEX(Odchylky_v_nakladoch_na_marketing[],ROW()-ROW(Odchylky_v_nakladoch_na_marketing[[#Headers],[Mar]]),1),INDEX(Planovane_naklady_na_marketing[],,1),0),MATCH(Odchylky_v_nakladoch_na_marketing[[#Headers],[Mar]],Planovane_naklady_na_marketing[#Headers],0))-INDEX(Skutocne_naklady_na_marketing[],MATCH(INDEX(Odchylky_v_nakladoch_na_marketing[],ROW()-ROW(Odchylky_v_nakladoch_na_marketing[[#Headers],[Mar]]),1),INDEX(Planovane_naklady_na_marketing[],,1),0),MATCH(Odchylky_v_nakladoch_na_marketing[[#Headers],[Mar]],Skutocne_naklady_na_marketing[#Headers],0))","v":{"v":0,"d":"0.00 EUR"}},{"$f":"INDEX(Planovane_naklady_na_marketing[],MATCH(INDEX(Odchylky_v_nakladoch_na_marketing[],ROW()-ROW(Odchylky_v_nakladoch_na_marketing[[#Headers],[Apr]]),1),INDEX(Planovane_naklady_na_marketing[],,1),0),MATCH(Odchylky_v_nakladoch_na_marketing[[#Headers],[Apr]],Planovane_naklady_na_marketing[#Headers],0))-INDEX(Skutocne_naklady_na_marketing[],MATCH(INDEX(Odchylky_v_nakladoch_na_marketing[],ROW()-ROW(Odchylky_v_nakladoch_na_marketing[[#Headers],[Apr]]),1),INDEX(Planovane_naklady_na_marketing[],,1),0),MATCH(Odchylky_v_nakladoch_na_marketing[[#Headers],[Apr]],Skutocne_naklady_na_marketing[#Headers],0))","v":{"v":-500,"d":"-500.00 EUR"}},{"$f":"INDEX(Planovane_naklady_na_marketing[],MATCH(INDEX(Odchylky_v_nakladoch_na_marketing[],ROW()-ROW(Odchylky_v_nakladoch_na_marketing[[#Headers],[Máj]]),1),INDEX(Planovane_naklady_na_marketing[],,1),0),MATCH(Odchylky_v_nakladoch_na_marketing[[#Headers],[Máj]],Planovane_naklady_na_marketing[#Headers],0))-INDEX(Skutocne_naklady_na_marketing[],MATCH(INDEX(Odchylky_v_nakladoch_na_marketing[],ROW()-ROW(Odchylky_v_nakladoch_na_marketing[[#Headers],[Máj]]),1),INDEX(Planovane_naklady_na_marketing[],,1),0),MATCH(Odchylky_v_nakladoch_na_marketing[[#Headers],[Máj]],Skutocne_naklady_na_marketing[#Headers],0))","v":{"v":0,"d":"0.00 EUR"}},{"$f":"INDEX(Planovane_naklady_na_marketing[],MATCH(INDEX(Odchylky_v_nakladoch_na_marketing[],ROW()-ROW(Odchylky_v_nakladoch_na_marketing[[#Headers],[Jún]]),1),INDEX(Planovane_naklady_na_marketing[],,1),0),MATCH(Odchylky_v_nakladoch_na_marketing[[#Headers],[Jún]],Planovane_naklady_na_marketing[#Headers],0))-INDEX(Skutocne_naklady_na_marketing[],MATCH(INDEX(Odchylky_v_nakladoch_na_marketing[],ROW()-ROW(Odchylky_v_nakladoch_na_marketing[[#Headers],[Jún]]),1),INDEX(Planovane_naklady_na_marketing[],,1),0),MATCH(Odchylky_v_nakladoch_na_marketing[[#Headers],[Jún]],Skutocne_naklady_na_marketing[#Headers],0))","v":{"v":0,"d":"0.00 EUR"}},{"$f":"INDEX(Planovane_naklady_na_marketing[],MATCH(INDEX(Odchylky_v_nakladoch_na_marketing[],ROW()-ROW(Odchylky_v_nakladoch_na_marketing[[#Headers],[Júl]]),1),INDEX(Planovane_naklady_na_marketing[],,1),0),MATCH(Odchylky_v_nakladoch_na_marketing[[#Headers],[Júl]],Planovane_naklady_na_marketing[#Headers],0))-INDEX(Skutocne_naklady_na_marketing[],MATCH(INDEX(Odchylky_v_nakladoch_na_marketing[],ROW()-ROW(Odchylky_v_nakladoch_na_marketing[[#Headers],[Júl]]),1),INDEX(Planovane_naklady_na_marketing[],,1),0),MATCH(Odchylky_v_nakladoch_na_marketing[[#Headers],[Júl]],Skutocne_naklady_na_marketing[#Headers],0))","v":{"v":5000,"d":"5,000.00 EUR"}},{"$f":"INDEX(Planovane_naklady_na_marketing[],MATCH(INDEX(Odchylky_v_nakladoch_na_marketing[],ROW()-ROW(Odchylky_v_nakladoch_na_marketing[[#Headers],[Aug]]),1),INDEX(Planovane_naklady_na_marketing[],,1),0),MATCH(Odchylky_v_nakladoch_na_marketing[[#Headers],[Aug]],Planovane_naklady_na_marketing[#Headers],0))-INDEX(Skutocne_naklady_na_marketing[],MATCH(INDEX(Odchylky_v_nakladoch_na_marketing[],ROW()-ROW(Odchylky_v_nakladoch_na_marketing[[#Headers],[Aug]]),1),INDEX(Planovane_naklady_na_marketing[],,1),0),MATCH(Odchylky_v_nakladoch_na_marketing[[#Headers],[Aug]],Skutocne_naklady_na_marketing[#Headers],0))","v":{"v":0,"d":"0.00 EUR"}},{"$f":"INDEX(Planovane_naklady_na_marketing[],MATCH(INDEX(Odchylky_v_nakladoch_na_marketing[],ROW()-ROW(Odchylky_v_nakladoch_na_marketing[[#Headers],[Sep]]),1),INDEX(Planovane_naklady_na_marketing[],,1),0),MATCH(Odchylky_v_nakladoch_na_marketing[[#Headers],[Sep]],Planovane_naklady_na_marketing[#Headers],0))-INDEX(Skutocne_naklady_na_marketing[],MATCH(INDEX(Odchylky_v_nakladoch_na_marketing[],ROW()-ROW(Odchylky_v_nakladoch_na_marketing[[#Headers],[Sep]]),1),INDEX(Planovane_naklady_na_marketing[],,1),0),MATCH(Odchylky_v_nakladoch_na_marketing[[#Headers],[Sep]],Skutocne_naklady_na_marketing[#Headers],0))","v":{"v":0,"d":"0.00 EUR"}},{"$f":"INDEX(Planovane_naklady_na_marketing[],MATCH(INDEX(Odchylky_v_nakladoch_na_marketing[],ROW()-ROW(Odchylky_v_nakladoch_na_marketing[[#Headers],[Okt]]),1),INDEX(Planovane_naklady_na_marketing[],,1),0),MATCH(Odchylky_v_nakladoch_na_marketing[[#Headers],[Okt]],Planovane_naklady_na_marketing[#Headers],0))-INDEX(Skutocne_naklady_na_marketing[],MATCH(INDEX(Odchylky_v_nakladoch_na_marketing[],ROW()-ROW(Odchylky_v_nakladoch_na_marketing[[#Headers],[Okt]]),1),INDEX(Planovane_naklady_na_marketing[],,1),0),MATCH(Odchylky_v_nakladoch_na_marketing[[#Headers],[Okt]],Skutocne_naklady_na_marketing[#Headers],0))","v":{"v":5000,"d":"5,000.00 EUR"}},{"$f":"INDEX(Planovane_naklady_na_marketing[],MATCH(INDEX(Odchylky_v_nakladoch_na_marketing[],ROW()-ROW(Odchylky_v_nakladoch_na_marketing[[#Headers],[Nov]]),1),INDEX(Planovane_naklady_na_marketing[],,1),0),MATCH(Odchylky_v_nakladoch_na_marketing[[#Headers],[Nov]],Planovane_naklady_na_marketing[#Headers],0))-INDEX(Skutocne_naklady_na_marketing[],MATCH(INDEX(Odchylky_v_nakladoch_na_marketing[],ROW()-ROW(Odchylky_v_nakladoch_na_marketing[[#Headers],[Nov]]),1),INDEX(Planovane_naklady_na_marketing[],,1),0),MATCH(Odchylky_v_nakladoch_na_marketing[[#Headers],[Nov]],Skutocne_naklady_na_marketing[#Headers],0))","v":{"v":0,"d":"0.00 EUR"}},{"$f":"INDEX(Planovane_naklady_na_marketing[],MATCH(INDEX(Odchylky_v_nakladoch_na_marketing[],ROW()-ROW(Odchylky_v_nakladoch_na_marketing[[#Headers],[Dec]]),1),INDEX(Planovane_naklady_na_marketing[],,1),0),MATCH(Odchylky_v_nakladoch_na_marketing[[#Headers],[Dec]],Planovane_naklady_na_marketing[#Headers],0))-INDEX(Skutocne_naklady_na_marketing[],MATCH(INDEX(Odchylky_v_nakladoch_na_marketing[],ROW()-ROW(Odchylky_v_nakladoch_na_marketing[[#Headers],[Dec]]),1),INDEX(Planovane_naklady_na_marketing[],,1),0),MATCH(Odchylky_v_nakladoch_na_marketing[[#Headers],[Dec]],Skutocne_naklady_na_marketing[#Headers],0))","v":{"v":0,"d":"0.00 EUR"}},{"$f":"SUM(Odchylky_v_nakladoch_na_marketing[[#This Row],[Jan]:[Dec]])","v":{"v":9700,"d":"9,700.00 EUR"}}]
[null,"Tlač sprievodnej dokumentácie",{"$f":"INDEX(Planovane_naklady_na_marketing[],MATCH(INDEX(Odchylky_v_nakladoch_na_marketing[],ROW()-ROW(Odchylky_v_nakladoch_na_marketing[[#Headers],[Jan]]),1),INDEX(Planovane_naklady_na_marketing[],,1),0),MATCH(Odchylky_v_nakladoch_na_marketing[[#Headers],[Jan]],Planovane_naklady_na_marketing[#Headers],0))-INDEX(Skutocne_naklady_na_marketing[],MATCH(INDEX(Odchylky_v_nakladoch_na_marketing[],ROW()-ROW(Odchylky_v_nakladoch_na_marketing[[#Headers],[Jan]]),1),INDEX(Planovane_naklady_na_marketing[],,1),0),MATCH(Odchylky_v_nakladoch_na_marketing[[#Headers],[Jan]],Skutocne_naklady_na_marketing[#Headers],0))","v":{"v":100,"d":"100.00 EUR"}},{"$f":"INDEX(Planovane_naklady_na_marketing[],MATCH(INDEX(Odchylky_v_nakladoch_na_marketing[],ROW()-ROW(Odchylky_v_nakladoch_na_marketing[[#Headers],[Feb]]),1),INDEX(Planovane_naklady_na_marketing[],,1),0),MATCH(Odchylky_v_nakladoch_na_marketing[[#Headers],[Feb]],Planovane_naklady_na_marketing[#Headers],0))-INDEX(Skutocne_naklady_na_marketing[],MATCH(INDEX(Odchylky_v_nakladoch_na_marketing[],ROW()-ROW(Odchylky_v_nakladoch_na_marketing[[#Headers],[Feb]]),1),INDEX(Planovane_naklady_na_marketing[],,1),0),MATCH(Odchylky_v_nakladoch_na_marketing[[#Headers],[Feb]],Skutocne_naklady_na_marketing[#Headers],0))","v":{"v":-300,"d":"-300.00 EUR"}},{"$f":"INDEX(Planovane_naklady_na_marketing[],MATCH(INDEX(Odchylky_v_nakladoch_na_marketing[],ROW()-ROW(Odchylky_v_nakladoch_na_marketing[[#Headers],[Mar]]),1),INDEX(Planovane_naklady_na_marketing[],,1),0),MATCH(Odchylky_v_nakladoch_na_marketing[[#Headers],[Mar]],Planovane_naklady_na_marketing[#Headers],0))-INDEX(Skutocne_naklady_na_marketing[],MATCH(INDEX(Odchylky_v_nakladoch_na_marketing[],ROW()-ROW(Odchylky_v_nakladoch_na_marketing[[#Headers],[Mar]]),1),INDEX(Planovane_naklady_na_marketing[],,1),0),MATCH(Odchylky_v_nakladoch_na_marketing[[#Headers],[Mar]],Skutocne_naklady_na_marketing[#Headers],0))","v":{"v":100,"d":"100.00 EUR"}},{"$f":"INDEX(Planovane_naklady_na_marketing[],MATCH(INDEX(Odchylky_v_nakladoch_na_marketing[],ROW()-ROW(Odchylky_v_nakladoch_na_marketing[[#Headers],[Apr]]),1),INDEX(Planovane_naklady_na_marketing[],,1),0),MATCH(Odchylky_v_nakladoch_na_marketing[[#Headers],[Apr]],Planovane_naklady_na_marketing[#Headers],0))-INDEX(Skutocne_naklady_na_marketing[],MATCH(INDEX(Odchylky_v_nakladoch_na_marketing[],ROW()-ROW(Odchylky_v_nakladoch_na_marketing[[#Headers],[Apr]]),1),INDEX(Planovane_naklady_na_marketing[],,1),0),MATCH(Odchylky_v_nakladoch_na_marketing[[#Headers],[Apr]],Skutocne_naklady_na_marketing[#Headers],0))","v":{"v":100,"d":"100.00 EUR"}},{"$f":"INDEX(Planovane_naklady_na_marketing[],MATCH(INDEX(Odchylky_v_nakladoch_na_marketing[],ROW()-ROW(Odchylky_v_nakladoch_na_marketing[[#Headers],[Máj]]),1),INDEX(Planovane_naklady_na_marketing[],,1),0),MATCH(Odchylky_v_nakladoch_na_marketing[[#Headers],[Máj]],Planovane_naklady_na_marketing[#Headers],0))-INDEX(Skutocne_naklady_na_marketing[],MATCH(INDEX(Odchylky_v_nakladoch_na_marketing[],ROW()-ROW(Odchylky_v_nakladoch_na_marketing[[#Headers],[Máj]]),1),INDEX(Planovane_naklady_na_marketing[],,1),0),MATCH(Odchylky_v_nakladoch_na_marketing[[#Headers],[Máj]],Skutocne_naklady_na_marketing[#Headers],0))","v":{"v":-400,"d":"-400.00 EUR"}},{"$f":"INDEX(Planovane_naklady_na_marketing[],MATCH(INDEX(Odchylky_v_nakladoch_na_marketing[],ROW()-ROW(Odchylky_v_nakladoch_na_marketing[[#Headers],[Jún]]),1),INDEX(Planovane_naklady_na_marketing[],,1),0),MATCH(Odchylky_v_nakladoch_na_marketing[[#Headers],[Jún]],Planovane_naklady_na_marketing[#Headers],0))-INDEX(Skutocne_naklady_na_marketing[],MATCH(INDEX(Odchylky_v_nakladoch_na_marketing[],ROW()-ROW(Odchylky_v_nakladoch_na_marketing[[#Headers],[Jún]]),1),INDEX(Planovane_naklady_na_marketing[],,1),0),MATCH(Odchylky_v_nakladoch_na_marketing[[#Headers],[Jún]],Skutocne_naklady_na_marketing[#Headers],0))","v":{"v":20,"d":"20.00 EUR"}},{"$f":"INDEX(Planovane_naklady_na_marketing[],MATCH(INDEX(Odchylky_v_nakladoch_na_marketing[],ROW()-ROW(Odchylky_v_nakladoch_na_marketing[[#Headers],[Júl]]),1),INDEX(Planovane_naklady_na_marketing[],,1),0),MATCH(Odchylky_v_nakladoch_na_marketing[[#Headers],[Júl]],Planovane_naklady_na_marketing[#Headers],0))-INDEX(Skutocne_naklady_na_marketing[],MATCH(INDEX(Odchylky_v_nakladoch_na_marketing[],ROW()-ROW(Odchylky_v_nakladoch_na_marketing[[#Headers],[Júl]]),1),INDEX(Planovane_naklady_na_marketing[],,1),0),MATCH(Odchylky_v_nakladoch_na_marketing[[#Headers],[Júl]],Skutocne_naklady_na_marketing[#Headers],0))","v":{"v":200,"d":"200.00 EUR"}},{"$f":"INDEX(Planovane_naklady_na_marketing[],MATCH(INDEX(Odchylky_v_nakladoch_na_marketing[],ROW()-ROW(Odchylky_v_nakladoch_na_marketing[[#Headers],[Aug]]),1),INDEX(Planovane_naklady_na_marketing[],,1),0),MATCH(Odchylky_v_nakladoch_na_marketing[[#Headers],[Aug]],Planovane_naklady_na_marketing[#Headers],0))-INDEX(Skutocne_naklady_na_marketing[],MATCH(INDEX(Odchylky_v_nakladoch_na_marketing[],ROW()-ROW(Odchylky_v_nakladoch_na_marketing[[#Headers],[Aug]]),1),INDEX(Planovane_naklady_na_marketing[],,1),0),MATCH(Odchylky_v_nakladoch_na_marketing[[#Headers],[Aug]],Skutocne_naklady_na_marketing[#Headers],0))","v":{"v":200,"d":"200.00 EUR"}},{"$f":"INDEX(Planovane_naklady_na_marketing[],MATCH(INDEX(Odchylky_v_nakladoch_na_marketing[],ROW()-ROW(Odchylky_v_nakladoch_na_marketing[[#Headers],[Sep]]),1),INDEX(Planovane_naklady_na_marketing[],,1),0),MATCH(Odchylky_v_nakladoch_na_marketing[[#Headers],[Sep]],Planovane_naklady_na_marketing[#Headers],0))-INDEX(Skutocne_naklady_na_marketing[],MATCH(INDEX(Odchylky_v_nakladoch_na_marketing[],ROW()-ROW(Odchylky_v_nakladoch_na_marketing[[#Headers],[Sep]]),1),INDEX(Planovane_naklady_na_marketing[],,1),0),MATCH(Odchylky_v_nakladoch_na_marketing[[#Headers],[Sep]],Skutocne_naklady_na_marketing[#Headers],0))","v":{"v":200,"d":"200.00 EUR"}},{"$f":"INDEX(Planovane_naklady_na_marketing[],MATCH(INDEX(Odchylky_v_nakladoch_na_marketing[],ROW()-ROW(Odchylky_v_nakladoch_na_marketing[[#Headers],[Okt]]),1),INDEX(Planovane_naklady_na_marketing[],,1),0),MATCH(Odchylky_v_nakladoch_na_marketing[[#Headers],[Okt]],Planovane_naklady_na_marketing[#Headers],0))-INDEX(Skutocne_naklady_na_marketing[],MATCH(INDEX(Odchylky_v_nakladoch_na_marketing[],ROW()-ROW(Odchylky_v_nakladoch_na_marketing[[#Headers],[Okt]]),1),INDEX(Planovane_naklady_na_marketing[],,1),0),MATCH(Odchylky_v_nakladoch_na_marketing[[#Headers],[Okt]],Skutocne_naklady_na_marketing[#Headers],0))","v":{"v":200,"d":"200.00 EUR"}},{"$f":"INDEX(Planovane_naklady_na_marketing[],MATCH(INDEX(Odchylky_v_nakladoch_na_marketing[],ROW()-ROW(Odchylky_v_nakladoch_na_marketing[[#Headers],[Nov]]),1),INDEX(Planovane_naklady_na_marketing[],,1),0),MATCH(Odchylky_v_nakladoch_na_marketing[[#Headers],[Nov]],Planovane_naklady_na_marketing[#Headers],0))-INDEX(Skutocne_naklady_na_marketing[],MATCH(INDEX(Odchylky_v_nakladoch_na_marketing[],ROW()-ROW(Odchylky_v_nakladoch_na_marketing[[#Headers],[Nov]]),1),INDEX(Planovane_naklady_na_marketing[],,1),0),MATCH(Odchylky_v_nakladoch_na_marketing[[#Headers],[Nov]],Skutocne_naklady_na_marketing[#Headers],0))","v":{"v":200,"d":"200.00 EUR"}},{"$f":"INDEX(Planovane_naklady_na_marketing[],MATCH(INDEX(Odchylky_v_nakladoch_na_marketing[],ROW()-ROW(Odchylky_v_nakladoch_na_marketing[[#Headers],[Dec]]),1),INDEX(Planovane_naklady_na_marketing[],,1),0),MATCH(Odchylky_v_nakladoch_na_marketing[[#Headers],[Dec]],Planovane_naklady_na_marketing[#Headers],0))-INDEX(Skutocne_naklady_na_marketing[],MATCH(INDEX(Odchylky_v_nakladoch_na_marketing[],ROW()-ROW(Odchylky_v_nakladoch_na_marketing[[#Headers],[Dec]]),1),INDEX(Planovane_naklady_na_marketing[],,1),0),MATCH(Odchylky_v_nakladoch_na_marketing[[#Headers],[Dec]],Skutocne_naklady_na_marketing[#Headers],0))","v":{"v":200,"d":"200.00 EUR"}},{"$f":"SUM(Odchylky_v_nakladoch_na_marketing[[#This Row],[Jan]:[Dec]])","v":{"v":820,"d":"820.00 EUR"}}]
[null,"Marketingové podujatia",{"$f":"INDEX(Planovane_naklady_na_marketing[],MATCH(INDEX(Odchylky_v_nakladoch_na_marketing[],ROW()-ROW(Odchylky_v_nakladoch_na_marketing[[#Headers],[Jan]]),1),INDEX(Planovane_naklady_na_marketing[],,1),0),MATCH(Odchylky_v_nakladoch_na_marketing[[#Headers],[Jan]],Planovane_naklady_na_marketing[#Headers],0))-INDEX(Skutocne_naklady_na_marketing[],MATCH(INDEX(Odchylky_v_nakladoch_na_marketing[],ROW()-ROW(Odchylky_v_nakladoch_na_marketing[[#Headers],[Jan]]),1),INDEX(Planovane_naklady_na_marketing[],,1),0),MATCH(Odchylky_v_nakladoch_na_marketing[[#Headers],[Jan]],Skutocne_naklady_na_marketing[#Headers],0))","v":{"v":200,"d":"200.00 EUR"}},{"$f":"INDEX(Planovane_naklady_na_marketing[],MATCH(INDEX(Odchylky_v_nakladoch_na_marketing[],ROW()-ROW(Odchylky_v_nakladoch_na_marketing[[#Headers],[Feb]]),1),INDEX(Planovane_naklady_na_marketing[],,1),0),MATCH(Odchylky_v_nakladoch_na_marketing[[#Headers],[Feb]],Planovane_naklady_na_marketing[#Headers],0))-INDEX(Skutocne_naklady_na_marketing[],MATCH(INDEX(Odchylky_v_nakladoch_na_marketing[],ROW()-ROW(Odchylky_v_nakladoch_na_marketing[[#Headers],[Feb]]),1),INDEX(Planovane_naklady_na_marketing[],,1),0),MATCH(Odchylky_v_nakladoch_na_marketing[[#Headers],[Feb]],Skutocne_naklady_na_marketing[#Headers],0))","v":{"v":-200,"d":"-200.00 EUR"}},{"$f":"INDEX(Planovane_naklady_na_marketing[],MATCH(INDEX(Odchylky_v_nakladoch_na_marketing[],ROW()-ROW(Odchylky_v_nakladoch_na_marketing[[#Headers],[Mar]]),1),INDEX(Planovane_naklady_na_marketing[],,1),0),MATCH(Odchylky_v_nakladoch_na_marketing[[#Headers],[Mar]],Planovane_naklady_na_marketing[#Headers],0))-INDEX(Skutocne_naklady_na_marketing[],MATCH(INDEX(Odchylky_v_nakladoch_na_marketing[],ROW()-ROW(Odchylky_v_nakladoch_na_marketing[[#Headers],[Mar]]),1),INDEX(Planovane_naklady_na_marketing[],,1),0),MATCH(Odchylky_v_nakladoch_na_marketing[[#Headers],[Mar]],Skutocne_naklady_na_marketing[#Headers],0))","v":{"v":-200,"d":"-200.00 EUR"}},{"$f":"INDEX(Planovane_naklady_na_marketing[],MATCH(INDEX(Odchylky_v_nakladoch_na_marketing[],ROW()-ROW(Odchylky_v_nakladoch_na_marketing[[#Headers],[Apr]]),1),INDEX(Planovane_naklady_na_marketing[],,1),0),MATCH(Odchylky_v_nakladoch_na_marketing[[#Headers],[Apr]],Planovane_naklady_na_marketing[#Headers],0))-INDEX(Skutocne_naklady_na_marketing[],MATCH(INDEX(Odchylky_v_nakladoch_na_marketing[],ROW()-ROW(Odchylky_v_nakladoch_na_marketing[[#Headers],[Apr]]),1),INDEX(Planovane_naklady_na_marketing[],,1),0),MATCH(Odchylky_v_nakladoch_na_marketing[[#Headers],[Apr]],Skutocne_naklady_na_marketing[#Headers],0))","v":{"v":300,"d":"300.00 EUR"}},{"$f":"INDEX(Planovane_naklady_na_marketing[],MATCH(INDEX(Odchylky_v_nakladoch_na_marketing[],ROW()-ROW(Odchylky_v_nakladoch_na_marketing[[#Headers],[Máj]]),1),INDEX(Planovane_naklady_na_marketing[],,1),0),MATCH(Odchylky_v_nakladoch_na_marketing[[#Headers],[Máj]],Planovane_naklady_na_marketing[#Headers],0))-INDEX(Skutocne_naklady_na_marketing[],MATCH(INDEX(Odchylky_v_nakladoch_na_marketing[],ROW()-ROW(Odchylky_v_nakladoch_na_marketing[[#Headers],[Máj]]),1),INDEX(Planovane_naklady_na_marketing[],,1),0),MATCH(Odchylky_v_nakladoch_na_marketing[[#Headers],[Máj]],Skutocne_naklady_na_marketing[#Headers],0))","v":{"v":500,"d":"500.00 EUR"}},{"$f":"INDEX(Planovane_naklady_na_marketing[],MATCH(INDEX(Odchylky_v_nakladoch_na_marketing[],ROW()-ROW(Odchylky_v_nakladoch_na_marketing[[#Headers],[Jún]]),1),INDEX(Planovane_naklady_na_marketing[],,1),0),MATCH(Odchylky_v_nakladoch_na_marketing[[#Headers],[Jún]],Planovane_naklady_na_marketing[#Headers],0))-INDEX(Skutocne_naklady_na_marketing[],MATCH(INDEX(Odchylky_v_nakladoch_na_marketing[],ROW()-ROW(Odchylky_v_nakladoch_na_marketing[[#Headers],[Jún]]),1),INDEX(Planovane_naklady_na_marketing[],,1),0),MATCH(Odchylky_v_nakladoch_na_marketing[[#Headers],[Jún]],Skutocne_naklady_na_marketing[#Headers],0))","v":{"v":-300,"d":"-300.00 EUR"}},{"$f":"INDEX(Planovane_naklady_na_marketing[],MATCH(INDEX(Odchylky_v_nakladoch_na_marketing[],ROW()-ROW(Odchylky_v_nakladoch_na_marketing[[#Headers],[Júl]]),1),INDEX(Planovane_naklady_na_marketing[],,1),0),MATCH(Odchylky_v_nakladoch_na_marketing[[#Headers],[Júl]],Planovane_naklady_na_marketing[#Headers],0))-INDEX(Skutocne_naklady_na_marketing[],MATCH(INDEX(Odchylky_v_nakladoch_na_marketing[],ROW()-ROW(Odchylky_v_nakladoch_na_marketing[[#Headers],[Júl]]),1),INDEX(Planovane_naklady_na_marketing[],,1),0),MATCH(Odchylky_v_nakladoch_na_marketing[[#Headers],[Júl]],Skutocne_naklady_na_marketing[#Headers],0))","v":{"v":2000,"d":"2,000.00 EUR"}},{"$f":"INDEX(Planovane_naklady_na_marketing[],MATCH(INDEX(Odchylky_v_nakladoch_na_marketing[],ROW()-ROW(Odchylky_v_nakladoch_na_marketing[[#Headers],[Aug]]),1),INDEX(Planovane_naklady_na_marketing[],,1),0),MATCH(Odchylky_v_nakladoch_na_marketing[[#Headers],[Aug]],Planovane_naklady_na_marketing[#Headers],0))-INDEX(Skutocne_naklady_na_marketing[],MATCH(INDEX(Odchylky_v_nakladoch_na_marketing[],ROW()-ROW(Odchylky_v_nakladoch_na_marketing[[#Headers],[Aug]]),1),INDEX(Planovane_naklady_na_marketing[],,1),0),MATCH(Odchylky_v_nakladoch_na_marketing[[#Headers],[Aug]],Skutocne_naklady_na_marketing[#Headers],0))","v":{"v":5000,"d":"5,000.00 EUR"}},{"$f":"INDEX(Planovane_naklady_na_marketing[],MATCH(INDEX(Odchylky_v_nakladoch_na_marketing[],ROW()-ROW(Odchylky_v_nakladoch_na_marketing[[#Headers],[Sep]]),1),INDEX(Planovane_naklady_na_marketing[],,1),0),MATCH(Odchylky_v_nakladoch_na_marketing[[#Headers],[Sep]],Planovane_naklady_na_marketing[#Headers],0))-INDEX(Skutocne_naklady_na_marketing[],MATCH(INDEX(Odchylky_v_nakladoch_na_marketing[],ROW()-ROW(Odchylky_v_nakladoch_na_marketing[[#Headers],[Sep]]),1),INDEX(Planovane_naklady_na_marketing[],,1),0),MATCH(Odchylky_v_nakladoch_na_marketing[[#Headers],[Sep]],Skutocne_naklady_na_marketing[#Headers],0))","v":{"v":2000,"d":"2,000.00 EUR"}},{"$f":"INDEX(Planovane_naklady_na_marketing[],MATCH(INDEX(Odchylky_v_nakladoch_na_marketing[],ROW()-ROW(Odchylky_v_nakladoch_na_marketing[[#Headers],[Okt]]),1),INDEX(Planovane_naklady_na_marketing[],,1),0),MATCH(Odchylky_v_nakladoch_na_marketing[[#Headers],[Okt]],Planovane_naklady_na_marketing[#Headers],0))-INDEX(Skutocne_naklady_na_marketing[],MATCH(INDEX(Odchylky_v_nakladoch_na_marketing[],ROW()-ROW(Odchylky_v_nakladoch_na_marketing[[#Headers],[Okt]]),1),INDEX(Planovane_naklady_na_marketing[],,1),0),MATCH(Odchylky_v_nakladoch_na_marketing[[#Headers],[Okt]],Skutocne_naklady_na_marketing[#Headers],0))","v":{"v":2000,"d":"2,000.00 EUR"}},{"$f":"INDEX(Planovane_naklady_na_marketing[],MATCH(INDEX(Odchylky_v_nakladoch_na_marketing[],ROW()-ROW(Odchylky_v_nakladoch_na_marketing[[#Headers],[Nov]]),1),INDEX(Planovane_naklady_na_marketing[],,1),0),MATCH(Odchylky_v_nakladoch_na_marketing[[#Headers],[Nov]],Planovane_naklady_na_marketing[#Headers],0))-INDEX(Skutocne_naklady_na_marketing[],MATCH(INDEX(Odchylky_v_nakladoch_na_marketing[],ROW()-ROW(Odchylky_v_nakladoch_na_marketing[[#Headers],[Nov]]),1),INDEX(Planovane_naklady_na_marketing[],,1),0),MATCH(Odchylky_v_nakladoch_na_marketing[[#Headers],[Nov]],Skutocne_naklady_na_marketing[#Headers],0))","v":{"v":2000,"d":"2,000.00 EUR"}},{"$f":"INDEX(Planovane_naklady_na_marketing[],MATCH(INDEX(Odchylky_v_nakladoch_na_marketing[],ROW()-ROW(Odchylky_v_nakladoch_na_marketing[[#Headers],[Dec]]),1),INDEX(Planovane_naklady_na_marketing[],,1),0),MATCH(Odchylky_v_nakladoch_na_marketing[[#Headers],[Dec]],Planovane_naklady_na_marketing[#Headers],0))-INDEX(Skutocne_naklady_na_marketing[],MATCH(INDEX(Odchylky_v_nakladoch_na_marketing[],ROW()-ROW(Odchylky_v_nakladoch_na_marketing[[#Headers],[Dec]]),1),INDEX(Planovane_naklady_na_marketing[],,1),0),MATCH(Odchylky_v_nakladoch_na_marketing[[#Headers],[Dec]],Skutocne_naklady_na_marketing[#Headers],0))","v":{"v":5000,"d":"5,000.00 EUR"}},{"$f":"SUM(Odchylky_v_nakladoch_na_marketing[[#This Row],[Jan]:[Dec]])","v":{"v":18300,"d":"18,300.00 EUR"}}]
[null,"Rôzne výdavky",{"$f":"INDEX(Planovane_naklady_na_marketing[],MATCH(INDEX(Odchylky_v_nakladoch_na_marketing[],ROW()-ROW(Odchylky_v_nakladoch_na_marketing[[#Headers],[Jan]]),1),INDEX(Planovane_naklady_na_marketing[],,1),0),MATCH(Odchylky_v_nakladoch_na_marketing[[#Headers],[Jan]],Planovane_naklady_na_marketing[#Headers],0))-INDEX(Skutocne_naklady_na_marketing[],MATCH(INDEX(Odchylky_v_nakladoch_na_marketing[],ROW()-ROW(Odchylky_v_nakladoch_na_marketing[[#Headers],[Jan]]),1),INDEX(Planovane_naklady_na_marketing[],,1),0),MATCH(Odchylky_v_nakladoch_na_marketing[[#Headers],[Jan]],Skutocne_naklady_na_marketing[#Headers],0))","v":{"v":55,"d":"55.00 EUR"}},{"$f":"INDEX(Planovane_naklady_na_marketing[],MATCH(INDEX(Odchylky_v_nakladoch_na_marketing[],ROW()-ROW(Odchylky_v_nakladoch_na_marketing[[#Headers],[Feb]]),1),INDEX(Planovane_naklady_na_marketing[],,1),0),MATCH(Odchylky_v_nakladoch_na_marketing[[#Headers],[Feb]],Planovane_naklady_na_marketing[#Headers],0))-INDEX(Skutocne_naklady_na_marketing[],MATCH(INDEX(Odchylky_v_nakladoch_na_marketing[],ROW()-ROW(Odchylky_v_nakladoch_na_marketing[[#Headers],[Feb]]),1),INDEX(Planovane_naklady_na_marketing[],,1),0),MATCH(Odchylky_v_nakladoch_na_marketing[[#Headers],[Feb]],Skutocne_naklady_na_marketing[#Headers],0))","v":{"v":44,"d":"44.00 EUR"}},{"$f":"INDEX(Planovane_naklady_na_marketing[],MATCH(INDEX(Odchylky_v_nakladoch_na_marketing[],ROW()-ROW(Odchylky_v_nakladoch_na_marketing[[#Headers],[Mar]]),1),INDEX(Planovane_naklady_na_marketing[],,1),0),MATCH(Odchylky_v_nakladoch_na_marketing[[#Headers],[Mar]],Planovane_naklady_na_marketing[#Headers],0))-INDEX(Skutocne_naklady_na_marketing[],MATCH(INDEX(Odchylky_v_nakladoch_na_marketing[],ROW()-ROW(Odchylky_v_nakladoch_na_marketing[[#Headers],[Mar]]),1),INDEX(Planovane_naklady_na_marketing[],,1),0),MATCH(Odchylky_v_nakladoch_na_marketing[[#Headers],[Mar]],Skutocne_naklady_na_marketing[#Headers],0))","v":{"v":77,"d":"77.00 EUR"}},{"$f":"INDEX(Planovane_naklady_na_marketing[],MATCH(INDEX(Odchylky_v_nakladoch_na_marketing[],ROW()-ROW(Odchylky_v_nakladoch_na_marketing[[#Headers],[Apr]]),1),INDEX(Planovane_naklady_na_marketing[],,1),0),MATCH(Odchylky_v_nakladoch_na_marketing[[#Headers],[Apr]],Planovane_naklady_na_marketing[#Headers],0))-INDEX(Skutocne_naklady_na_marketing[],MATCH(INDEX(Odchylky_v_nakladoch_na_marketing[],ROW()-ROW(Odchylky_v_nakladoch_na_marketing[[#Headers],[Apr]]),1),INDEX(Planovane_naklady_na_marketing[],,1),0),MATCH(Odchylky_v_nakladoch_na_marketing[[#Headers],[Apr]],Skutocne_naklady_na_marketing[#Headers],0))","v":{"v":-23,"d":"-23.00 EUR"}},{"$f":"INDEX(Planovane_naklady_na_marketing[],MATCH(INDEX(Odchylky_v_nakladoch_na_marketing[],ROW()-ROW(Odchylky_v_nakladoch_na_marketing[[#Headers],[Máj]]),1),INDEX(Planovane_naklady_na_marketing[],,1),0),MATCH(Odchylky_v_nakladoch_na_marketing[[#Headers],[Máj]],Planovane_naklady_na_marketing[#Headers],0))-INDEX(Skutocne_naklady_na_marketing[],MATCH(INDEX(Odchylky_v_nakladoch_na_marketing[],ROW()-ROW(Odchylky_v_nakladoch_na_marketing[[#Headers],[Máj]]),1),INDEX(Planovane_naklady_na_marketing[],,1),0),MATCH(Odchylky_v_nakladoch_na_marketing[[#Headers],[Máj]],Skutocne_naklady_na_marketing[#Headers],0))","v":{"v":13,"d":"13.00 EUR"}},{"$f":"INDEX(Planovane_naklady_na_marketing[],MATCH(INDEX(Odchylky_v_nakladoch_na_marketing[],ROW()-ROW(Odchylky_v_nakladoch_na_marketing[[#Headers],[Jún]]),1),INDEX(Planovane_naklady_na_marketing[],,1),0),MATCH(Odchylky_v_nakladoch_na_marketing[[#Headers],[Jún]],Planovane_naklady_na_marketing[#Headers],0))-INDEX(Skutocne_naklady_na_marketing[],MATCH(INDEX(Odchylky_v_nakladoch_na_marketing[],ROW()-ROW(Odchylky_v_nakladoch_na_marketing[[#Headers],[Jún]]),1),INDEX(Planovane_naklady_na_marketing[],,1),0),MATCH(Odchylky_v_nakladoch_na_marketing[[#Headers],[Jún]],Skutocne_naklady_na_marketing[#Headers],0))","v":{"v":-45,"d":"-45.00 EUR"}},{"$f":"INDEX(Planovane_naklady_na_marketing[],MATCH(INDEX(Odchylky_v_nakladoch_na_marketing[],ROW()-ROW(Odchylky_v_nakladoch_na_marketing[[#Headers],[Júl]]),1),INDEX(Planovane_naklady_na_marketing[],,1),0),MATCH(Odchylky_v_nakladoch_na_marketing[[#Headers],[Júl]],Planovane_naklady_na_marketing[#Headers],0))-INDEX(Skutocne_naklady_na_marketing[],MATCH(INDEX(Odchylky_v_nakladoch_na_marketing[],ROW()-ROW(Odchylky_v_nakladoch_na_marketing[[#Headers],[Júl]]),1),INDEX(Planovane_naklady_na_marketing[],,1),0),MATCH(Odchylky_v_nakladoch_na_marketing[[#Headers],[Júl]],Skutocne_naklady_na_marketing[#Headers],0))","v":{"v":200,"d":"200.00 EUR"}},{"$f":"INDEX(Planovane_naklady_na_marketing[],MATCH(INDEX(Odchylky_v_nakladoch_na_marketing[],ROW()-ROW(Odchylky_v_nakladoch_na_marketing[[#Headers],[Aug]]),1),INDEX(Planovane_naklady_na_marketing[],,1),0),MATCH(Odchylky_v_nakladoch_na_marketing[[#Headers],[Aug]],Planovane_naklady_na_marketing[#Headers],0))-INDEX(Skutocne_naklady_na_marketing[],MATCH(INDEX(Odchylky_v_nakladoch_na_marketing[],ROW()-ROW(Odchylky_v_nakladoch_na_marketing[[#Headers],[Aug]]),1),INDEX(Planovane_naklady_na_marketing[],,1),0),MATCH(Odchylky_v_nakladoch_na_marketing[[#Headers],[Aug]],Skutocne_naklady_na_marketing[#Headers],0))","v":{"v":200,"d":"200.00 EUR"}},{"$f":"INDEX(Planovane_naklady_na_marketing[],MATCH(INDEX(Odchylky_v_nakladoch_na_marketing[],ROW()-ROW(Odchylky_v_nakladoch_na_marketing[[#Headers],[Sep]]),1),INDEX(Planovane_naklady_na_marketing[],,1),0),MATCH(Odchylky_v_nakladoch_na_marketing[[#Headers],[Sep]],Planovane_naklady_na_marketing[#Headers],0))-INDEX(Skutocne_naklady_na_marketing[],MATCH(INDEX(Odchylky_v_nakladoch_na_marketing[],ROW()-ROW(Odchylky_v_nakladoch_na_marketing[[#Headers],[Sep]]),1),INDEX(Planovane_naklady_na_marketing[],,1),0),MATCH(Odchylky_v_nakladoch_na_marketing[[#Headers],[Sep]],Skutocne_naklady_na_marketing[#Headers],0))","v":{"v":200,"d":"200.00 EUR"}},{"$f":"INDEX(Planovane_naklady_na_marketing[],MATCH(INDEX(Odchylky_v_nakladoch_na_marketing[],ROW()-ROW(Odchylky_v_nakladoch_na_marketing[[#Headers],[Okt]]),1),INDEX(Planovane_naklady_na_marketing[],,1),0),MATCH(Odchylky_v_nakladoch_na_marketing[[#Headers],[Okt]],Planovane_naklady_na_marketing[#Headers],0))-INDEX(Skutocne_naklady_na_marketing[],MATCH(INDEX(Odchylky_v_nakladoch_na_marketing[],ROW()-ROW(Odchylky_v_nakladoch_na_marketing[[#Headers],[Okt]]),1),INDEX(Planovane_naklady_na_marketing[],,1),0),MATCH(Odchylky_v_nakladoch_na_marketing[[#Headers],[Okt]],Skutocne_naklady_na_marketing[#Headers],0))","v":{"v":200,"d":"200.00 EUR"}},{"$f":"INDEX(Planovane_naklady_na_marketing[],MATCH(INDEX(Odchylky_v_nakladoch_na_marketing[],ROW()-ROW(Odchylky_v_nakladoch_na_marketing[[#Headers],[Nov]]),1),INDEX(Planovane_naklady_na_marketing[],,1),0),MATCH(Odchylky_v_nakladoch_na_marketing[[#Headers],[Nov]],Planovane_naklady_na_marketing[#Headers],0))-INDEX(Skutocne_naklady_na_marketing[],MATCH(INDEX(Odchylky_v_nakladoch_na_marketing[],ROW()-ROW(Odchylky_v_nakladoch_na_marketing[[#Headers],[Nov]]),1),INDEX(Planovane_naklady_na_marketing[],,1),0),MATCH(Odchylky_v_nakladoch_na_marketing[[#Headers],[Nov]],Skutocne_naklady_na_marketing[#Headers],0))","v":{"v":200,"d":"200.00 EUR"}},{"$f":"INDEX(Planovane_naklady_na_marketing[],MATCH(INDEX(Odchylky_v_nakladoch_na_marketing[],ROW()-ROW(Odchylky_v_nakladoch_na_marketing[[#Headers],[Dec]]),1),INDEX(Planovane_naklady_na_marketing[],,1),0),MATCH(Odchylky_v_nakladoch_na_marketing[[#Headers],[Dec]],Planovane_naklady_na_marketing[#Headers],0))-INDEX(Skutocne_naklady_na_marketing[],MATCH(INDEX(Odchylky_v_nakladoch_na_marketing[],ROW()-ROW(Odchylky_v_nakladoch_na_marketing[[#Headers],[Dec]]),1),INDEX(Planovane_naklady_na_marketing[],,1),0),MATCH(Odchylky_v_nakladoch_na_marketing[[#Headers],[Dec]],Skutocne_naklady_na_marketing[#Headers],0))","v":{"v":200,"d":"200.00 EUR"}},{"$f":"SUM(Odchylky_v_nakladoch_na_marketing[[#This Row],[Jan]:[Dec]])","v":{"v":1321,"d":"1,321.00 EUR"}}]
[null,"Medzisúčet",{"$f":"SUBTOTAL(109,Odchylky_v_nakladoch_na_marketing[Jan])","v":{"v":555,"d":"555.00 EUR"}},{"$f":"SUBTOTAL(109,Odchylky_v_nakladoch_na_marketing[Feb])","v":{"v":-456,"d":"-456.00 EUR"}},{"$f":"SUBTOTAL(109,Odchylky_v_nakladoch_na_marketing[Mar])","v":{"v":-23,"d":"-23.00 EUR"}},{"$f":"SUBTOTAL(109,Odchylky_v_nakladoch_na_marketing[Apr])","v":{"v":-123,"d":"-123.00 EUR"}},{"$f":"SUBTOTAL(109,Odchylky_v_nakladoch_na_marketing[Máj])","v":{"v":113,"d":"113.00 EUR"}},{"$f":"SUBTOTAL(109,Odchylky_v_nakladoch_na_marketing[Jún])","v":{"v":-825,"d":"-825.00 EUR"}},{"$f":"SUBTOTAL(109,Odchylky_v_nakladoch_na_marketing[Júl])","v":{"v":8100,"d":"8,100.00 EUR"}},{"$f":"SUBTOTAL(109,Odchylky_v_nakladoch_na_marketing[Aug])","v":{"v":6100,"d":"6,100.00 EUR"}},{"$f":"SUBTOTAL(109,Odchylky_v_nakladoch_na_marketing[Sep])","v":{"v":3100,"d":"3,100.00 EUR"}},{"$f":"SUBTOTAL(109,Odchylky_v_nakladoch_na_marketing[Okt])","v":{"v":8100,"d":"8,100.00 EUR"}},{"$f":"SUBTOTAL(109,Odchylky_v_nakladoch_na_marketing[Nov])","v":{"v":3100,"d":"3,100.00 EUR"}},{"$f":"SUBTOTAL(109,Odchylky_v_nakladoch_na_marketing[Dec])","v":{"v":6900,"d":"6,900.00 EUR"}},{"$f":"SUBTOTAL(109,Odchylky_v_nakladoch_na_marketing[ROK])","v":{"v":34641,"d":"34,641.00 EUR"}}]
[]
["V tabuľke odchýlok v Náklady na školenie a cestovné začínajúcej v bunke napravo sa automaticky vypočítajú odchylky v nakladoch na skolenie a cestovne. Ďalší pokyn je v bunke A35.","Školenie/cestovné","Jan","Feb","Mar","Apr","Máj","Jún","Júl","Aug","Sep","Okt","Nov","Dec","ROK"]
[null,"Školiace kurzy",{"$f":"INDEX(Planovane_naklady_na_skolenie_a_cestovne[],MATCH(INDEX(Odchylky_v_nakladoch_na_skolenie_a_cestovne[],ROW()-ROW(Odchylky_v_nakladoch_na_skolenie_a_cestovne[[#Headers],[Jan]]),1),INDEX(Planovane_naklady_na_skolenie_a_cestovne[],,1),0),MATCH(Odchylky_v_nakladoch_na_skolenie_a_cestovne[[#Headers],[Jan]],Planovane_naklady_na_skolenie_a_cestovne[#Headers],0))-INDEX(Skutocne_naklady_na_skolenie_a_cestovne[],MATCH(INDEX(Odchylky_v_nakladoch_na_skolenie_a_cestovne[],ROW()-ROW(Odchylky_v_nakladoch_na_skolenie_a_cestovne[[#Headers],[Jan]]),1),INDEX(Planovane_naklady_na_skolenie_a_cestovne[],,1),0),MATCH(Odchylky_v_nakladoch_na_skolenie_a_cestovne[[#Headers],[Jan]],Skutocne_naklady_na_skolenie_a_cestovne[#Headers],0))","v":{"v":400,"d":"400.00 EUR"}},{"$f":"INDEX(Planovane_naklady_na_skolenie_a_cestovne[],MATCH(INDEX(Odchylky_v_nakladoch_na_skolenie_a_cestovne[],ROW()-ROW(Odchylky_v_nakladoch_na_skolenie_a_cestovne[[#Headers],[Feb]]),1),INDEX(Planovane_naklady_na_skolenie_a_cestovne[],,1),0),MATCH(Odchylky_v_nakladoch_na_skolenie_a_cestovne[[#Headers],[Feb]],Planovane_naklady_na_skolenie_a_cestovne[#Headers],0))-INDEX(Skutocne_naklady_na_skolenie_a_cestovne[],MATCH(INDEX(Odchylky_v_nakladoch_na_skolenie_a_cestovne[],ROW()-ROW(Odchylky_v_nakladoch_na_skolenie_a_cestovne[[#Headers],[Feb]]),1),INDEX(Planovane_naklady_na_skolenie_a_cestovne[],,1),0),MATCH(Odchylky_v_nakladoch_na_skolenie_a_cestovne[[#Headers],[Feb]],Skutocne_naklady_na_skolenie_a_cestovne[#Headers],0))","v":{"v":-400,"d":"-400.00 EUR"}},{"$f":"INDEX(Planovane_naklady_na_skolenie_a_cestovne[],MATCH(INDEX(Odchylky_v_nakladoch_na_skolenie_a_cestovne[],ROW()-ROW(Odchylky_v_nakladoch_na_skolenie_a_cestovne[[#Headers],[Mar]]),1),INDEX(Planovane_naklady_na_skolenie_a_cestovne[],,1),0),MATCH(Odchylky_v_nakladoch_na_skolenie_a_cestovne[[#Headers],[Mar]],Planovane_naklady_na_skolenie_a_cestovne[#Headers],0))-INDEX(Skutocne_naklady_na_skolenie_a_cestovne[],MATCH(INDEX(Odchylky_v_nakladoch_na_skolenie_a_cestovne[],ROW()-ROW(Odchylky_v_nakladoch_na_skolenie_a_cestovne[[#Headers],[Mar]]),1),INDEX(Planovane_naklady_na_skolenie_a_cestovne[],,1),0),MATCH(Odchylky_v_nakladoch_na_skolenie_a_cestovne[[#Headers],[Mar]],Skutocne_naklady_na_skolenie_a_cestovne[#Headers],0))","v":{"v":600,"d":"600.00 EUR"}},{"$f":"INDEX(Planovane_naklady_na_skolenie_a_cestovne[],MATCH(INDEX(Odchylky_v_nakladoch_na_skolenie_a_cestovne[],ROW()-ROW(Odchylky_v_nakladoch_na_skolenie_a_cestovne[[#Headers],[Apr]]),1),INDEX(Planovane_naklady_na_skolenie_a_cestovne[],,1),0),MATCH(Odchylky_v_nakladoch_na_skolenie_a_cestovne[[#Headers],[Apr]],Planovane_naklady_na_skolenie_a_cestovne[#Headers],0))-INDEX(Skutocne_naklady_na_skolenie_a_cestovne[],MATCH(INDEX(Odchylky_v_nakladoch_na_skolenie_a_cestovne[],ROW()-ROW(Odchylky_v_nakladoch_na_skolenie_a_cestovne[[#Headers],[Apr]]),1),INDEX(Planovane_naklady_na_skolenie_a_cestovne[],,1),0),MATCH(Odchylky_v_nakladoch_na_skolenie_a_cestovne[[#Headers],[Apr]],Skutocne_naklady_na_skolenie_a_cestovne[#Headers],0))","v":{"v":400,"d":"400.00 EUR"}},{"$f":"INDEX(Planovane_naklady_na_skolenie_a_cestovne[],MATCH(INDEX(Odchylky_v_nakladoch_na_skolenie_a_cestovne[],ROW()-ROW(Odchylky_v_nakladoch_na_skolenie_a_cestovne[[#Headers],[Máj]]),1),INDEX(Planovane_naklady_na_skolenie_a_cestovne[],,1),0),MATCH(Odchylky_v_nakladoch_na_skolenie_a_cestovne[[#Headers],[Máj]],Planovane_naklady_na_skolenie_a_cestovne[#Headers],0))-INDEX(Skutocne_naklady_na_skolenie_a_cestovne[],MATCH(INDEX(Odchylky_v_nakladoch_na_skolenie_a_cestovne[],ROW()-ROW(Odchylky_v_nakladoch_na_skolenie_a_cestovne[[#Headers],[Máj]]),1),INDEX(Planovane_naklady_na_skolenie_a_cestovne[],,1),0),MATCH(Odchylky_v_nakladoch_na_skolenie_a_cestovne[[#Headers],[Máj]],Skutocne_naklady_na_skolenie_a_cestovne[#Headers],0))","v":{"v":800,"d":"800.00 EUR"}},{"$f":"INDEX(Planovane_naklady_na_skolenie_a_cestovne[],MATCH(INDEX(Odchylky_v_nakladoch_na_skolenie_a_cestovne[],ROW()-ROW(Odchylky_v_nakladoch_na_skolenie_a_cestovne[[#Headers],[Jún]]),1),INDEX(Planovane_naklady_na_skolenie_a_cestovne[],,1),0),MATCH(Odchylky_v_nakladoch_na_skolenie_a_cestovne[[#Headers],[Jún]],Planovane_naklady_na_skolenie_a_cestovne[#Headers],0))-INDEX(Skutocne_naklady_na_skolenie_a_cestovne[],MATCH(INDEX(Odchylky_v_nakladoch_na_skolenie_a_cestovne[],ROW()-ROW(Odchylky_v_nakladoch_na_skolenie_a_cestovne[[#Headers],[Jún]]),1),INDEX(Planovane_naklady_na_skolenie_a_cestovne[],,1),0),MATCH(Odchylky_v_nakladoch_na_skolenie_a_cestovne[[#Headers],[Jún]],Skutocne_naklady_na_skolenie_a_cestovne[#Headers],0))","v":{"v":-800,"d":"-800.00 EUR"}},{"$f":"INDEX(Planovane_naklady_na_skolenie_a_cestovne[],MATCH(INDEX(Odchylky_v_nakladoch_na_skolenie_a_cestovne[],ROW()-ROW(Odchylky_v_nakladoch_na_skolenie_a_cestovne[[#Headers],[Júl]]),1),INDEX(Planovane_naklady_na_skolenie_a_cestovne[],,1),0),MATCH(Odchylky_v_nakladoch_na_skolenie_a_cestovne[[#Headers],[Júl]],Planovane_naklady_na_skolenie_a_cestovne[#Headers],0))-INDEX(Skutocne_naklady_na_skolenie_a_cestovne[],MATCH(INDEX(Odchylky_v_nakladoch_na_skolenie_a_cestovne[],ROW()-ROW(Odchylky_v_nakladoch_na_skolenie_a_cestovne[[#Headers],[Júl]]),1),INDEX(Planovane_naklady_na_skolenie_a_cestovne[],,1),0),MATCH(Odchylky_v_nakladoch_na_skolenie_a_cestovne[[#Headers],[Júl]],Skutocne_naklady_na_skolenie_a_cestovne[#Headers],0))","v":{"v":2000,"d":"2,000.00 EUR"}},{"$f":"INDEX(Planovane_naklady_na_skolenie_a_cestovne[],MATCH(INDEX(Odchylky_v_nakladoch_na_skolenie_a_cestovne[],ROW()-ROW(Odchylky_v_nakladoch_na_skolenie_a_cestovne[[#Headers],[Aug]]),1),INDEX(Planovane_naklady_na_skolenie_a_cestovne[],,1),0),MATCH(Odchylky_v_nakladoch_na_skolenie_a_cestovne[[#Headers],[Aug]],Planovane_naklady_na_skolenie_a_cestovne[#Headers],0))-INDEX(Skutocne_naklady_na_skolenie_a_cestovne[],MATCH(INDEX(Odchylky_v_nakladoch_na_skolenie_a_cestovne[],ROW()-ROW(Odchylky_v_nakladoch_na_skolenie_a_cestovne[[#Headers],[Aug]]),1),INDEX(Planovane_naklady_na_skolenie_a_cestovne[],,1),0),MATCH(Odchylky_v_nakladoch_na_skolenie_a_cestovne[[#Headers],[Aug]],Skutocne_naklady_na_skolenie_a_cestovne[#Headers],0))","v":{"v":2000,"d":"2,000.00 EUR"}},{"$f":"INDEX(Planovane_naklady_na_skolenie_a_cestovne[],MATCH(INDEX(Odchylky_v_nakladoch_na_skolenie_a_cestovne[],ROW()-ROW(Odchylky_v_nakladoch_na_skolenie_a_cestovne[[#Headers],[Sep]]),1),INDEX(Planovane_naklady_na_skolenie_a_cestovne[],,1),0),MATCH(Odchylky_v_nakladoch_na_skolenie_a_cestovne[[#Headers],[Sep]],Planovane_naklady_na_skolenie_a_cestovne[#Headers],0))-INDEX(Skutocne_naklady_na_skolenie_a_cestovne[],MATCH(INDEX(Odchylky_v_nakladoch_na_skolenie_a_cestovne[],ROW()-ROW(Odchylky_v_nakladoch_na_skolenie_a_cestovne[[#Headers],[Sep]]),1),INDEX(Planovane_naklady_na_skolenie_a_cestovne[],,1),0),MATCH(Odchylky_v_nakladoch_na_skolenie_a_cestovne[[#Headers],[Sep]],Skutocne_naklady_na_skolenie_a_cestovne[#Headers],0))","v":{"v":2000,"d":"2,000.00 EUR"}},{"$f":"INDEX(Planovane_naklady_na_skolenie_a_cestovne[],MATCH(INDEX(Odchylky_v_nakladoch_na_skolenie_a_cestovne[],ROW()-ROW(Odchylky_v_nakladoch_na_skolenie_a_cestovne[[#Headers],[Okt]]),1),INDEX(Planovane_naklady_na_skolenie_a_cestovne[],,1),0),MATCH(Odchylky_v_nakladoch_na_skolenie_a_cestovne[[#Headers],[Okt]],Planovane_naklady_na_skolenie_a_cestovne[#Headers],0))-INDEX(Skutocne_naklady_na_skolenie_a_cestovne[],MATCH(INDEX(Odchylky_v_nakladoch_na_skolenie_a_cestovne[],ROW()-ROW(Odchylky_v_nakladoch_na_skolenie_a_cestovne[[#Headers],[Okt]]),1),INDEX(Planovane_naklady_na_skolenie_a_cestovne[],,1),0),MATCH(Odchylky_v_nakladoch_na_skolenie_a_cestovne[[#Headers],[Okt]],Skutocne_naklady_na_skolenie_a_cestovne[#Headers],0))","v":{"v":2000,"d":"2,000.00 EUR"}},{"$f":"INDEX(Planovane_naklady_na_skolenie_a_cestovne[],MATCH(INDEX(Odchylky_v_nakladoch_na_skolenie_a_cestovne[],ROW()-ROW(Odchylky_v_nakladoch_na_skolenie_a_cestovne[[#Headers],[Nov]]),1),INDEX(Planovane_naklady_na_skolenie_a_cestovne[],,1),0),MATCH(Odchylky_v_nakladoch_na_skolenie_a_cestovne[[#Headers],[Nov]],Planovane_naklady_na_skolenie_a_cestovne[#Headers],0))-INDEX(Skutocne_naklady_na_skolenie_a_cestovne[],MATCH(INDEX(Odchylky_v_nakladoch_na_skolenie_a_cestovne[],ROW()-ROW(Odchylky_v_nakladoch_na_skolenie_a_cestovne[[#Headers],[Nov]]),1),INDEX(Planovane_naklady_na_skolenie_a_cestovne[],,1),0),MATCH(Odchylky_v_nakladoch_na_skolenie_a_cestovne[[#Headers],[Nov]],Skutocne_naklady_na_skolenie_a_cestovne[#Headers],0))","v":{"v":2000,"d":"2,000.00 EUR"}},{"$f":"INDEX(Planovane_naklady_na_skolenie_a_cestovne[],MATCH(INDEX(Odchylky_v_nakladoch_na_skolenie_a_cestovne[],ROW()-ROW(Odchylky_v_nakladoch_na_skolenie_a_cestovne[[#Headers],[Dec]]),1),INDEX(Planovane_naklady_na_skolenie_a_cestovne[],,1),0),MATCH(Odchylky_v_nakladoch_na_skolenie_a_cestovne[[#Headers],[Dec]],Planovane_naklady_na_skolenie_a_cestovne[#Headers],0))-INDEX(Skutocne_naklady_na_skolenie_a_cestovne[],MATCH(INDEX(Odchylky_v_nakladoch_na_skolenie_a_cestovne[],ROW()-ROW(Odchylky_v_nakladoch_na_skolenie_a_cestovne[[#Headers],[Dec]]),1),INDEX(Planovane_naklady_na_skolenie_a_cestovne[],,1),0),MATCH(Odchylky_v_nakladoch_na_skolenie_a_cestovne[[#Headers],[Dec]],Skutocne_naklady_na_skolenie_a_cestovne[#Headers],0))","v":{"v":2000,"d":"2,000.00 EUR"}},{"$f":"SUM(Odchylky_v_nakladoch_na_skolenie_a_cestovne[[#This Row],[Jan]:[Dec]])","v":{"v":13000,"d":"13,000.00 EUR"}}]
[null,"Cestovné náklady súvisiace so školením",{"$f":"INDEX(Planovane_naklady_na_skolenie_a_cestovne[],MATCH(INDEX(Odchylky_v_nakladoch_na_skolenie_a_cestovne[],ROW()-ROW(Odchylky_v_nakladoch_na_skolenie_a_cestovne[[#Headers],[Jan]]),1),INDEX(Planovane_naklady_na_skolenie_a_cestovne[],,1),0),MATCH(Odchylky_v_nakladoch_na_skolenie_a_cestovne[[#Headers],[Jan]],Planovane_naklady_na_skolenie_a_cestovne[#Headers],0))-INDEX(Skutocne_naklady_na_skolenie_a_cestovne[],MATCH(INDEX(Odchylky_v_nakladoch_na_skolenie_a_cestovne[],ROW()-ROW(Odchylky_v_nakladoch_na_skolenie_a_cestovne[[#Headers],[Jan]]),1),INDEX(Planovane_naklady_na_skolenie_a_cestovne[],,1),0),MATCH(Odchylky_v_nakladoch_na_skolenie_a_cestovne[[#Headers],[Jan]],Skutocne_naklady_na_skolenie_a_cestovne[#Headers],0))","v":{"v":800,"d":"800.00 EUR"}},{"$f":"INDEX(Planovane_naklady_na_skolenie_a_cestovne[],MATCH(INDEX(Odchylky_v_nakladoch_na_skolenie_a_cestovne[],ROW()-ROW(Odchylky_v_nakladoch_na_skolenie_a_cestovne[[#Headers],[Feb]]),1),INDEX(Planovane_naklady_na_skolenie_a_cestovne[],,1),0),MATCH(Odchylky_v_nakladoch_na_skolenie_a_cestovne[[#Headers],[Feb]],Planovane_naklady_na_skolenie_a_cestovne[#Headers],0))-INDEX(Skutocne_naklady_na_skolenie_a_cestovne[],MATCH(INDEX(Odchylky_v_nakladoch_na_skolenie_a_cestovne[],ROW()-ROW(Odchylky_v_nakladoch_na_skolenie_a_cestovne[[#Headers],[Feb]]),1),INDEX(Planovane_naklady_na_skolenie_a_cestovne[],,1),0),MATCH(Odchylky_v_nakladoch_na_skolenie_a_cestovne[[#Headers],[Feb]],Skutocne_naklady_na_skolenie_a_cestovne[#Headers],0))","v":{"v":-200,"d":"-200.00 EUR"}},{"$f":"INDEX(Planovane_naklady_na_skolenie_a_cestovne[],MATCH(INDEX(Odchylky_v_nakladoch_na_skolenie_a_cestovne[],ROW()-ROW(Odchylky_v_nakladoch_na_skolenie_a_cestovne[[#Headers],[Mar]]),1),INDEX(Planovane_naklady_na_skolenie_a_cestovne[],,1),0),MATCH(Odchylky_v_nakladoch_na_skolenie_a_cestovne[[#Headers],[Mar]],Planovane_naklady_na_skolenie_a_cestovne[#Headers],0))-INDEX(Skutocne_naklady_na_skolenie_a_cestovne[],MATCH(INDEX(Odchylky_v_nakladoch_na_skolenie_a_cestovne[],ROW()-ROW(Odchylky_v_nakladoch_na_skolenie_a_cestovne[[#Headers],[Mar]]),1),INDEX(Planovane_naklady_na_skolenie_a_cestovne[],,1),0),MATCH(Odchylky_v_nakladoch_na_skolenie_a_cestovne[[#Headers],[Mar]],Skutocne_naklady_na_skolenie_a_cestovne[#Headers],0))","v":{"v":600,"d":"600.00 EUR"}},{"$f":"INDEX(Planovane_naklady_na_skolenie_a_cestovne[],MATCH(INDEX(Odchylky_v_nakladoch_na_skolenie_a_cestovne[],ROW()-ROW(Odchylky_v_nakladoch_na_skolenie_a_cestovne[[#Headers],[Apr]]),1),INDEX(Planovane_naklady_na_skolenie_a_cestovne[],,1),0),MATCH(Odchylky_v_nakladoch_na_skolenie_a_cestovne[[#Headers],[Apr]],Planovane_naklady_na_skolenie_a_cestovne[#Headers],0))-INDEX(Skutocne_naklady_na_skolenie_a_cestovne[],MATCH(INDEX(Odchylky_v_nakladoch_na_skolenie_a_cestovne[],ROW()-ROW(Odchylky_v_nakladoch_na_skolenie_a_cestovne[[#Headers],[Apr]]),1),INDEX(Planovane_naklady_na_skolenie_a_cestovne[],,1),0),MATCH(Odchylky_v_nakladoch_na_skolenie_a_cestovne[[#Headers],[Apr]],Skutocne_naklady_na_skolenie_a_cestovne[#Headers],0))","v":{"v":800,"d":"800.00 EUR"}},{"$f":"INDEX(Planovane_naklady_na_skolenie_a_cestovne[],MATCH(INDEX(Odchylky_v_nakladoch_na_skolenie_a_cestovne[],ROW()-ROW(Odchylky_v_nakladoch_na_skolenie_a_cestovne[[#Headers],[Máj]]),1),INDEX(Planovane_naklady_na_skolenie_a_cestovne[],,1),0),MATCH(Odchylky_v_nakladoch_na_skolenie_a_cestovne[[#Headers],[Máj]],Planovane_naklady_na_skolenie_a_cestovne[#Headers],0))-INDEX(Skutocne_naklady_na_skolenie_a_cestovne[],MATCH(INDEX(Odchylky_v_nakladoch_na_skolenie_a_cestovne[],ROW()-ROW(Odchylky_v_nakladoch_na_skolenie_a_cestovne[[#Headers],[Máj]]),1),INDEX(Planovane_naklady_na_skolenie_a_cestovne[],,1),0),MATCH(Odchylky_v_nakladoch_na_skolenie_a_cestovne[[#Headers],[Máj]],Skutocne_naklady_na_skolenie_a_cestovne[#Headers],0))","v":{"v":1200,"d":"1,200.00 EUR"}},{"$f":"INDEX(Planovane_naklady_na_skolenie_a_cestovne[],MATCH(INDEX(Odchylky_v_nakladoch_na_skolenie_a_cestovne[],ROW()-ROW(Odchylky_v_nakladoch_na_skolenie_a_cestovne[[#Headers],[Jún]]),1),INDEX(Planovane_naklady_na_skolenie_a_cestovne[],,1),0),MATCH(Odchylky_v_nakladoch_na_skolenie_a_cestovne[[#Headers],[Jún]],Planovane_naklady_na_skolenie_a_cestovne[#Headers],0))-INDEX(Skutocne_naklady_na_skolenie_a_cestovne[],MATCH(INDEX(Odchylky_v_nakladoch_na_skolenie_a_cestovne[],ROW()-ROW(Odchylky_v_nakladoch_na_skolenie_a_cestovne[[#Headers],[Jún]]),1),INDEX(Planovane_naklady_na_skolenie_a_cestovne[],,1),0),MATCH(Odchylky_v_nakladoch_na_skolenie_a_cestovne[[#Headers],[Jún]],Skutocne_naklady_na_skolenie_a_cestovne[#Headers],0))","v":{"v":-1500,"d":"-1,500.00 EUR"}},{"$f":"INDEX(Planovane_naklady_na_skolenie_a_cestovne[],MATCH(INDEX(Odchylky_v_nakladoch_na_skolenie_a_cestovne[],ROW()-ROW(Odchylky_v_nakladoch_na_skolenie_a_cestovne[[#Headers],[Júl]]),1),INDEX(Planovane_naklady_na_skolenie_a_cestovne[],,1),0),MATCH(Odchylky_v_nakladoch_na_skolenie_a_cestovne[[#Headers],[Júl]],Planovane_naklady_na_skolenie_a_cestovne[#Headers],0))-INDEX(Skutocne_naklady_na_skolenie_a_cestovne[],MATCH(INDEX(Odchylky_v_nakladoch_na_skolenie_a_cestovne[],ROW()-ROW(Odchylky_v_nakladoch_na_skolenie_a_cestovne[[#Headers],[Júl]]),1),INDEX(Planovane_naklady_na_skolenie_a_cestovne[],,1),0),MATCH(Odchylky_v_nakladoch_na_skolenie_a_cestovne[[#Headers],[Júl]],Skutocne_naklady_na_skolenie_a_cestovne[#Headers],0))","v":{"v":2000,"d":"2,000.00 EUR"}},{"$f":"INDEX(Planovane_naklady_na_skolenie_a_cestovne[],MATCH(INDEX(Odchylky_v_nakladoch_na_skolenie_a_cestovne[],ROW()-ROW(Odchylky_v_nakladoch_na_skolenie_a_cestovne[[#Headers],[Aug]]),1),INDEX(Planovane_naklady_na_skolenie_a_cestovne[],,1),0),MATCH(Odchylky_v_nakladoch_na_skolenie_a_cestovne[[#Headers],[Aug]],Planovane_naklady_na_skolenie_a_cestovne[#Headers],0))-INDEX(Skutocne_naklady_na_skolenie_a_cestovne[],MATCH(INDEX(Odchylky_v_nakladoch_na_skolenie_a_cestovne[],ROW()-ROW(Odchylky_v_nakladoch_na_skolenie_a_cestovne[[#Headers],[Aug]]),1),INDEX(Planovane_naklady_na_skolenie_a_cestovne[],,1),0),MATCH(Odchylky_v_nakladoch_na_skolenie_a_cestovne[[#Headers],[Aug]],Skutocne_naklady_na_skolenie_a_cestovne[#Headers],0))","v":{"v":2000,"d":"2,000.00 EUR"}},{"$f":"INDEX(Planovane_naklady_na_skolenie_a_cestovne[],MATCH(INDEX(Odchylky_v_nakladoch_na_skolenie_a_cestovne[],ROW()-ROW(Odchylky_v_nakladoch_na_skolenie_a_cestovne[[#Headers],[Sep]]),1),INDEX(Planovane_naklady_na_skolenie_a_cestovne[],,1),0),MATCH(Odchylky_v_nakladoch_na_skolenie_a_cestovne[[#Headers],[Sep]],Planovane_naklady_na_skolenie_a_cestovne[#Headers],0))-INDEX(Skutocne_naklady_na_skolenie_a_cestovne[],MATCH(INDEX(Odchylky_v_nakladoch_na_skolenie_a_cestovne[],ROW()-ROW(Odchylky_v_nakladoch_na_skolenie_a_cestovne[[#Headers],[Sep]]),1),INDEX(Planovane_naklady_na_skolenie_a_cestovne[],,1),0),MATCH(Odchylky_v_nakladoch_na_skolenie_a_cestovne[[#Headers],[Sep]],Skutocne_naklady_na_skolenie_a_cestovne[#Headers],0))","v":{"v":2000,"d":"2,000.00 EUR"}},{"$f":"INDEX(Planovane_naklady_na_skolenie_a_cestovne[],MATCH(INDEX(Odchylky_v_nakladoch_na_skolenie_a_cestovne[],ROW()-ROW(Odchylky_v_nakladoch_na_skolenie_a_cestovne[[#Headers],[Okt]]),1),INDEX(Planovane_naklady_na_skolenie_a_cestovne[],,1),0),MATCH(Odchylky_v_nakladoch_na_skolenie_a_cestovne[[#Headers],[Okt]],Planovane_naklady_na_skolenie_a_cestovne[#Headers],0))-INDEX(Skutocne_naklady_na_skolenie_a_cestovne[],MATCH(INDEX(Odchylky_v_nakladoch_na_skolenie_a_cestovne[],ROW()-ROW(Odchylky_v_nakladoch_na_skolenie_a_cestovne[[#Headers],[Okt]]),1),INDEX(Planovane_naklady_na_skolenie_a_cestovne[],,1),0),MATCH(Odchylky_v_nakladoch_na_skolenie_a_cestovne[[#Headers],[Okt]],Skutocne_naklady_na_skolenie_a_cestovne[#Headers],0))","v":{"v":2000,"d":"2,000.00 EUR"}},{"$f":"INDEX(Planovane_naklady_na_skolenie_a_cestovne[],MATCH(INDEX(Odchylky_v_nakladoch_na_skolenie_a_cestovne[],ROW()-ROW(Odchylky_v_nakladoch_na_skolenie_a_cestovne[[#Headers],[Nov]]),1),INDEX(Planovane_naklady_na_skolenie_a_cestovne[],,1),0),MATCH(Odchylky_v_nakladoch_na_skolenie_a_cestovne[[#Headers],[Nov]],Planovane_naklady_na_skolenie_a_cestovne[#Headers],0))-INDEX(Skutocne_naklady_na_skolenie_a_cestovne[],MATCH(INDEX(Odchylky_v_nakladoch_na_skolenie_a_cestovne[],ROW()-ROW(Odchylky_v_nakladoch_na_skolenie_a_cestovne[[#Headers],[Nov]]),1),INDEX(Planovane_naklady_na_skolenie_a_cestovne[],,1),0),MATCH(Odchylky_v_nakladoch_na_skolenie_a_cestovne[[#Headers],[Nov]],Skutocne_naklady_na_skolenie_a_cestovne[#Headers],0))","v":{"v":2000,"d":"2,000.00 EUR"}},{"$f":"INDEX(Planovane_naklady_na_skolenie_a_cestovne[],MATCH(INDEX(Odchylky_v_nakladoch_na_skolenie_a_cestovne[],ROW()-ROW(Odchylky_v_nakladoch_na_skolenie_a_cestovne[[#Headers],[Dec]]),1),INDEX(Planovane_naklady_na_skolenie_a_cestovne[],,1),0),MATCH(Odchylky_v_nakladoch_na_skolenie_a_cestovne[[#Headers],[Dec]],Planovane_naklady_na_skolenie_a_cestovne[#Headers],0))-INDEX(Skutocne_naklady_na_skolenie_a_cestovne[],MATCH(INDEX(Odchylky_v_nakladoch_na_skolenie_a_cestovne[],ROW()-ROW(Odchylky_v_nakladoch_na_skolenie_a_cestovne[[#Headers],[Dec]]),1),INDEX(Planovane_naklady_na_skolenie_a_cestovne[],,1),0),MATCH(Odchylky_v_nakladoch_na_skolenie_a_cestovne[[#Headers],[Dec]],Skutocne_naklady_na_skolenie_a_cestovne[#Headers],0))","v":{"v":2000,"d":"2,000.00 EUR"}},{"$f":"SUM(Odchylky_v_nakladoch_na_skolenie_a_cestovne[[#This Row],[Jan]:[Dec]])","v":{"v":13700,"d":"13,700.00 EUR"}}]
[null,"Medzisúčet",{"$f":"SUBTOTAL(109,Odchylky_v_nakladoch_na_skolenie_a_cestovne[Jan])","v":{"v":1200,"d":"1,200.00 EUR"}},{"$f":"SUBTOTAL(109,Odchylky_v_nakladoch_na_skolenie_a_cestovne[Feb])","v":{"v":-600,"d":"-600.00 EUR"}},{"$f":"SUBTOTAL(109,Odchylky_v_nakladoch_na_skolenie_a_cestovne[Mar])","v":{"v":1200,"d":"1,200.00 EUR"}},{"$f":"SUBTOTAL(109,Odchylky_v_nakladoch_na_skolenie_a_cestovne[Apr])","v":{"v":1200,"d":"1,200.00 EUR"}},{"$f":"SUBTOTAL(109,Odchylky_v_nakladoch_na_skolenie_a_cestovne[Máj])","v":{"v":2000,"d":"2,000.00 EUR"}},{"$f":"SUBTOTAL(109,Odchylky_v_nakladoch_na_skolenie_a_cestovne[Jún])","v":{"v":-2300,"d":"-2,300.00 EUR"}},{"$f":"SUBTOTAL(109,Odchylky_v_nakladoch_na_skolenie_a_cestovne[Júl])","v":{"v":4000,"d":"4,000.00 EUR"}},{"$f":"SUBTOTAL(109,Odchylky_v_nakladoch_na_skolenie_a_cestovne[Aug])","v":{"v":4000,"d":"4,000.00 EUR"}},{"$f":"SUBTOTAL(109,Odchylky_v_nakladoch_na_skolenie_a_cestovne[Sep])","v":{"v":4000,"d":"4,000.00 EUR"}},{"$f":"SUBTOTAL(109,Odchylky_v_nakladoch_na_skolenie_a_cestovne[Okt])","v":{"v":4000,"d":"4,000.00 EUR"}},{"$f":"SUBTOTAL(109,Odchylky_v_nakladoch_na_skolenie_a_cestovne[Nov])","v":{"v":4000,"d":"4,000.00 EUR"}},{"$f":"SUBTOTAL(109,Odchylky_v_nakladoch_na_skolenie_a_cestovne[Dec])","v":{"v":4000,"d":"4,000.00 EUR"}},{"$f":"SUBTOTAL(109,Odchylky_v_nakladoch_na_skolenie_a_cestovne[ROK])","v":{"v":26700,"d":"26,700.00 EUR"}}]
[]
["V tabuľke celkových odchýlky vo výdavkoch v bunke napravo sa automaticky vypočítajú celkove odchylky vo výdavkoch.","SÚČTY","Jan","Feb","Mar","Apr","Máj","Jún","Júl","Aug","Sep","Okt","Nov","Dec","Rok"]
[null,"Mesačné skutočné výdavky",{"$f":"Odchylky_v_nakladoch_na_skolenie_a_cestovne[[#Totals],[Jan]]+Odchylky_v_nakladoch_na_marketing[[#Totals],[Jan]]+Odchylky_v_nakladoch_na_kancelariu[[#Totals],[Jan]]+Odchylky_v_nakladoch[[#Totals],[Jan]]","v":{"v":1738,"d":"1,738.00 EUR"}},{"$f":"Odchylky_v_nakladoch_na_skolenie_a_cestovne[[#Totals],[Feb]]+Odchylky_v_nakladoch_na_marketing[[#Totals],[Feb]]+Odchylky_v_nakladoch_na_kancelariu[[#Totals],[Feb]]+Odchylky_v_nakladoch[[#Totals],[Feb]]","v":{"v":-984,"d":"-984.00 EUR"}},{"$f":"Odchylky_v_nakladoch_na_skolenie_a_cestovne[[#Totals],[Mar]]+Odchylky_v_nakladoch_na_marketing[[#Totals],[Mar]]+Odchylky_v_nakladoch_na_kancelariu[[#Totals],[Mar]]+Odchylky_v_nakladoch[[#Totals],[Mar]]","v":{"v":1255,"d":"1,255.00 EUR"}},{"$f":"Odchylky_v_nakladoch_na_skolenie_a_cestovne[[#Totals],[Apr]]+Odchylky_v_nakladoch_na_marketing[[#Totals],[Apr]]+Odchylky_v_nakladoch_na_kancelariu[[#Totals],[Apr]]+Odchylky_v_nakladoch[[#Totals],[Apr]]","v":{"v":301,"d":"301.00 EUR"}},{"$f":"Odchylky_v_nakladoch_na_skolenie_a_cestovne[[#Totals],[Máj]]+Odchylky_v_nakladoch_na_marketing[[#Totals],[Máj]]+Odchylky_v_nakladoch_na_kancelariu[[#Totals],[Máj]]+Odchylky_v_nakladoch[[#Totals],[Máj]]","v":{"v":1440,"d":"1,440.00 EUR"}},{"$f":"Odchylky_v_nakladoch_na_skolenie_a_cestovne[[#Totals],[Jún]]+Odchylky_v_nakladoch_na_marketing[[#Totals],[Jún]]+Odchylky_v_nakladoch_na_kancelariu[[#Totals],[Jún]]+Odchylky_v_nakladoch[[#Totals],[Jún]]","v":{"v":-3744,"d":"-3,744.00 EUR"}},{"$f":"Odchylky_v_nakladoch_na_skolenie_a_cestovne[[#Totals],[Júl]]+Odchylky_v_nakladoch_na_marketing[[#Totals],[Júl]]+Odchylky_v_nakladoch_na_kancelariu[[#Totals],[Júl]]+Odchylky_v_nakladoch[[#Totals],[Júl]]","v":{"v":134695,"d":"134,695.00 EUR"}},{"$f":"Odchylky_v_nakladoch_na_skolenie_a_cestovne[[#Totals],[Aug]]+Odchylky_v_nakladoch_na_marketing[[#Totals],[Aug]]+Odchylky_v_nakladoch_na_kancelariu[[#Totals],[Aug]]+Odchylky_v_nakladoch[[#Totals],[Aug]]","v":{"v":138918,"d":"138,918.00 EUR"}},{"$f":"Odchylky_v_nakladoch_na_skolenie_a_cestovne[[#Totals],[Sep]]+Odchylky_v_nakladoch_na_marketing[[#Totals],[Sep]]+Odchylky_v_nakladoch_na_kancelariu[[#Totals],[Sep]]+Odchylky_v_nakladoch[[#Totals],[Sep]]","v":{"v":135918,"d":"135,918.00 EUR"}},{"$f":"Odchylky_v_nakladoch_na_skolenie_a_cestovne[[#Totals],[Okt]]+Odchylky_v_nakladoch_na_marketing[[#Totals],[Okt]]+Odchylky_v_nakladoch_na_kancelariu[[#Totals],[Okt]]+Odchylky_v_nakladoch[[#Totals],[Okt]]","v":{"v":140918,"d":"140,918.00 EUR"}},{"$f":"Odchylky_v_nakladoch_na_skolenie_a_cestovne[[#Totals],[Nov]]+Odchylky_v_nakladoch_na_marketing[[#Totals],[Nov]]+Odchylky_v_nakladoch_na_kancelariu[[#Totals],[Nov]]+Odchylky_v_nakladoch[[#Totals],[Nov]]","v":{"v":136218,"d":"136,218.00 EUR"}},{"$f":"Odchylky_v_nakladoch_na_skolenie_a_cestovne[[#Totals],[Dec]]+Odchylky_v_nakladoch_na_marketing[[#Totals],[Dec]]+Odchylky_v_nakladoch_na_kancelariu[[#Totals],[Dec]]+Odchylky_v_nakladoch[[#Totals],[Dec]]","v":{"v":140018,"d":"140,018.00 EUR"}},{"$f":"Odchylky_v_nakladoch_na_skolenie_a_cestovne[[#Totals],[ROK]]+Odchylky_v_nakladoch_na_marketing[[#Totals],[ROK]]+Odchylky_v_nakladoch_na_kancelariu[[#Totals],[ROK]]+Odchylky_v_nakladoch[[#Totals],[ROK]]","v":{"v":826691,"d":"826,691.00 EUR"}}]
[null,"CELKOVÉ skutočné výdavky",{"$f":"SUM($C$36:C36)","v":{"v":1738,"d":"1,738.00 EUR"}},{"$f":"SUM($C$36:D36)","v":{"v":754,"d":"754.00 EUR"}},{"$f":"SUM($C$36:E36)","v":{"v":2009,"d":"2,009.00 EUR"}},{"$f":"SUM($C$36:F36)","v":{"v":2310,"d":"2,310.00 EUR"}},{"$f":"SUM($C$36:G36)","v":{"v":3750,"d":"3,750.00 EUR"}},{"$f":"SUM($C$36:H36)","v":{"v":6,"d":"6.00 EUR"}},{"$f":"SUM($C$36:I36)","v":{"v":134701,"d":"134,701.00 EUR"}},{"$f":"SUM($C$36:J36)","v":{"v":273619,"d":"273,619.00 EUR"}},{"$f":"SUM($C$36:K36)","v":{"v":409537,"d":"409,537.00 EUR"}},{"$f":"SUM($C$36:L36)","v":{"v":550455,"d":"550,455.00 EUR"}},{"$f":"SUM($C$36:M36)","v":{"v":686673,"d":"686,673.00 EUR"}},{"$f":"SUM($C$36:N36)","v":{"v":826691,"d":"826,691.00 EUR"}}]

{"sheet":"ANALÝZA VÝDAVKOV","index":4,"n_rows":14,"n_cols":16,"rows_kept":14,"merged":[[1,1,2,3],[1,5,1,6],[2,4,2,6],[11,1,11,2],[11,3,11,5],[13,1,36,5]]}
["V tomto hárku sa automaticky aktualizujú ročné plánované a skutočné výdavky, odchýlky vo výdavkoch a percentuálna hodnota odchýlky v jednotlivých kategóriách výdavkov. V bunkách v tomto stĺpci sú užitočné pokyny na používanie tohto hárka. Začnite stlačením šípky nadol. ",{"$nulls":5}," ",{"$nulls":8}," "]
["Názov spoločnosti v bunke napravo sa aktualizuje automaticky. Do bunky F2 pridajte logo.",{"$f":"'PLÁNOVANÉ VÝDAVKY'!B2:D3","v":"Názov spoločnosti"},{"$nulls":3},"V tejto bunke je zástupné logo."]
["V bunke E3 je uvedený názov hárka. Ďalší pokyn je v bunke A5.",{"$nulls":3},{"$f":"worksheet_title","v":"Podrobné odhady výdavkov"}]
[]
["V tabuľke Analyza začínajúcej v bunke napravo sa automaticky vypočítajú plánované výdavky, skutočné výdavky, odchýlky vo výdavkoch a percentuálna hodnota odchýlky. Ďalší pokyn je v bunke A12.","Kategória výdavkov","Plánované výdavky","Skutočné výdavky","Odchýlky vo výdavkoch","Percentuálna hodnota odchýlky"]
[null,"Náklady na zamestnancov",{"$f":"Planovane_naklady_na_zamestnancov[[#Totals],[ROK]]","v":{"v":1355090,"d":"1,355,090.00 EUR"}},{"$f":"Skutocne_naklady_na_zamestnancov[[#Totals],[ROK]]","v":{"v":659130,"d":"659,130.00 EUR"}},{"$f":"C6-D6","v":{"v":695960,"d":"695,960.00 EUR"}},{"$f":"E6/C6","v":{"v":0.5135895032802249,"d":"51%"}}]
[null,{"$f":"'PLÁNOVANÉ VÝDAVKY'!B10","v":"Náklady na kanceláriu"},{"$f":"Planovane_naklady_na_kancelariu[[#Totals],[ROK]]","v":{"v":138740,"d":"138,740.00 EUR"}},{"$f":"Skutocne_naklady_na_kancelariu[[#Totals],[ROK]]","v":{"v":69350,"d":"69,350.00 EUR"}},{"$f":"C7-D7","v":{"v":69390,"d":"69,390.00 EUR"}},{"$f":"E7/C7","v":{"v":0.5001441545336601,"d":"50%"}}]
[null,{"$f":"'PLÁNOVANÉ VÝDAVKY'!B21","v":"Náklady na marketing"},{"$f":"Planovane_naklady_na_marketing[[#Totals],[ROK]]","v":{"v":67800,"d":"67,800.00 EUR"}},{"$f":"Skutocne_naklady_na_marketing[[#Totals],[ROK]]","v":{"v":33159,"d":"33,159.00 EUR"}},{"$f":"C8-D8","v":{"v":34641,"d":"34,641.00 EUR"}},{"$f":"E8/C8","v":{"v":0.510929203539823,"d":"51%"}}]
[null,{"$f":"'PLÁNOVANÉ VÝDAVKY'!B30","v":"Školenie/cestovné"},{"$f":"Planovane_naklady_na_skolenie_a_cestovne[[#Totals],[ROK]]","v":{"v":48000,"d":"48,000.00 EUR"}},{"$f":"Skutocne_naklady_na_skolenie_a_cestovne[[#Totals],[ROK]]","v":{"v":21300,"d":"21,300.00 EUR"}},{"$f":"C9-D9","v":{"v":26700,"d":"26,700.00 EUR"}},{"$f":"E9/C9","v":{"v":0.55625,"d":"56%"}}]
[null,{"$f":"'PLÁNOVANÉ VÝDAVKY'!B35","v":"SÚČTY"},{"$f":"'PLÁNOVANÉ VÝDAVKY'!O36","v":{"v":1609630,"d":"1,609,630.00 EUR"}},{"$f":"'SKUTOČNÉ VÝDAVKY'!O36","v":{"v":782939,"d":"782,939.00 EUR"}},{"$f":"C10-D10","v":{"v":826691,"d":"826,691.00 EUR"}},{"$f":"E10/C10","v":{"v":0.5135907009685455,"d":"51%"}}]
[]
["V bunke napravo je koláčový graf plánované výdavky a v bunke D12 je koláčový graf skutočné výdavky. Ďalší pokyn je v bunke A14.","V tejto bunke je koláčový graf zobrazujúci plánované výdavky v rôznych kategóriách.",null,"V tejto bunke je koláčový graf zobrazujúci skutočné vzniknuté výdavky v rôznych kategóriách."]
[]
["V bunke napravo je graf zobrazujúci plánované a skutočné mesačné výdavky a odchýlka v mesačných výdavkoch."]